﻿date,department,beneficiary,amount,summary of purpose,category,Transaction number,SAP vendor number
17.05.2024,Collection Fund,GREATER LONDON AUTHORITY,"11,194,490.00",NNDR ACCOUNT - GLA SHARE,EXTERNAL AGENCIES AND BODIES,5902636770,1000015827
04.05.2024,Housing,ARTHUR J GALLAGHER INSURANCE BROKER,"8,577,046.64",HOME OWNERSHIP,PROPERTY INSURANCE COSTS,5902634416,1000045282
15.05.2024,Housing,BY DEVELOPMENT LTD,"5,308,938.46",CAPITAL PS (HRA),CONSTRUCTION MAIN CONTRACT -CERTIFICATED,2103871204,3000002255
21.05.2024,Collection Fund,GREATER LONDON AUTHORITY,"5,185,793.02",GLA PRECEPT,LEVIES,5902637083,1000015827
31.05.2024,Housing,BY DEVELOPMENT LTD,"4,765,470.30",CAPITAL PS (HRA),CONSTRUCTION MAIN CONTRACT -CERTIFICATED,2103878673,3000002255
19.05.2024,Suspense,HM REVENUE & CUSTOMS,"2,822,055.40",SUSPENSE ACCOUNT (COMPANY CODE 1000),INLAND REVENUE,2103859001,1016231
19.05.2024,Suspense,HM REVENUE & CUSTOMS,"2,808,923.85",SUSPENSE ACCOUNT (COMPANY CODE 1000),INLAND REVENUE,2103859002,1016231
16.05.2024,Housing,HILL PARTNERSHIP LTD,"2,706,506.12",CAPITAL PS (HRA),CONSTRUCTION MAIN CONTRACT -CERTIFICATED,2103871206,3000002185
13.05.2024,Environment Neighbourhoods and Growth,VEOLIA ES SOUTHWARK LTD,"2,393,748.86",WASTE PFI,PFI/PPP PAYMENTS,5902635873,1000056979
17.05.2024,Collection Fund,MINISTRY OF HOUSING COMMUNITIES & LOCAL GOVERNMENT,"1,787,052.00",NNDR CLG SHARE,EXTERNAL AGENCIES AND BODIES,5902636772,1000081809
09.05.2024,Finance,POST OFFICE LTD,"1,700,000.00",HOUSEHOLD SUPPORT GRANT,GRANTS,5902634462,1000087679
14.05.2024,Children and Adults,TEACHERS' PENSIONS,"1,669,189.53",TEACHERS PENSION MONTHLY RETURN,PAYROLL CREDITORS - TEACHERS PENSIONS & AVCS,5902636190,1000015184
03.05.2024,Housing,KENT COUNTY COUNCIL - LASER,"1,568,524.02",HEATING ACCOUNT,ELECTRICITY,5902634737,1000012926
18.05.2024,Housing,A & E ELKINS LTD,"1,532,827.16",CAPITAL PS (HRA),CONSTRUCTION,2103871207,4012501
03.05.2024,Governance and Assurance,MATRIX SCM LIMITED,"1,198,931.45",WEEKLY PAYMENTS,AGENCY STAFF,5902634774,1000089740
04.05.2024,Housing,ARTHUR J GALLAGHER INSURANCE BROKER,"1,029,245.60",HOME OWNERSHIP,PROPERTY INSURANCE COSTS,5902634416,1000045282
07.05.2024,Children and Adults,SPA EDUCATION TRUST,"983,125.00",AC & FREE - SPECIAL,STATEMENTED FEES,2103865872,1000081600
24.05.2024,Governance and Assurance,MATRIX SCM LIMITED,"970,149.17",WEEKLY PAYMENTS,AGENCY STAFF,5902637563,1000089740
24.05.2024,Housing,HIGGINS PARTNERSHIPS,"949,671.27",CAPITAL PS (HRA),CONSTRUCTION,2103875006,4000859
31.05.2024,Governance and Assurance,MATRIX SCM LIMITED,"926,706.76",WEEKLY PAYMENTS,AGENCY STAFF,5902638259,1000089740
10.05.2024,Governance and Assurance,MATRIX SCM LIMITED,"882,344.98",WEEKLY PAYMENTS,AGENCY STAFF,5902635635,1000089740
15.05.2024,Housing,HILL PARTNERSHIP LTD,"841,972.32",CAPITAL PS (HRA),CONSTRUCTION MAIN CONTRACT -CERTIFICATED,2103871153,3000002185
17.05.2024,Governance and Assurance,MATRIX SCM LIMITED,"839,333.42",WEEKLY PAYMENTS,AGENCY STAFF,5902636840,1000089740
30.05.2024,Collection Fund,GREATER LONDON AUTHORITY,"808,078.00",GLA CROSSRAIL BUSINESS RATE SUPPLEMENT,LEVIES,5902638028,1000015827
28.05.2024,Environment Neighbourhoods and Growth,BOUYGUES (UK) LTD,"805,114.36",CAPITAL PS (REGEN),CONSTRUCTION MAIN CONTRACT -CERTIFICATED,2103875282,3000002179
10.05.2024,Housing,A & E ELKINS LTD,"790,030.79",CAPITAL PS (HRA),CONSTRUCTION MAIN CONTRACT -CERTIFICATED,2103867602,4012501
19.05.2024,Environment Neighbourhoods and Growth,GUILDMORE LTD,"781,832.11",CAPITAL PS (REGEN),CONSTRUCTION MAIN CONTRACT -CERTIFICATED,2103871217,3000002150
18.05.2024,Children and Adults,NEILCOTT SPECIAL WORKS LTD,"739,878.43",CAPITAL PS (EDUCATION),CONSTRUCTION,2103869248,3000000770
13.05.2024,Housing,EQUANS REGENERATION (APOLLO) LTD,"730,622.88",CAPITAL PS (HRA),CONSTRUCTION MAIN CONTRACT -CERTIFICATED,2103869520,4000449
18.05.2024,Housing,A & E ELKINS LTD,"651,242.56",CAPITAL PS (HRA),CONSTRUCTION MAIN CONTRACT -CERTIFICATED,2103869518,4012501
10.05.2024,Environment Neighbourhoods and Growth,APCOA PARKING (UK) LTD,"633,485.05",PARKING OVERHEADS,OTHER CONTRACTORS,5902635275,1718645
19.05.2024,Housing,HILL PARTNERSHIP LTD,"629,502.86",CAPITAL PS (HRA),CONSTRUCTION MAIN CONTRACT -CERTIFICATED,2103871408,3000002185
02.05.2024,Housing,HIGGINS PARTNERSHIPS,"624,693.16",CAPITAL PS (HRA),CONSTRUCTION,2103863073,4000859
10.05.2024,Children and Adults,THE ST THOMAS THE APOSTLE COLLEGE,"619,274.00",THE ST THOMAS THE APOSTLE COLLEGE,SCHOOLS CAPITATION,5902635586,5001000074
09.05.2024,Environment Neighbourhoods and Growth,APCOA PARKING (UK) LTD,"604,666.60",PARKING OVERHEADS,OTHER CONTRACTORS,5902635281,1718645
28.05.2024,Housing,GUILDMORE LTD,"600,780.72",CAPITAL PS (HRA),CONSTRUCTION MAIN CONTRACT -CERTIFICATED,2103875232,3000002150
28.05.2024,Finance,LONDON BOROUGH OF BRENT,"600,000.00",SHARED SERVICES,COMMS & COMPUTING CONTRACT CHARGES,5902637731,1000064734
17.05.2024,Housing,BUILDTRUST LTD,"587,639.72",BUILD TRUST,I-WORLD CONTRACTORS HOLDING ACCOUNT,2103871741,3000002010
15.05.2024,Housing,GLENMAN CORPORATION LTD,"585,837.05",CAPITAL PS (HRA),CONSTRUCTION MAIN CONTRACT -CERTIFICATED,2103871203,3000002230
29.05.2024,Housing,NATIONWIDE ACCOMMODATION,"558,495.00",NIGHTLY TA (NSC),EXTERNAL AGENCIES AND BODIES,5902637892,1000076112
31.05.2024,Governance and Assurance,ATALIAN SERVEST LTD,"521,485.17",FM SERVICES BY INTERSERVE,INTEGRATED FACILITIES MANAGEMENT CONTRACT,5902638330,1000088775
13.05.2024,Finance,BETTER BANKSIDE,"516,891.34",BETTER BANKSIDE,EXTERNAL AGENCIES AND BODIES,5902635893,1000036227
07.05.2024,Children and Adults,SPA EDUCATION TRUST,"502,479.17",AC & FREE - SPECIAL,STATEMENTED FEES,2103865871,1000081600
22.05.2024,Children and Adults,SPA EDUCATION TRUST,"494,750.89",AC & FREE - SPECIAL,STATEMENTED FEES,2103873742,1000081600
26.05.2024,Finance,POST OFFICE LTD,"462,500.00",HOUSEHOLD SUPPORT GRANT,GRANTS,5902637621,1000087679
13.05.2024,Housing,EQUANS REGENERATION LTD,"446,200.00",CAPITAL PS (HRA),CONSTRUCTION MAIN CONTRACT -CERTIFICATED,2103867012,3000002035
10.05.2024,Children and Adults,ST SAVIOURS & ST OLAVES SCHOOL,"442,021.00",ST SAVIOUR & OLAVE'S CE,SCHOOLS CAPITATION,5902635603,5001000084
31.05.2024,Finance,NEC SOFTWARE SOLUTIONS UK LTD,"429,644.26",ADMINISTRATIVE SUPPORT,SOFTWARE,5902638519,1000087043
31.05.2024,Governance and Assurance,ATALIAN SERVEST LTD,"427,971.09",FM SERVICES BY INTERSERVE,INTEGRATED FACILITIES MANAGEMENT CONTRACT,5902638313,1000088775
17.05.2024,Governance and Assurance,ATALIAN SERVEST LTD,"425,064.74",FM SERVICES BY INTERSERVE,INTEGRATED FACILITIES MANAGEMENT CONTRACT,5902636759,1000088775
24.05.2024,Housing,SMITH & BYFORD LTD,"415,249.33",SMITH AND BYFORD,I-WORLD CONTRACTORS HOLDING ACCOUNT,2103875004,3000000520
28.05.2024,Finance,LONDON BOROUGH OF BRENT,"409,016.00",SHARED SERVICES,COMMS & COMPUTING CONTRACT CHARGES,5902637738,1000064734
08.05.2024,Housing,NATIONWIDE ACCOMMODATION,"400,000.00",NIGHTLY TA (NSC),EXTERNAL AGENCIES AND BODIES,5902635138,1000076112
22.05.2024,Housing,OCO LIMITED,"398,990.29",PAYMENTS CONTROL ACCOUNT - OCO,I-WORLD CONTRACTORS HOLDING ACCOUNT,5902637308,1006066
08.05.2024,Environment Neighbourhoods and Growth,ATALIAN SERVEST LTD,"388,707.19",CAPITAL PS (REGEN),CONSTRUCTION MAIN CONTRACT,2103866024,3000002240
02.05.2024,Finance,LONDON BRIDGE BUSINESS IMPROVEMENT,"387,256.82",TEAM LONDON BRIDGE,EXTERNAL AGENCIES AND BODIES,5902633811,1000050879
31.05.2024,Children and Adults,NEILCOTT SPECIAL WORKS LTD,"359,324.88",CAPITAL PS (EDUCATION),CONSTRUCTION MAIN CONTRACT -CERTIFICATED,2103878692,3000000770
30.05.2024,Housing,ZFA ACCOMMODATION LTD,"333,300.00",NIGHTLY TA (NSC),EXTERNAL AGENCIES AND BODIES,5902638017,1000082620
17.05.2024,Housing,BUGLER DEVELOPMENTS LIMITED,"306,791.12",CAPITAL PS (HRA),CONSTRUCTION MAIN CONTRACT -CERTIFICATED,2103871162,3000002217
08.05.2024,Environment Neighbourhoods and Growth,ATALIAN SERVEST LTD,"306,762.03",CAPITAL PS (REGEN),CONSTRUCTION MAIN CONTRACT,2103866024,3000002240
13.05.2024,Environment Neighbourhoods and Growth,REDACTED PERSONAL DATA,"300,000.00",CAMBERWELL LIBRARY,PROFESSIONAL FEES,5902635911,1000069517
27.05.2024,Environment Neighbourhoods and Growth,QUADRON SERVICES LIMITED,"290,290.37",CLIENT SERV(GRNS MAIN),OTHER CONTRACTORS,5902637414,1000066528
13.05.2024,Housing,LIFTEC LIFTS LTD,"285,322.38",PAYMENTS CONTROL ACCOUNT - LIFTEC,I-WORLD CONTRACTORS HOLDING ACCOUNT,5902635833,1000057278
14.05.2024,Housing,SPOKEMEAD MAINTENANCE LTD,"264,637.06",PAYMENTS CONTROL ACCOUNT - SPOKEMEAD,I-WORLD CONTRACTORS HOLDING ACCOUNT,5902635999,1000059211
30.05.2024,Housing,SPOKEMEAD MAINTENANCE LTD,"262,185.34",PAYMENTS CONTROL ACCOUNT - SPOKEMEAD,I-WORLD CONTRACTORS HOLDING ACCOUNT,5902637564,1000059211
10.05.2024,Children and Adults,PHOENIX PRIMARY SCHOOL,"260,877.00",PHOENIX PRIMARY SCHOOL,SCHOOLS CAPITATION,5902635496,5001000032
02.05.2024,Corporate,4 FUTURES PHASE 1 LIMITED,"254,106.14",ONGOING SCHOOLS PFI COSTS,PFI/PPP PAYMENTS,5902634545,1000061400
13.05.2024,Environment Neighbourhoods and Growth,VEOLIA ES SOUTHWARK LTD,"252,039.31",WASTE PFI,PFI/PPP PAYMENTS,5902635872,1000056979
10.05.2024,Children and Adults,CAMELOT PRIMARY SCHOOL,"251,456.00",CAMELOT PRIMARY SCHOOL,SCHOOLS CAPITATION,5902635461,5001000014
31.05.2024,Housing,BCS (ELECTRICAL & BUILDING SERVICES LTD),"250,527.15",BCS,I-WORLD CONTRACTORS HOLDING ACCOUNT,5902638482,1000062321
02.05.2024,Corporate,4 FUTURES PHASE 2 LTD,"247,224.86",ONGOING SCHOOLS PFI COSTS,PFI/PPP PAYMENTS,5902634550,1000068567
29.05.2024,Corporate,4 FUTURES PHASE 2 LTD,"247,224.86",ONGOING SCHOOLS PFI COSTS,PFI/PPP PAYMENTS,5902637942,1000068567
02.05.2024,Corporate,4 FUTURES PHASE 2 LTD,"247,224.85",ONGOING SCHOOLS PFI COSTS,PFI/PPP PAYMENTS,5902634550,1000068567
29.05.2024,Corporate,4 FUTURES PHASE 2 LTD,"247,224.85",ONGOING SCHOOLS PFI COSTS,PFI/PPP PAYMENTS,5902637942,1000068567
31.05.2024,Housing,PRB ESTATES LTD,"244,763.94",PRBE,I-WORLD CONTRACTORS HOLDING ACCOUNT,2103878774,3000001691
15.05.2024,Suspense,INLAND REVENUE,"240,599.52",SUSPENSE ACCOUNT (COMPANY CODE 1000),CONSTRUCTION INDUSTRY TAX,2103870219,4003039
29.05.2024,Corporate,4 FUTURES PHASE 1 LIMITED,"240,100.16",ONGOING SCHOOLS PFI COSTS,PFI/PPP PAYMENTS,5902637940,1000061400
10.05.2024,Children and Adults,BESSEMER GRANGE PRIMARY SCHOOL,"236,219.00",BESSEMER GRANGE PRIMARY SCHOOL,SCHOOLS CAPITATION,5902635450,5001000009
31.05.2024,Housing,WILLOW ESTATE AGENTS (LONDON) LTD,"235,466.10",NIGHTLY TA (NSC),EXTERNAL AGENCIES AND BODIES,5902638325,1000060607
16.05.2024,Environment Neighbourhoods and Growth,ATALIAN SERVEST LTD,"232,815.49",CAPITAL PS (REGEN),CONSTRUCTION MAIN CONTRACT,2103871209,3000002240
10.05.2024,Children and Adults,JOHN RUSKIN PRIMARY SCHOOL,"229,908.00",JOHN RUSKIN PRIMARY SCHOOL,SCHOOLS CAPITATION,5902635513,5001000040
17.05.2024,Governance and Assurance,ATALIAN SERVEST LTD,"229,438.10",FM SERVICES BY INTERSERVE,BUILDING R&M,5902636722,1000088775
29.05.2024,Housing,VEOLIA ES (UK)LTD,"228,337.37",HEATING ACCOUNT,GAS,5902637933,1824835
03.05.2024,Housing,KENT COUNTY COUNCIL - LASER,"227,812.21",HEATING ACCOUNT,ELECTRICITY,5902634175,1000012926
17.05.2024,Housing,KIND & COMPANY (BUILDERS) LTD,"226,786.00",CAPITAL PS (HRA),CONSTRUCTION SITE COSTS,2103871411,3000001608
31.05.2024,Housing,EQUANS REGENERATION LTD,"226,039.45",CAPITAL PS (HRA),CONSTRUCTION MAIN CONTRACT -CERTIFICATED,2103878693,3000002035
24.05.2024,Housing,BCS (ELECTRICAL & BUILDING SERVICES LTD),"220,928.57",BCS,I-WORLD CONTRACTORS HOLDING ACCOUNT,5902637561,1000062321
16.05.2024,Environment Neighbourhoods and Growth,ATALIAN SERVEST LTD,"212,424.77",CAPITAL PS (REGEN),CONSTRUCTION MAIN CONTRACT,2103871209,3000002240
10.05.2024,Children and Adults,MICHAEL FARADAY PRIMARY SCHOOL,"212,121.00",MICHAEL FARADAY PRIMARY SCHOOL,SCHOOLS CAPITATION,5902635529,5001000048
10.05.2024,Children and Adults,ALBION PRIMARY SCHOOL,"210,630.00",ALBION PRIMARY SCHOOL,SCHOOLS CAPITATION,5902635439,5001000000
10.05.2024,Children and Adults,ST JAMES CE PRIMARY SCHOOL,"208,166.00",ST JAMES' CE PRIMARY SCHOOL,SCHOOLS CAPITATION,5902635576,5001000070
10.05.2024,Children and Adults,DULWICH WOOD PRIMARY SCHOOL,"207,569.00",DULWICH WOOD PRIMARY SCHOOL,SCHOOLS CAPITATION,5902635521,5001000042
10.05.2024,Children and Adults,OLIVER GOLDSMITH PRIMARY SCHOOL,"207,436.00",OLIVER GOLDSMITH PRIMARY SCHOOL,SCHOOLS CAPITATION,5902635536,5001000051
11.05.2024,Housing,TKC HOUSING LIMITED,"206,868.50",PSL PLACEMENTS,EXTERNAL AGENCIES AND BODIES,5902635163,1000088199
10.05.2024,Children and Adults,SOUTHWARK PARK PRIMARY SCHOOL,"206,665.00",SOUTHWARK PARK PRIMARY SCHOOL,SCHOOLS CAPITATION,5902635565,5001000062
11.05.2024,Corporate,GALLAGHER BASSETT INTERNATIONAL LTD,"200,000.00",LIABILITY RELATED INSURANCE,COMPENSATION,5902635014,1000005701
28.05.2024,Housing,MX ESTATES LTD,"197,792.50",NIGHTLY TA (NSC),EXTERNAL AGENCIES AND BODIES,5902637691,1000083639
10.05.2024,Children and Adults,IVYDALE PRIMARY SCHOOL,"197,265.00",IVYDALE PRIMARY SCHOOL,SCHOOLS CAPITATION,5902635510,5001000038
10.05.2024,Children and Adults,GOODRICH PRIMARY SCHOOL,"196,322.00",GOODRICH PRIMARY SCHOOL,SCHOOLS CAPITATION,5902635486,5001000028
10.05.2024,Children and Adults,ENGLISH MARTYRS RC PRIMARY SCHOOL,"194,338.00",ENGLISH MARTYRS RC PRIMARY SCHOOL,SCHOOLS CAPITATION,5902635492,5001000030
29.05.2024,Housing,VEOLIA ES (UK)LTD,"193,749.82",HEATING ACCOUNT,GAS,5902637929,1824835
10.05.2024,Children and Adults,BRUNSWICK PARK PRIMARY SCHOOL,"191,818.00",BRUNSWICK PARK PRIMARY SCHOOL,SCHOOLS CAPITATION,5902635456,5001000013
10.05.2024,Children and Adults,ALFRED SALTER PRIMARY SCHOOL,"189,596.00",ALFRED SALTER PRIMARY SCHOOL,SCHOOLS CAPITATION,5902635442,5001000005
10.05.2024,Children and Adults,BETHLEM & MAUDSLEY HOSPITAL SCHOOL,"188,469.00",LBS SPECIAL AND HOSP SCHLS,HIGH NEEDS - BASE FUNDING,5902635453,5001000010
10.05.2024,Children and Adults,CRAWFORD PRIMARY SCHOOL,"187,506.00",CRAWFORD PRIMARY SCHOOL,SCHOOLS CAPITATION,5902635481,5001000024
24.05.2024,Housing,EQUANS REGENERATION (APOLLO) LTD,"185,218.55",CAPITAL PS (HRA),CONSTRUCTION MAIN CONTRACT -CERTIFICATED,2103875012,4000449
10.05.2024,Children and Adults,HEBER PRIMARY SCHOOL,"183,542.00",HEBER PRIMARY SCHOOL,SCHOOLS CAPITATION,5902635502,5001000035
31.05.2024,Environment Neighbourhoods and Growth,F M CONWAY LTD,"180,579.79",HIGHWAY MAINTENANCE OVERHEADS,HIGHWAYS TERM CONTRACT,2103878672,4001384
02.05.2024,Environment Neighbourhoods and Growth,ATALIAN SERVEST LTD,"178,799.30",CAPITAL PS (REGEN),CONSTRUCTION MAIN CONTRACT,2103864400,3000002240
10.05.2024,Children and Adults,ST JOHNS & ST CLEMENTS CE SCHOOL,"174,052.00",ST JOHN'S & ST CLEMENT'S CE PRIMARY SCHO,SCHOOLS CAPITATION,5902635582,5001000073
10.05.2024,Children and Adults,HIGHSHORE SCHOOL,"173,682.00",LBS SPECIAL AND HOSP SCHLS,HIGH NEEDS - TOP UP FUNDING,5902635526,5001000046
02.05.2024,Housing,OCO LIMITED,"171,734.41",STANDAGE,I-WORLD CONTRACTORS HOLDING ACCOUNT,5902634501,1006066
10.05.2024,Children and Adults,KEYWORTH PRIMARY SCHOOL,"171,039.00",KEYWORTH PRIMARY SCHOOL,SCHOOLS CAPITATION,5902635518,5001000041
10.05.2024,Children and Adults,CHERRY GARDEN SCHOOL,"166,823.00",LBS SPECIAL AND HOSP SCHLS,HIGH NEEDS - TOP UP FUNDING,5902635475,5001000020
10.05.2024,Children and Adults,TUKE SCHOOL,"164,663.00",LBS SPECIAL AND HOSP SCHLS,HIGH NEEDS - TOP UP FUNDING,5902635617,5001000097
10.05.2024,Children and Adults,GRANGE PRIMARY SCHOOL,"164,138.00",GRANGE PRIMARY SCHOOL,SCHOOLS CAPITATION,5902635489,5001000029
15.05.2024,Housing,LETTING INTERNATIONAL LTD,"162,730.00",NIGHTLY TA (NSC),EXTERNAL AGENCIES AND BODIES,5902636505,1000070102
08.05.2024,Housing,NATIONWIDE ACCOMMODATION,"161,830.10",NIGHTLY TA (NSC),EXTERNAL AGENCIES AND BODIES,5902635138,1000076112
21.05.2024,Housing,SMITH & BYFORD LTD,"161,735.38",CAPITAL PS (HRA),CONSTRUCTION,2103871992,3000000520
13.05.2024,Housing,LIFTEC LIFTS LTD,"161,493.65",PAYMENTS CONTROL ACCOUNT - LIFTEC,I-WORLD CONTRACTORS HOLDING ACCOUNT,5902635835,1000057278
14.05.2024,Housing,BRIDGEWATER ROOFING CONTRACTORS LTD,"159,503.40",A&E ELKINS,I-WORLD CONTRACTORS HOLDING ACCOUNT,2103869527,3000001482
09.05.2024,Housing,PRB ESTATES LTD,"159,011.69",PRBE,I-WORLD CONTRACTORS HOLDING ACCOUNT,2103866680,3000001691
10.05.2024,Children and Adults,THE ST THOMAS THE APOSTLE COLLEGE,"156,116.00",YPLA SCHL SIXTH FORM,SCHOOLS CAPITATION,5902635588,5001000074
20.05.2024,Housing,SEVILLE DEVELOPMENTS LIMITED,"152,410.45",CAPITAL PS (HRA),CONSTRUCTION MAIN CONTRACT -CERTIFICATED,5902636511,1000090393
21.05.2024,Corporate,GREATER LONDON AUTHORITY,"152,354.90",LONDON PENSION FUND,LEVIES,5902637082,1000015827
10.05.2024,Children and Adults,RIVERSIDE PRIMARY SCHOOL,"151,156.00",RIVERSIDE PRIMARY SCHOOL,SCHOOLS CAPITATION,5902635547,5001000056
29.05.2024,Housing,RNS HOMES LTD,"148,468.28",NIGHTLY TA (NSC),EXTERNAL AGENCIES AND BODIES,5902637855,1000090648
31.05.2024,Governance and Assurance,ATALIAN SERVEST LTD,"148,110.87",FM SERVICES BY INTERSERVE,BUILDING R&M,5902638254,1000088775
02.05.2024,Housing,SMITH & BYFORD LTD,"147,542.61",SMITH AND BYFORD,I-WORLD CONTRACTORS HOLDING ACCOUNT,5902634502,11212119
14.05.2024,Housing,A & E ELKINS LTD,"146,610.08",A&E ELKINS,I-WORLD CONTRACTORS HOLDING ACCOUNT,2103869525,4012501
30.05.2024,Housing,THEORI HOUSING MANAGEMENT SERVICES,"143,536.40",PSL PLACEMENTS,EXTERNAL AGENCIES AND BODIES,5902638062,1000079264
10.05.2024,Children and Adults,ST FRANCIS'S RC PRIMARY SCHOOL,"142,946.00",ST FRANCIS RC PRIMARY SCHOOL,SCHOOLS CAPITATION,5902635568,5001000067
02.05.2024,Environment Neighbourhoods and Growth,ATALIAN SERVEST LTD,"140,180.91",CAPITAL PS (REGEN),CONSTRUCTION MAIN CONTRACT,2103864400,3000002240
31.05.2024,Environment Neighbourhoods and Growth,ATALIAN SERVEST LTD,"140,132.36",CAPITAL PS (REGEN),CONSTRUCTION MAIN CONTRACT,2103876934,3000002240
26.05.2024,Finance,KPMG LLP,"138,971.25",EXTERNAL AUDIT SCALE FEES,PROFESSIONAL FEES,5902637545,1000080537
05.05.2024,Environment Neighbourhoods and Growth,CONSTELLIA PUBLIC LIMITED,"138,341.58",CAPITAL PS (LEISURE),CONSTRUCTION FEES,5902634571,1000088137
13.05.2024,Environment Neighbourhoods and Growth,F M CONWAY LTD,"134,594.86",CAPITAL PS (LEISURE),CONSTRUCTION,2103869249,4001384
10.05.2024,Children and Adults,HIGHSHORE SCHOOL,"134,375.00",LBS SPECIAL AND HOSP SCHLS,HIGH NEEDS - BASE FUNDING,5902635525,5001000046
29.05.2024,Suspense,LONDON MUTUAL CREDIT UNION,"134,065.22",SUSPENSE ACCOUNT (COMPANY CODE 1000),PAYROLL - 3RD PARTY DEDUCTIONS,2103876548,1000015860
10.05.2024,Children and Adults,RYE OAK PRIMARY SCHOOL,"133,102.00",RYE OAK  DFES,SCHOOLS CAPITATION,5902635555,5001000059
22.05.2024,Housing,SALTASH ENTERPRISES LTD,"132,765.96",CAPITAL PS (HRA),CONSTRUCTION MAIN CONTRACT -CERTIFICATED,2103872453,4013605
20.05.2024,Housing,ZFA ACCOMMODATION LTD,"130,124.82",PSL PLACEMENTS,EXTERNAL AGENCIES AND BODIES,5902637003,1000082620
10.05.2024,Children and Adults,DULWICH VILLAGE CE INFANTS SCHOOL,"129,791.00",DULWICH VILLAGE CE INFANTS' SCHOOL,SCHOOLS CAPITATION,5902635484,5001000027
30.05.2024,Housing,GLENMAN CORPORATION LTD,"126,496.77",CAPITAL PS (HRA),CONSTRUCTION MAIN CONTRACT -CERTIFICATED,2103876564,3000002230
09.05.2024,Housing,PRB ESTATES LTD,"123,947.18",PRBE,I-WORLD CONTRACTORS HOLDING ACCOUNT,2103866682,3000001691
08.05.2024,Housing,NEWINGTON BUTTS MANAGEMENT LTD,"123,594.56",PRIVATE SERVICE CHARGES,SERVICE CHARGES,5902635152,1000081298
10.05.2024,Children and Adults,EVELINA HOSPITAL SCHOOL,"122,130.00",LBS SPECIAL AND HOSP SCHLS,HIGH NEEDS - BASE FUNDING,5902635495,5001000031
14.05.2024,Housing,A & E ELKINS LTD,"121,167.45",A&E ELKINS,I-WORLD CONTRACTORS HOLDING ACCOUNT,2103869526,4012501
10.05.2024,Children and Adults,ST JOSEPHS RC JUNIOR  SCHOOL,"120,760.00",ST JOSEPHS RC JUNIOR(5203) SCHOOL,SCHOOLS CAPITATION,5902635467,5001000017
24.05.2024,Housing,SMITH & BYFORD LTD,"118,768.13",SMITH AND BYFORD,I-WORLD CONTRACTORS HOLDING ACCOUNT,2103875004,3000000520
10.05.2024,Children and Adults,HAYMERLE SCHOOL,"118,344.00",LBS SPECIAL AND HOSP SCHLS,HIGH NEEDS - TOP UP FUNDING,5902635524,5001000045
16.05.2024,Environment Neighbourhoods and Growth,ATALIAN SERVEST LTD,"117,555.70",CAPITAL PS (REGEN),CONSTRUCTION MAIN CONTRACT,2103871209,3000002240
14.05.2024,Children and Adults,BACONS COLLEGE,"117,098.43",AC & FREE - MSTREAM,STATEMENTED FEES,2103870144,1693125
07.05.2024,Housing,A & E ELKINS LTD,"115,838.18",CAPITAL PS (HRA),CONSTRUCTION MAIN CONTRACT -CERTIFICATED,2103866021,4012501
10.05.2024,Children and Adults,ST JAMES THE GREAT RC SCHOOL,"115,319.00",ST JAMES THE GREAT RC PRIMARY SCHOOL,SCHOOLS CAPITATION,5902635579,5001000071
10.05.2024,Children and Adults,BOUCHER C OF E PRIMARY SCHOOL,"115,051.00",BOUTCHER CE PRIMARY SCHOOL,SCHOOLS CAPITATION,5902635454,5001000011
10.05.2024,Children and Adults,ROBERT BROWNING PRIMARY SCHOOL,"115,038.00",ROBERT BROWNING PRIMARY SCHOOL,SCHOOLS CAPITATION,5902635550,5001000057
10.05.2024,Children and Adults,CRAMPTON PRIMARY SCHOOL,"114,340.00",CRAMPTON PRIMARY SCHOOL,SCHOOLS CAPITATION,5902635479,5001000023
13.05.2024,Housing,TKC HOUSING LIMITED,"112,757.37",PSL PLACEMENTS,EXTERNAL AGENCIES AND BODIES,5902635878,1000088199
10.05.2024,Children and Adults,ILDERTON PRIMARY SCHOOL,"112,351.00",ILDERTON PRIMARY SCHOOL,SCHOOLS CAPITATION,5902635507,5001000037
10.05.2024,Children and Adults,ST JOSEPHS CATHOLIC PRIMARY SCHOOL,"112,051.00",ST JOSEPHS RC (3476) PRIMARY SCHOOL,SCHOOLS CAPITATION,5902635595,5001000078
10.05.2024,Housing,A & E ELKINS LTD,"111,204.81",CAPITAL PS (HRA),CONSTRUCTION MAIN CONTRACT -CERTIFICATED,2103868904,4012501
16.05.2024,Housing,BSW HEATING LTD,"110,647.97",CAPITAL PS (HRA),CONSTRUCTION,2103871216,3000000580
10.05.2024,Children and Adults,ST JOHNS RC PRIMARY SCHOOL,"110,088.00",ST JOHN'S RC PRIMARY SCHOOL,SCHOOLS CAPITATION,5902635589,5001000075
07.05.2024,Housing,FINEFAIR LTD,"108,967.41",NIGHTLY TA (NSC),EXTERNAL AGENCIES AND BODIES,5902634926,1000075570
30.05.2024,Housing,FINEFAIR LTD,"107,485.51",NIGHTLY TA (NSC),EXTERNAL AGENCIES AND BODIES,5902638058,1000075570
10.05.2024,Children and Adults,CATHEDRAL SCHOOL OF ST SAVIOUR & MARY,"107,348.00",THE CATHEDRAL OF ST. SAVIOUR & ST OLAVES,SCHOOLS CAPITATION,5902635606,5001000088
10.05.2024,Children and Adults,PILGRIM'S WAY PRIMARY SCHOOL,"107,036.00",PILGRIMS WAY PRIMARY SCHOOL,SCHOOLS CAPITATION,5902635544,5001000054
08.05.2024,Environment Neighbourhoods and Growth,ATALIAN SERVEST LTD,"106,681.33",CAPITAL PS (REGEN),CONSTRUCTION MAIN CONTRACT,2103866024,3000002240
10.05.2024,Children and Adults,BELLENDEN PRIMARY SCHOOL,"106,489.00",BELLENDEN PRIMARY SCHOOL,SCHOOLS CAPITATION,5902635445,5001000007
16.05.2024,Housing,FINEFAIR LTD,"105,755.30",NIGHTLY TA (NSC),EXTERNAL AGENCIES AND BODIES,5902636670,1000075570
15.05.2024,Children and Adults,THE ST MARYLEBONE CHURCH OF ENGLAND SCHOOL,"105,122.60",AC & FREE - MSTREAM,STATEMENTED FEES,2103870220,1000077981
10.05.2024,Children and Adults,TOWER BRIDGE PRIMARY SCHOOL,"104,473.00",TOWER BRIDGE PRIMARY SCHOOL,SCHOOLS CAPITATION,5902635613,5001000095
10.05.2024,Children and Adults,SNOWSFIELDS PRIMARY SCHOOL,"104,166.00",SNOWSFIELDS PRIMARY SCHOOL,SCHOOLS CAPITATION,5902635560,5001000061
02.05.2024,Governance and Assurance,ATALIAN SERVEST LTD,"101,924.92",TSFM CONTINGENCY,INTEGRATED FACILITIES MANAGEMENT CONTRACT,5902634516,1000088775
15.05.2024,Housing,STAR PEOPLE LTD,"101,395.80",NIGHTLY TA (NSC),EXTERNAL AGENCIES AND BODIES,5902636389,1000088790
13.05.2024,Finance,BETTER BANKSIDE,"99,280.12",BETTER BANKSIDE,EXTERNAL AGENCIES AND BODIES,5902635896,1000036227
03.05.2024,Housing,NIBLOCK (BUILDERS) LTD,"99,222.27",CAPITAL PS (HRA),CONSTRUCTION,2103863067,3000000235
10.05.2024,Children and Adults,FRIARS PRIMARY (FOUNDATION) SCHOOL,"98,869.00",FRIARS FOUNDATION PRIMARY SCHOOL,SCHOOLS CAPITATION,5902635499,5001000033
10.05.2024,Children and Adults,ST JOSEPHS CATHOLIC SCHOOL,"98,182.00",ST JOSEPHS RC (3484) SCHOOL,SCHOOLS CAPITATION,5902635592,5001000076
02.05.2024,Children and Adults,BRANDON TRUST,"95,626.73",DISCHARGE TO ACCESS,SUPPORTED LIVING,2103863730,1000042417
24.05.2024,Environment Neighbourhoods and Growth,KENT COUNTY COUNCIL - LASER,"95,143.84",STREET LIGHTING REACTIVE,ELECTRICITY,5902637647,1000012926
15.05.2024,Housing,BLOOM PROCUREMENT SERVICES LTD,"95,013.10",LEDBURY ESTATE,SECURITY SERVICES,5902636500,1000082531
07.05.2024,Environment Neighbourhoods and Growth,ALLPAY LTD,"94,875.22",NO RECOURSE TO PUBLIC FUNDS,OTHER PAYMENTS FOR CLIENTS,5902634839,1000078859
10.05.2024,Children and Adults,CHARLOTTE  SHARMAN PRIMARY SCHOOL,"93,709.00",CHARLOTTE SHARMAN PRIMARY SCHOOL,SCHOOLS CAPITATION,5902635464,5001000016
10.05.2024,Children and Adults,ST GEORGES CE SCHOOL,"93,142.00",ST GEORGE'S CE PRIMARY SCHOOL,SCHOOLS CAPITATION,5902635574,5001000069
30.05.2024,Housing,SPOKEMEAD MAINTENANCE LTD,"92,687.47",PAYMENTS CONTROL ACCOUNT - SPOKEMEAD,I-WORLD CONTRACTORS HOLDING ACCOUNT,5902637566,1000059211
10.05.2024,Children and Adults,SOUTHWARK INCLUSIVE LEARNING SERVICE,"92,071.00",LBS PRU,HIGH NEEDS - TOP UP FUNDING,5902635626,5001000105
02.05.2024,Children and Adults,N NOTARO HOMES LTD,"91,837.17",PHY LTS 65+,"MAND STATUTORY CHARGES, RESIDENTIAL",2103864018,1000061594
10.05.2024,Children and Adults,ST GEORGES RC SCHOOL,"91,439.00",ST GEORGE'S CATHEDRAL RC PRIMARY SCHOOL,SCHOOLS CAPITATION,5902635571,5001000068
31.05.2024,Housing,NATIONWIDE ACCOMMODATION,"90,359.06",PSL PLACEMENTS,EXTERNAL AGENCIES AND BODIES,5902638285,1000076112
21.05.2024,Housing,SITTARA LTD,"88,935.20",NIGHTLY TA (NSC),EXTERNAL AGENCIES AND BODIES,5902637090,1000080857
10.05.2024,Children and Adults,ST SAVIOURS & ST OLAVES SCHOOL,"88,496.00",YPLA SCHL SIXTH FORM,SCHOOLS CAPITATION,5902635605,5001000084
13.05.2024,Children and Adults,HATS GROUP LTD,"88,214.12",SCH TRANS – TRAVEL,CAB FARES,5902635858,1000042743
10.05.2024,Children and Adults,HOLLYDALE PRIMARY SCHOOL,"88,102.00",HOLLYDALE PRIMARY SCHOOL,SCHOOLS CAPITATION,5902635505,5001000036
10.05.2024,Children and Adults,ST PETERS CE SCHOOL,"87,778.00",ST PETER'S CE PRIMARY SCHOOL,SCHOOLS CAPITATION,5902635600,5001000083
15.05.2024,Children and Adults,STONEGROVE LIMITED,"87,454.43",CAPITAL PS (SOC SERV),CONSTRUCTION MAIN CONTRACT,2103871202,3000001525
13.05.2024,Housing,LIFTEC LIFTS LTD,"86,536.98",PAYMENTS CONTROL ACCOUNT - LIFTEC,I-WORLD CONTRACTORS HOLDING ACCOUNT,5902635830,1000057278
08.05.2024,Housing,DEYNSFORD TENANT MANAGEMENT ORGANISATION,"86,012.50",D'EYNSFORD ESTATE,M&M ALLOWANCE CO-OPS,5902635196,1000075613
15.05.2024,Housing,APCOA PARKING (UK) LTD,"85,840.65",PARKING CONTROL,OTHER CONTRACTORS,5902636483,1718645
02.05.2024,Environment Neighbourhoods and Growth,ATALIAN SERVEST LTD,"85,444.42",CAPITAL PS (REGEN),CONSTRUCTION MAIN CONTRACT,2103864400,3000002240
24.05.2024,Housing,FINEFAIR LTD,"84,987.22",PSL PLACEMENTS,EXTERNAL AGENCIES AND BODIES,5902637625,1000075570
10.05.2024,Children and Adults,TUKE SCHOOL,"84,167.00",LBS SPECIAL AND HOSP SCHLS,HIGH NEEDS - BASE FUNDING,5902635616,5001000097
31.05.2024,Housing,SALTASH ENTERPRISES LTD,"84,080.31",CAPITAL PS (HRA),CONSTRUCTION MAIN CONTRACT -CERTIFICATED,2103878746,4013605
31.05.2024,Finance,NEC SOFTWARE SOLUTIONS UK LTD,"83,797.98",ADMINISTRATIVE SUPPORT,SOFTWARE,5902638516,1000087043
22.05.2024,Children and Adults,PRORITE LTD,"82,620.79",CAPITAL PS (EDUCATION),CONSTRUCTION,5902637350,1000090646
12.05.2024,Children and Adults,PILGRIM'S WAY PRIMARY SCHOOL,"80,920.00",FAMILY HUBS GRANT,PROFESSIONAL FEES,5902635257,5001000054
24.05.2024,Children and Adults,STANDAGE & CO LTD,"80,537.83",CAPITAL PS (SOC SERV),CONSTRUCTION MAIN CONTRACT -CERTIFICATED,2103875002,4002817
10.05.2024,Children and Adults,VICTORY SCHOOL,"80,074.00",VICTORY PRIMARY SCHOOL,SCHOOLS CAPITATION,5902635618,5001000098
10.05.2024,Children and Adults,SOUTHWARK INCLUSIVE LEARNING SERVICE,"79,167.00",LBS PRU,HIGH NEEDS - BASE FUNDING,5902635625,5001000105
10.05.2024,Children and Adults,CHERRY GARDEN SCHOOL,"77,083.00",LBS SPECIAL AND HOSP SCHLS,HIGH NEEDS - BASE FUNDING,5902635474,5001000020
03.05.2024,Environment Neighbourhoods and Growth,D W WINDSOR LIMITED,"76,122.16",PUBLIC LIGHTING,MATERIALS,5902634751,1149856
30.05.2024,Children and Adults,SAFE CARE SERVICES LTD,"75,000.00",CHILDREN’S RESID,RESIDENTIAL CARE,2103876872,1000090923
15.05.2024,Housing,PROPERTYPLACEBOOK LTD,"74,952.50",NIGHTLY TA (NSC),EXTERNAL AGENCIES AND BODIES,5902636503,1000077817
16.05.2024,Environment Neighbourhoods and Growth,ATALIAN SERVEST LTD,"74,925.00",CAPITAL PS (REGEN),CONSTRUCTION MAIN CONTRACT,2103871215,3000002240
03.05.2024,Housing,DENHAN PROPERTY SERVICES LTD,"74,609.01",PSL PLACEMENTS,EXTERNAL AGENCIES AND BODIES,5902634671,1000082464
16.05.2024,Environment Neighbourhoods and Growth,ATALIAN SERVEST LTD,"74,596.20",CAPITAL PS (REGEN),CONSTRUCTION MAIN CONTRACT,2103871215,3000002240
05.05.2024,Housing,BUILDING ASSOCIATES LTD,"74,555.79",CAPITAL PS (HRA),CONSTRUCTION MAIN CONTRACT,2103861439,3000002218
02.05.2024,Housing,ROWANWOOD PROFESSIONAL SERVICES LTD,"74,431.00",PROGRAMME & ASSET,SOFTWARE,5902634458,1000080531
10.05.2024,Children and Adults,PETER HILLS CE SCHOOL,"74,410.00",PETER HILLS CE PRIMARY SCHOOL,SCHOOLS CAPITATION,5902635539,5001000053
14.05.2024,Housing,JUDGE & PRIESTLEY SOLICITORS,"74,006.14",DISREPAIR,PAYMENTS FOR LEGAL SERVICES,2103870093,1000074912
12.05.2024,Housing,ROOFF LTD,"73,944.07",CAPITAL PS (HRA),CONSTRUCTION MAIN CONTRACT -CERTIFICATED,2103866678,3000001090
15.05.2024,Environment Neighbourhoods and Growth,C S G (USHERS) LTD,"73,828.50",TREES TERM CONTRACT,TREE MAINTENANCE,5902636250,1000073203
19.05.2024,Corporate,HM REVENUE & CUSTOMS,"73,204.19",APPRENTICESHIP LEVY,APPRENTICESHIP LEVY,2103859019,1016231
09.05.2024,Environment Neighbourhoods and Growth,KELTBRAY RAIL LTD,"73,203.00",CAPITAL PS (REGEN),CONSTRUCTION FEES  - EXTERNAL,5902635097,1000091100
25.05.2024,Housing,UNIFIED CONSULTANCY LTD,"72,815.00",CAPITAL PS (HOUSING GF),ICT ACQUISITION,5902637435,1000081827
10.05.2024,Children and Adults,COMBER GROVE PRIMARY SCHOOL,"72,045.00",COMBER GROVE PRIMARY SCHOOL,SCHOOLS CAPITATION,5902635476,5001000022
24.05.2024,Housing,NORBURY PROPERTY SERVICES (LONDON) LTD,"71,899.00",NIGHTLY TA (NSC),EXTERNAL AGENCIES AND BODIES,5902637581,1000075566
31.05.2024,Housing,CIVICA UK LTD,"71,800.00",COMPLAINTS,SOFTWARE,5902638463,1730625
29.05.2024,Housing,GUILDMORE LTD,"71,411.09",CAPITAL PS (HRA),CONSTRUCTION MAIN CONTRACT -CERTIFICATED,2103876562,3000002150
03.05.2024,Finance,DOCUSIGN INC,"70,727.75",CAPITAL PS (STRAT SERV),ICT ACQUISITION,5902634736,1000084687
31.05.2024,Governance and Assurance,ATALIAN SERVEST LTD,"67,803.03",FM SERVICES BY INTERSERVE,BUILDING R&M,5902638253,1000088775
02.05.2024,Environment Neighbourhoods and Growth,ATALIAN SERVEST LTD,"67,404.79",CAPITAL PS (REGEN),CONSTRUCTION MAIN CONTRACT,2103864400,3000002240
09.05.2024,Housing,IDEAL QUARTERS LTD,"67,196.32",PSL PLACEMENTS,EXTERNAL AGENCIES AND BODIES,5902635243,1000079241
30.05.2024,Housing,DENHAN PROPERTY SERVICES LTD,"67,191.36",PSL PLACEMENTS,EXTERNAL AGENCIES AND BODIES,5902638067,1000082464
02.05.2024,Housing,PELLINGS LLP,"67,094.00",CAPITAL PS (HRA),CONSTRUCTION FEES - EMPLOYERS AGENT,5902634541,1009262
10.05.2024,Children and Adults,GIMS CARE SOLUTION LIMITED,"66,028.00",CHILDREN’S RESID,RESIDENTIAL CARE,2103867522,1000090263
30.05.2024,Finance,POST OFFICE LTD,"66,000.00",HOUSEHOLD SUPPORT GRANT,GRANTS,5902638013,1000087679
10.05.2024,Children and Adults,ST JOSEPHS CATHOLIC INFANTS SCHOOL,"65,774.00",ST JOSEPHS RC INFANT(5204),SCHOOLS CAPITATION,5902635469,5001000018
29.05.2024,Governance and Assurance,KENT COUNTY COUNCIL - LASER,"65,534.38",160 TOOLEY ST.,ELECTRICITY,5902637837,1000012926
13.05.2024,Housing,ROWANWOOD PROFESSIONAL SERVICES LTD,"63,411.11",PROGRAMME & ASSET,SOFTWARE,5902635800,1000080531
10.05.2024,Children and Adults,HAYMERLE SCHOOL,"63,125.00",LBS SPECIAL AND HOSP SCHLS,HIGH NEEDS - BASE FUNDING,5902635523,5001000045
08.05.2024,Children and Adults,BLAK DIAMOND SOCIAL CARE LTD,"62,292.86",SEMI-IND LAC 16-17,EXTERNAL AGENCIES AND BODIES,2103866500,1000090161
30.05.2024,Children and Adults,AEGIS 24/7 LTD,"61,964.35",CHILDREN’S RESID,RESIDENTIAL CARE,2103876855,1000089533
29.05.2024,Housing,ZFA ACCOMMODATION LTD,"61,895.00",TA PLACEMENTS,EXTERNAL AGENCIES AND BODIES,5902637834,1000082620
10.05.2024,Housing,LTA DIRECT LTD,"61,844.50",NIGHTLY TA (NSC),EXTERNAL AGENCIES AND BODIES,5902635636,1000085314
16.05.2024,Children and Adults,GROUNDWORK LONDON,"61,598.00",GRANT FUNDED PROJ’S,EXTERNAL AGENCIES AND BODIES,5902636691,1897585
15.05.2024,Housing,MX ESTATES LTD,"61,356.40",PSL PLACEMENTS,EXTERNAL AGENCIES AND BODIES,5902636262,1000083639
30.05.2024,Children and Adults,SAFE CARE SERVICES LTD,"60,000.00",CHILDREN’S RESID,RESIDENTIAL CARE,2103876863,1000090923
31.05.2024,Children and Adults,THE NEURODIVERSITY FAMILY HUB CIC,"59,900.00",SHORT BREAKS INNV FUND,EXTERNAL AGENCIES AND BODIES,5902638082,1000090764
04.05.2024,Children and Adults,DULWICH WOOD CHILDRENS CENTRE,"59,281.00",FAMILY HUBS GRANT,EXTERNAL AGENCIES AND BODIES,5902633803,5001000099
02.05.2024,Environment Neighbourhoods and Growth,CONSTELLIA PUBLIC LIMITED,"59,201.41",CAPITAL PS (LEISURE),CONSTRUCTION FEES,5902634546,1000088137
10.05.2024,Children and Adults,ST MARY MAGDALENE CE SCHOOL,"59,105.00",ST MARY MAGDALENE CE PRIMARY SCHOOL,SCHOOLS CAPITATION,5902635598,5001000080
29.05.2024,Housing,ZFA ACCOMMODATION LTD,"58,095.00",TA PLACEMENTS,EXTERNAL AGENCIES AND BODIES,5902637835,1000082620
08.05.2024,Children and Adults,GUYS & ST THOMAS NHS FOUNDATION TRUST,"57,500.00",YJS MGMT & SUPPORT,EXTERNAL AGENCIES AND BODIES,5902635212,1765536
03.05.2024,Housing,SOUTHWARK GROUP OF TENANTS ORGANISATION,"57,000.00",RESIDENTS PARTICIPATION FUND,GRANTS,5902634749,1479419
03.05.2024,Housing,SOUTHWARK GROUP OF TENANTS ORGANISATION,"57,000.00",RESIDENTS PARTICIPATION FUND,GRANTS,5902634749,1479419
07.05.2024,Children and Adults,ACCESS MOBILITY TRANSPORT LTD,"56,453.40",SCH TRANS – TRAVEL,CAB FARES,5902634890,1000074637
16.05.2024,Housing,DURKAN LTD,"56,259.00",CAPITAL PS (HRA),CONSTRUCTION MAIN CONTRACT -CERTIFICATED,2103871213,3000000960
10.05.2024,Children and Adults,NELL GWYNN NURSERY SCHOOL,"55,227.00",NELL GWYNN CHILDRENS CENTRE,EARLY YEARS - 3 AND 4 YEAR OLDS,5902635535,5001000049
22.05.2024,Children and Adults,PROSPERO RECRUITMENT LTD,"55,023.00",AP & HOSPITAL SCHLS,STATEMENTED FEES,2103873739,1000082492
02.05.2024,Environment Neighbourhoods and Growth,ATALIAN SERVEST LTD,"54,937.08",CAPITAL PS (REGEN),CONSTRUCTION MAIN CONTRACT,2103864400,3000002240
13.05.2024,Housing,LIFTEC LIFTS LTD,"54,805.40",PAYMENTS CONTROL ACCOUNT - LIFTEC,I-WORLD CONTRACTORS HOLDING ACCOUNT,5902635831,1000057278
31.05.2024,DSO,CRATUS BUILDING SERVICES LIMITED,"54,798.69",SR - VOIDS TEAM,OTHER CONTRACTORS,2103878772,3000001055
31.05.2024,Children and Adults,HC-ONE LTD (TOWER BRIDGE CARE HOME),"54,679.49",PHY LTS 65+,NURSING PLACEMENTS FEES,2103878974,1000067670
30.05.2024,Children and Adults,WILLCOB CARE LTD,"54,600.00",DISABILITIES LAC,PLACEMENTS - RESPITE,2103876912,1000090119
16.05.2024,Environment Neighbourhoods and Growth,ATALIAN SERVEST LTD,"54,403.10",CAPITAL PS (REGEN),CONSTRUCTION MAIN CONTRACT,2103871209,3000002240
25.05.2024,Housing,UNIFIED CONSULTANCY LTD,"54,375.80",CAPITAL PS (HOUSING GF),ICT ACQUISITION,5902637064,1000081827
02.05.2024,Children and Adults,OPTIMA CARE (SHINE) LONDON LTD,"54,230.40",LD LTS 18-64,SUPPORTED LIVING,2103864016,1000079614
03.05.2024,Housing,BRIDGEWATER ROOFING CONTRACTORS LTD,"53,813.11",BRC,I-WORLD CONTRACTORS HOLDING ACCOUNT,2103864411,3000001482
02.05.2024,Finance,THE BLUE BERMONDSEY BID CO LTD,"53,811.31",BERMONDSEY BID,EXTERNAL AGENCIES AND BODIES,5902633819,1000074877
08.05.2024,Children and Adults,BLAK DIAMOND SOCIAL CARE LTD,"53,091.43",SEMI-IND LAC 16-17,EXTERNAL AGENCIES AND BODIES,2103866515,1000090161
16.05.2024,Children and Adults,ELIALI MPC LTD,"52,800.00",CHILDREN’S RESID,RESIDENTIAL CARE,2103871317,1000089944
04.05.2024,Children and Adults,LONDON CARE LTD,"52,366.55",EXTRA CARE CONTRACT,HOMECARE - C&V,5902634342,1000003398
07.05.2024,Housing,A & E ELKINS LTD,"51,719.13",CAPITAL PS (HRA),CONSTRUCTION MAIN CONTRACT -CERTIFICATED,2103866022,4012501
30.05.2024,Environment Neighbourhoods and Growth,BLAKEDOWN LANDSCAPES,"51,669.31",CAPITAL PS (REGEN),CONSTRUCTION MAIN CONTRACT,2103876565,4005399
03.05.2024,Children and Adults,LONDON CARE LTD,"51,662.37",EXTRA CARE CONTRACT,HOMECARE - C&V,5902634338,1000003398
09.05.2024,Housing,PRB ESTATES LTD,"51,513.32",DUCTCLEAN,I-WORLD CONTRACTORS HOLDING ACCOUNT,2103866679,3000001691
15.05.2024,Finance,FAMILY FUND TRADING LTD,"51,332.72",SESS,OTHER PAYMENTS FOR CLIENTS,5902636402,1000071092
16.05.2024,Housing,LETTING INTERNATIONAL LTD,"51,126.68",PSL PLACEMENTS,EXTERNAL AGENCIES AND BODIES,5902636506,1000070102
22.05.2024,Environment Neighbourhoods and Growth,METIS CONSULTANTS LIMITED,"51,095.60",CAPITAL PS (LEISURE),CONSTRUCTION FEES - EMPLOYERS AGENT,5902637353,1000086330
24.05.2024,Environment Neighbourhoods and Growth,ESTATE LIGHTING SOLUTIONS LTD,"50,794.64",PUBLIC LIGHTING,OTHER CONTRACTORS,2103875010,3000002130
29.05.2024,Housing,CROMWOOD HOUSING,"50,760.00",NIGHTLY TA (NSC),EXTERNAL AGENCIES AND BODIES,5902637911,1000071450
24.05.2024,Children and Adults,GUYS & ST THOMAS NHS FOUNDATION TRUST,"50,672.00",SALT,EXTERNAL AGENCIES AND BODIES,5902637505,1765536
31.05.2024,Children and Adults,PCS SERVICES LIMITED,"50,419.00",CHILDREN’S RESID,RESIDENTIAL CARE,2103876860,1000087059
13.05.2024,Finance,HABLE EDUCATION LTD,"50,350.00",TECHNOLOGY TRANSFORMATION,CONSULTANTS SERVICES,5902635887,1000081109
10.05.2024,Children and Adults,ST JUDES CHURCH OF ENGLAND PRIMARY,"49,604.00",ST JUDE'S CE PRIMARY SCHOOL,SCHOOLS CAPITATION,5902635471,5001000019
15.05.2024,Children and Adults,THE BOSCO CENTRE,"49,565.10",SPECIALIST POST-16,STATEMENTED FEES,2103870221,1000046317
20.05.2024,Children and Adults,ISLINGTON COUNCIL,"49,495.51",ADOPT LONDON SOUTH,EXTERNAL AGENCIES AND BODIES,5902637014,11204697
29.05.2024,Housing,ZFA ACCOMMODATION LTD,"49,235.00",TA PLACEMENTS,EXTERNAL AGENCIES AND BODIES,5902637830,1000082620
30.05.2024,Housing,WENTWORTH HOUSING LTD,"49,086.95",PSL PLACEMENTS,EXTERNAL AGENCIES AND BODIES,5902638060,1000083640
21.05.2024,Children and Adults,GUYS & ST THOMAS NHS FOUNDATION TRUST,"48,719.00",SALT,EXTERNAL AGENCIES AND BODIES,5902637106,1765536
29.05.2024,Housing,VEOLIA ES (UK)LTD,"48,517.87",HEATING ACCOUNT,GAS,5902637929,1824835
31.05.2024,Environment Neighbourhoods and Growth,N. MCKECHNIE & CO LTD,"47,921.00",LEISURE INSOURCING MOBILISATION COST,BUILDING R&M,5902638493,1000090373
10.05.2024,Children and Adults,BEORMUND PRIMARY SCHOOL,"47,896.00",LBS SPECIAL AND HOSP SCHLS,HIGH NEEDS - TOP UP FUNDING,5902635449,5001000008
30.05.2024,Corporate,HITACHI SOLUTIONS EUROPE LIMITED,"47,368.75",ONE-OFF NNDR LEVY RELEASE,MEDICAL / HEALTH & SAFETY SERVICES,5902638043,1000084180
15.05.2024,Children and Adults,THE BOSCO CENTRE,"46,977.90",SPECIALIST POST-16,STATEMENTED FEES,2103870222,1000046317
02.05.2024,Environment Neighbourhoods and Growth,STONEGROVE LIMITED,"46,900.43",CAPITAL PS (REGEN),CONSTRUCTION MAIN CONTRACT,2103863072,3000001525
24.05.2024,Children and Adults,SOUTHWARK INCLUSIVE LEARNING SERVICE,"46,492.86",AP SILS,SCHOOLS CAPITATION,2103873875,5001000105
30.05.2024,Children and Adults,ROTHERHITHE PRIMARY SCHOOL,"46,330.42",DSG CONTINGENCY,SCHOOLS CAPITATION,2103876647,1000089862
25.05.2024,Environment Neighbourhoods and Growth,SYD BISHOP & SONS(DEMOLITION) LTD,"46,099.37",CAPITAL PS (REGEN),CONSTRUCTION MAIN CONTRACT,2103875005,3000000990
13.05.2024,Housing,K3 PROPERTY MANAGEMENT LTD,"45,360.00",NIGHTLY TA (NSC),EXTERNAL AGENCIES AND BODIES,5902635814,1000068219
12.05.2024,Children and Adults,BDO LLP,"45,093.80",SCHOOLS AUDIT,PAYMENTS FOR FINANCIAL SERVICES,5902635346,1000057898
03.05.2024,Children and Adults,PEOPLE PLUS GROUP LTD (INDEPENDENT LIVING SERVICES),"44,626.69",MEM LTS 18-64,PAYMENTS TO CLIENTS (DIRECT PAYMENTS),2103865484,1000061886
02.05.2024,Environment Neighbourhoods and Growth,ATALIAN SERVEST LTD,"44,266.10",CAPITAL PS (REGEN),CONSTRUCTION MAIN CONTRACT,2103864400,3000002240
07.05.2024,Governance and Assurance,CORPORATE DOCUMENT SERVICES LTD,"44,046.60",REPAIR AND MAINTENANCE SERVICES,PRINTING,5902634879,11324274
15.05.2024,Children and Adults,THE BOSCO CENTRE,"43,899.90",SPECIALIST POST-16,STATEMENTED FEES,2103870223,1000046317
13.05.2024,Housing,LIFTEC LIFTS LTD,"43,776.20",PAYMENTS CONTROL ACCOUNT - LIFTEC,I-WORLD CONTRACTORS HOLDING ACCOUNT,5902635925,1000057278
02.05.2024,Children and Adults,HC-ONE LTD (TOWER BRIDGE CARE HOME),"42,953.64",PHY LTS 65+,NURSING PLACEMENTS FEES,2103863612,1000067670
28.05.2024,DSO,SANDERSONS BUILDING SERVICES LTD,"42,499.13",SR - VOIDS TEAM,OTHER CONTRACTORS,2103875237,3000002065
18.05.2024,Environment Neighbourhoods and Growth,GUILDMORE LTD,"42,369.29",CAPITAL PS (REGEN),CONSTRUCTION MAIN CONTRACT -CERTIFICATED,2103869522,3000002150
02.05.2024,Environment Neighbourhoods and Growth,ATALIAN SERVEST LTD,"41,729.15",CAPITAL PS (REGEN),CONSTRUCTION MAIN CONTRACT,2103864400,3000002240
08.05.2024,Environment Neighbourhoods and Growth,ATALIAN SERVEST LTD,"41,196.26",CAPITAL PS (REGEN),CONSTRUCTION MAIN CONTRACT,2103866024,3000002240
16.05.2024,Environment Neighbourhoods and Growth,ATALIAN SERVEST LTD,"40,824.00",CAPITAL PS (REGEN),CONSTRUCTION MAIN CONTRACT,2103871215,3000002240
08.05.2024,Children and Adults,CORAM FAMILY,"40,764.90",ALS INTER AGENCY,EXTERNAL AGENCIES AND BODIES,5902635150,1000023579
31.05.2024,Children and Adults,CORAM FAMILY,"40,764.90",ALS INTER AGENCY,EXTERNAL AGENCIES AND BODIES,5902638278,1000023579
31.05.2024,Children and Adults,FOUNTAIN CARE LTD,"39,810.37",LD LTS 18-64,RESIDENTIAL CARE,2103799365,1000066815
17.05.2024,Finance,RIVERSIDE PARENTS & CARERS ASSN,"39,789.00",E&C ARTS,GRANTS,5902636319,1000060478
12.05.2024,Finance,BDO LLP,"39,270.44",INTERNAL AUDIT CONTRACTS,PAYMENTS FOR FINANCIAL SERVICES,5902635346,1000057898
17.05.2024,Corporate,ARLINGCLOSE LTD,"38,601.76",EXTERNAL INTEREST,DEBT MANAGEMENT EXPENSES,5902636800,1000077233
31.05.2024,Children and Adults,COUNTRY COURT CARE HOMES 2 LTD,"38,571.30",DISCHARGE TO ACCESS,NURSING PLACEMENTS FEES,2103878925,1000080172
31.05.2024,Housing,STENFORD PROPERTY LTD,"38,489.50",NIGHTLY TA (NSC),EXTERNAL AGENCIES AND BODIES,5902638309,1000074759
31.05.2024,Children and Adults,REDACTED PERSONAL DATA,"38,198.81",MEM LTS 18-64,PAYMENTS TO CLIENTS (DIRECT PAYMENTS),2103877566,1000087779
19.05.2024,Housing,DURKAN LTD,"38,153.36",CAPITAL PS (HRA),CONSTRUCTION MAIN CONTRACT -CERTIFICATED,2103871214,3000000960
15.05.2024,Strategy and Communities,PRIVATE PUBLIC LTD,"37,987.50",CORPORATE & DEPARTMENTAL EXPENDITURE,CONSULTANTS SERVICES,5902636302,1000081569
30.05.2024,Housing,NEC SOFTWARE SOLUTIONS UK LTD,"37,929.75",BUSINESS APPLICATIONS,SOFTWARE,5902638000,1000087043
31.05.2024,Children and Adults,REDACTED PERSONAL DATA,"37,488.75",LD LTS 18-64,PAYMENTS TO CLIENTS (DIRECT PAYMENTS),2103877570,1000074131
03.05.2024,Housing,RS REAL ESTATE LTD,"37,355.00",NIGHTLY TA (NSC),EXTERNAL AGENCIES AND BODIES,5902634660,1000072485
07.05.2024,Housing,KENT COUNTY COUNCIL - LASER,"37,351.15",HEATING ACCOUNT,GAS,5902634858,1000012926
28.05.2024,Housing,DMS PROPERTIES SERVICES LTD,"37,092.50",NIGHTLY TA (NSC),EXTERNAL AGENCIES AND BODIES,5902637661,1000081522
30.05.2024,Corporate,HITACHI SOLUTIONS EUROPE LIMITED,"37,068.76",ONE-OFF NNDR LEVY RELEASE,MEDICAL / HEALTH & SAFETY SERVICES,5902638041,1000084180
17.05.2024,Children and Adults,AGINCARE (SOUTHWARK) LIMITED,"35,356.77",PHY LTS 65+,RESIDENTIAL CARE,5902636348,1000089635
24.05.2024,Children and Adults,HAVERSTOCK,"35,313.76",CAPITAL PS (EDUCATION),CONSTRUCTION FEES - ARCHITECT,5902637586,1000074288
08.05.2024,Children and Adults,BLAK DIAMOND SOCIAL CARE LTD,"35,185.71",SEMI-IND LAC 16-17,EXTERNAL AGENCIES AND BODIES,2103866513,1000090161
31.05.2024,Environment Neighbourhoods and Growth,VEOLIA ES SOUTHWARK LTD,"35,131.60",WASTE PFI,VEHICLE FUEL,5902638428,1000056979
15.05.2024,Housing,TEATREE PROPERTY LIMITED,"35,115.00",NIGHTLY TA (NSC),EXTERNAL AGENCIES AND BODIES,5902636313,1000089741
15.05.2024,Environment Neighbourhoods and Growth,GLENDALE COUNTRYSIDE LTD,"35,078.25",TREES TERM CONTRACT,TREE MAINTENANCE,5902636257,1000070980
10.05.2024,Environment Neighbourhoods and Growth,METIS CONSULTANTS LIMITED,"35,051.00",CAPITAL PS (LEISURE),CONSTRUCTION FEES  - EXTERNAL,5902635301,1000086330
02.05.2024,Environment Neighbourhoods and Growth,HC-ONE LTD (TOWER BRIDGE CARE HOME),"34,668.13",NO RECOURSE TO PUBLIC FUNDS,NURSING PLACEMENTS FEES,2103863975,1000067670
20.05.2024,Children and Adults,REDACTED PERSONAL DATA,"34,438.54",PHY LTS 18-64,PAYMENTS TO CLIENTS (DIRECT PAYMENTS),2103871969,1000074840
17.05.2024,Corporate,OCO LIMITED,"34,346.88",VAT INPUTS - ADJUSTMENTS,VAT CONTROL ACCOUNT,2103871742,1006066
10.05.2024,Housing,KARAKUSEVIC CARSON ARCHITECTS,"34,170.00",CAPITAL PS (HRA),CONSTRUCTION FEES - ARCHITECT,5902634708,1000055150
24.05.2024,Housing,SMITH & BYFORD LTD,"34,060.29",CAPITAL PS (HRA),CONSTRUCTION,2103875003,3000000520
13.05.2024,Environment Neighbourhoods and Growth,VEOLIA ES SOUTHWARK LTD,"34,032.53",WASTE PFI,PFI/PPP PAYMENTS,5902635870,1000056979
17.05.2024,Environment Neighbourhoods and Growth,F M CONWAY LTD,"33,848.69",CAPITAL PS (LEISURE),CONSTRUCTION,2103871694,4001384
16.05.2024,Environment Neighbourhoods and Growth,ATALIAN SERVEST LTD,"33,669.00",CAPITAL PS (REGEN),CONSTRUCTION MAIN CONTRACT,2103871215,3000002240
10.05.2024,Children and Adults,SOUTHWARK CARERS,"33,333.33",OLDER PEOPLES HUBS,EXTERNAL AGENCIES AND BODIES,5902635404,1050893
13.05.2024,Housing,BONDS BUILDERS AND CONTRACTORS LTD,"33,261.52",CAPITAL PS (HRA),CONSTRUCTION MAIN CONTRACT -CERTIFICATED,2103869521,3000002137
20.05.2024,Children and Adults,OAKLEY HOUSE (KENT) LIMITED,"33,261.42",CHILDREN’S RESID,RESIDENTIAL CARE,2103871958,1000090039
31.05.2024,Finance,DIGNITY FUNERALS LTD,"33,150.00",CORONER'S,OTHER CONTRACTORS,5902638441,1000041373
16.05.2024,Environment Neighbourhoods and Growth,VEOLIA ES SOUTHWARK LTD,"32,713.94",WASTE PFI,VEHICLE FUEL,5902636666,1000056979
09.05.2024,Children and Adults,LONDON CARE LTD,"32,665.07",EXTRA CARE CONTRACT,HOMECARE - C&V,5902635255,1000003398
21.05.2024,Governance and Assurance,CORPORATE DOCUMENT SERVICES LTD,"32,607.45",REPAIR AND MAINTENANCE SERVICES,PRINTING,5902637092,11324274
28.05.2024,Housing,KINDLY PROPERTIES LTD,"31,989.25",NIGHTLY TA (NSC),EXTERNAL AGENCIES AND BODIES,5902637722,1000060734
15.05.2024,Environment Neighbourhoods and Growth,KINDLY PROPERTIES LTD,"31,862.00",NO RECOURSE TO PUBLIC FUNDS,ACCOMMODATION CHARGES,5902636417,1000060734
14.05.2024,Environment Neighbourhoods and Growth,PROPERTYPLACEBOOK LTD,"31,857.50",NO RECOURSE TO PUBLIC FUNDS,ACCOMMODATION CHARGES,5902636237,1000077817
29.05.2024,Governance and Assurance,MEDIGOLD HEALTH CONSULTANCY LIMITED,"31,829.50",OPTIMA HEALTH,MEDICAL / HEALTH & SAFETY SERVICES,5902637881,1000073324
13.05.2024,Environment Neighbourhoods and Growth,SITTARA LTD,"31,809.00",NO RECOURSE TO PUBLIC FUNDS,ACCOMMODATION CHARGES,5902635799,1000080857
30.05.2024,Housing,NEC SOFTWARE SOLUTIONS UK LTD,"31,250.00",BUSINESS APPLICATIONS,SOFTWARE,5902637981,1000087043
21.05.2024,Children and Adults,SOUTHSIDE PARTNERSHIP LTD,"31,213.98",S75 SUPHSG SCH LBS LEAD,EXTERNAL AGENCIES AND BODIES,5902637156,1716624
17.05.2024,Finance,LONDON BRIDGE BUSINESS IMPROVEMENT,"30,919.23",TEAM LONDON BRIDGE,EXTERNAL AGENCIES AND BODIES,5902635897,1000050879
29.05.2024,Children and Adults,STANDAGE & CO LTD,"30,806.71",CAPITAL PS (SOC SERV),CONSTRUCTION MAIN CONTRACT -CERTIFICATED,2103875434,4002817
16.05.2024,Environment Neighbourhoods and Growth,ATALIAN SERVEST LTD,"30,793.01",CAPITAL PS (REGEN),CONSTRUCTION MAIN CONTRACT,2103871215,3000002240
21.05.2024,Children and Adults,AMBITIOUS ABOUT AUTISM,"30,712.73",SPECIALIST POST-16,STATEMENTED FEES,2103872293,1000035784
08.05.2024,Corporate,CAMELOT PRIMARY SCHOOL,"30,650.48",EDUCATION VAT INPUTS,VAT CONTROL ACCOUNT,2103866547,5001000014
02.05.2024,Children and Adults,SPECTRA CARE LTD,"30,590.00",LD LTS 18-64,SUPPORTED LIVING,2103863983,1000086280
31.05.2024,Children and Adults,SPECTRA CARE LTD,"30,590.00",LD LTS 18-64,SUPPORTED LIVING,2103879607,1000086280
08.05.2024,Children and Adults,REDACTED PERSONAL DATA,"30,489.30",AP & HOSPITAL SCHLS,STATEMENTED FEES,2103866585,1000080844
15.05.2024,Housing,BRENCHLEY GARDENS MANAGEMENT ASSOCIATION,"30,327.00",BRENCHLEY GARDENS,M&M ALLOWANCE CO-OPS,5902636281,11324247
31.05.2024,Children and Adults,EQUINOX CARE,"30,060.00",SUB LTS 18-64,RESIDENTIAL CARE,2103879540,11297438
07.05.2024,Housing,NEW HOMES LAW LTD,"30,000.00",CAPITAL PS (HRA),CAPITAL GRANTS,2103864399,1000079479
21.05.2024,Environment Neighbourhoods and Growth,BOLINDA UK LTD,"30,000.00",STOCK SERVICES,BOOKS & PUBLICATIONS,5902637075,1000075655
13.05.2024,Housing,LIFTEC LIFTS LTD,"29,877.27",PAYMENTS CONTROL ACCOUNT - LIFTEC,I-WORLD CONTRACTORS HOLDING ACCOUNT,5902635923,1000057278
05.05.2024,Finance,EMERGING TALENT PROGRAMME,"29,700.00",SG TEAM ADMINISTRATION,TRAINING,5902634351,1000089510
31.05.2024,Children and Adults,LONDON BOROUGH OF HAVERING,"29,700.00",ALS INTER AGENCY,EXTERNAL AGENCIES AND BODIES,5902638343,1000002681
13.05.2024,Housing,LIFTEC LIFTS LTD,"29,417.64",PAYMENTS CONTROL ACCOUNT - LIFTEC,I-WORLD CONTRACTORS HOLDING ACCOUNT,5902635837,1000057278
28.05.2024,DSO,E & E BUILDING SERVICES LTD,"29,348.91",SR - VOIDS TEAM,OTHER CONTRACTORS,2103875236,3000001176
31.05.2024,Children and Adults,EVERYONE HEALTH LTD,"29,275.00",HEALTHY WEIGHT,EXTERNAL AGENCIES AND BODIES,5902638290,1000084159
29.05.2024,Children and Adults,ORCHARD HILL COLLEGE,"29,176.17",SPECIALIST POST-16,STATEMENTED FEES,2103875487,1000070978
10.05.2024,Children and Adults,BEORMUND PRIMARY SCHOOL,"29,167.00",LBS SPECIAL AND HOSP SCHLS,HIGH NEEDS - BASE FUNDING,5902635448,5001000008
28.05.2024,DSO,J KASH LTD,"29,131.67",SR COMMUNAL - DELIVERY TEAM,OTHER CONTRACTORS,2103875235,3000002219
21.05.2024,Corporate,PHOENIX PRIMARY SCHOOL,"29,025.76",EDUCATION VAT INPUTS,VAT CONTROL ACCOUNT,2103872357,5001000032
16.05.2024,Children and Adults,THE KENNEDY AND ELLIOTT PARTNERSHIP,"28,800.00",CHILDREN’S RESID,RESIDENTIAL CARE,2103871316,1000089711
29.05.2024,Children and Adults,CENMAC,"28,183.00",AP & HOSPITAL SCHLS,STATEMENTED FEES,2103875491,1000042131
29.05.2024,Children and Adults,CENMAC,"28,041.75",AP & HOSPITAL SCHLS,STATEMENTED FEES,2103875490,1000042131
02.05.2024,Environment Neighbourhoods and Growth,ATALIAN SERVEST LTD,"27,913.66",CAPITAL PS (REGEN),CONSTRUCTION MAIN CONTRACT,2103864400,3000002240
08.05.2024,Children and Adults,RBS INVOICE FINANCE LTD,"27,880.82",SPECIALIST POST-16,STATEMENTED FEES,2103866563,1000057176
21.05.2024,Children and Adults,BEYONDAUTISM,"27,851.67",NMSS/ INDEP SPECIAL,STATEMENTED FEES,2103872310,1000080312
31.05.2024,Children and Adults,PEOPLE PLUS GROUP LTD (INDEPENDENT LIVING SERVICES),"27,799.10",LD LTS 18-64 AAD,PAYMENTS TO CLIENTS (DIRECT PAYMENTS),2103877368,1000061886
29.05.2024,DSO,SPECTRA-GLAZE SERVICES,"27,781.45",SR COMMUNAL - DELIVERY TEAM,OTHER CONTRACTORS,5902637948,1000077605
30.05.2024,Children and Adults,TUTELAGE CARE GROUP LTD,"27,740.29",CHILDREN’S RESID,RESIDENTIAL CARE,2103876865,1000088232
07.05.2024,Environment Neighbourhoods and Growth,DIAMOND PROPERTY MANAGEMENT LTD,"27,590.00",NO RECOURSE TO PUBLIC FUNDS,ACCOMMODATION CHARGES,5902634850,1000088789
18.05.2024,Environment Neighbourhoods and Growth,GLENMAN CORPORATION LTD,"27,515.81",CAPITAL PS (REGEN),CONSTRUCTION MAIN CONTRACT -CERTIFICATED,2103871160,3000002230
03.05.2024,Children and Adults,WEST HEATH SCHOOL,"27,216.00",NMSS/ INDEP SPECIAL,STATEMENTED FEES,2103865816,1000018362
29.05.2024,Children and Adults,CENMAC,"27,213.50",AP & HOSPITAL SCHLS,STATEMENTED FEES,2103875489,1000042131
24.05.2024,Children and Adults,GOODRICH PRIMARY SCHOOL,"26,745.39",FREE HEALTHY SCHOOL MEALS,SCHOOLS CAPITATION,2103873851,5001000028
30.05.2024,Children and Adults,CHILDHOOD FIRST,"26,739.71",CHILDREN’S RESID,RESIDENTIAL CARE,2103876856,1000076330
24.05.2024,Environment Neighbourhoods and Growth,C L ROADMARKINGS LTD,"26,654.17",ENGINEERING CRAFTS,OTHER CONTRACTORS,2103875008,3000000825
09.05.2024,Strategy and Communities,THE GALLERY PARTNERSHIP LTD,"26,600.00",VCS COMM & SUPP TEAM,SOFTWARE,5902635258,1000091028
30.05.2024,Children and Adults,ASPIRE HOUSE LTD,"26,571.42",CHILDREN’S RESID,RESIDENTIAL CARE,2103876870,1000080373
16.05.2024,Children and Adults,INTEGRATED FOSTERING SERVICES LTD,"26,348.70",FRIENDS & FAMILY FOSTERING,EXTERNAL AGENCIES AND BODIES,2103871311,1000082605
16.05.2024,Children and Adults,INTEGRATED FOSTERING SERVICES LTD,"26,348.70",FRIENDS & FAMILY FOSTERING,EXTERNAL AGENCIES AND BODIES,2103871312,1000082605
30.05.2024,Housing,RESIDENZA PROPERTIES TOOTING LTD,"26,280.00",NIGHTLY TA (NSC),EXTERNAL AGENCIES AND BODIES,5902638015,1000090775
14.05.2024,Environment Neighbourhoods and Growth,ZFA ACCOMMODATION LTD,"26,250.00",NO RECOURSE TO PUBLIC FUNDS,ACCOMMODATION CHARGES,5902636187,1000082620
17.05.2024,Environment Neighbourhoods and Growth,RENAISI LTD,"26,246.01",CHIEF EXECUTIVE'S OFFICE,EXTERNAL AGENCIES AND BODIES,5902636829,1000022051
14.05.2024,Children and Adults,IMAGO LTD,"26,233.75",YOUNG CARERS SERVICE,EXTERNAL AGENCIES AND BODIES,5902636233,1000076913
21.05.2024,Children and Adults,BEYONDAUTISM,"26,075.00",NMSS/ INDEP SPECIAL,STATEMENTED FEES,2103872304,1000080312
21.05.2024,Children and Adults,BEYONDAUTISM,"26,075.00",NMSS/ INDEP SPECIAL,STATEMENTED FEES,2103872305,1000080312
24.05.2024,Environment Neighbourhoods and Growth,BUDMAX CONSTRUCTION LTD,"25,968.00",GRANGE DOORS,OTHER CONTRACTORS,2103875011,3000001936
21.05.2024,Children and Adults,REDACTED PERSONAL DATA,"25,966.67",PHY LTS 65+,RESIDENTIAL CARE,2103872387,1000091117
31.05.2024,Strategy and Communities,LOCAL INFORMATION UNIT LTD,"25,958.00",CORPORATE & DEPARTMENTAL EXPENDITURE,SUBSCRIPTIONS,5902638200,1000021393
20.05.2024,Children and Adults,SMITH & BYFORD LTD,"25,953.18",CAPITAL PS (EDUCATION),CONSTRUCTION,2103871744,3000000520
24.05.2024,Housing,EASYMOVE EA LIMITED,"25,936.71",PSL PLACEMENTS,EXTERNAL AGENCIES AND BODIES,5902637614,1000066859
30.05.2024,Children and Adults,TUTELAGE CARE HARTLEY LTD,"25,735.39",CHILDREN’S RESID,RESIDENTIAL CARE,2103876862,1000088664
10.05.2024,Housing,LONDON CARE LTD,"25,713.45",CAPITAL PS (HRA),CONSTRUCTION MAIN CONTRACT -CERTIFICATED,5902635428,1000003398
10.05.2024,Children and Adults,KINTORE WAY CHILDRENS CENTRE,"25,571.00",KINTORE WAY CHILDRENS CENTRE,EARLY YEARS - 3 AND 4 YEAR OLDS,5902635528,5001000047
29.05.2024,Environment Neighbourhoods and Growth,WIFI SPARK LTD,"25,535.52",IT DEVELOPMENT,COMMS & COMPUTING CONTRACT CHARGES,5902637921,1000069461
03.05.2024,Housing,KINDLY PROPERTIES LTD,"25,338.75",NIGHTLY TA (NSC),EXTERNAL AGENCIES AND BODIES,5902634672,1000060734
10.05.2024,Children and Adults,DULWICH WOOD CHILDRENS CENTRE,"25,287.00",DULWICH WOOD NURSERY SCHOOL,EARLY YEARS - 3 AND 4 YEAR OLDS,5902635624,5001000099
22.05.2024,Children and Adults,OWNLIFE RESIDENTIAL LTD,"25,285.71",CHILDREN’S RESID,RESIDENTIAL CARE,2103874413,1000085398
23.05.2024,Environment Neighbourhoods and Growth,COTTRELL AND VERMEULEN ARCH LTD,"25,228.67",CAPITAL PS (REGEN),CONSTRUCTION FEES,5902637488,1000012119
31.05.2024,Housing,SALTASH ENTERPRISES LTD,"25,160.80",CAPITAL PS (HRA),CONSTRUCTION MAIN CONTRACT -CERTIFICATED,2103878747,4013605
20.05.2024,Environment Neighbourhoods and Growth,WATERMAN INFRASTRUCTURE & ENVIRONMENT LTD,"25,102.26",CAPITAL PS (LEISURE),CONSTR'N SUB CONTRACT - NON CERTIFICATED,5902637021,1000060529
02.05.2024,Environment Neighbourhoods and Growth,ATALIAN SERVEST LTD,"25,000.25",CAPITAL PS (REGEN),CONSTRUCTION MAIN CONTRACT,2103864400,3000002240
02.05.2024,Environment Neighbourhoods and Growth,ATALIAN SERVEST LTD,"24,999.51",CAPITAL PS (REGEN),CONSTRUCTION MAIN CONTRACT,2103864400,3000002240
16.05.2024,Children and Adults,THE KENNEDY AND ELLIOTT PARTNERSHIP,"24,800.00",CHILDREN’S RESID,RESIDENTIAL CARE,2103871319,1000089711
30.05.2024,Children and Adults,DOG KENNEL HILL PRIMARY SCHOOL,"24,785.12",DSG CONTINGENCY,SCHOOLS CAPITATION,2103876646,1000089861
16.05.2024,Children and Adults,INTEGRATED FOSTERING SERVICES LTD,"24,771.30",FRIENDS & FAMILY FOSTERING,EXTERNAL AGENCIES AND BODIES,2103871313,1000082605
09.05.2024,Environment Neighbourhoods and Growth,KENT COUNTY COUNCIL - LASER,"24,572.98",SDM BUDGET,ELECTRICITY,5902635239,1000012926
31.05.2024,DSO,ARMINA LTD,"24,545.15",CAMBERWELL DD,OTHER CONTRACTORS,2103876947,3000002121
28.05.2024,Environment Neighbourhoods and Growth,QUADRON SERVICES LIMITED,"24,450.00",CEMETERIES,GROUNDS MAINTENANCE,5902637742,1000066528
31.05.2024,Children and Adults,ACHIEVE TOGETHER SERVICES LIMITED,"24,438.62",LD LTS 18-64,SUPPORTED LIVING,2103879930,1000089975
10.05.2024,Children and Adults,JOHN RUSKIN PRIMARY SCHOOL,"24,179.00",LBS MAINSTREAM,HIGH NEEDS - TOP UP FUNDING,5902635517,5001000040
23.05.2024,Environment Neighbourhoods and Growth,LEE VALLEY REGIONAL PARK AUTHORITY,"24,149.47",LEE VALLEY LEVY,LEVIES,5902637393,11020407
22.05.2024,Children and Adults,UNITY RESIDENTIAL CARE LTD,"23,922.85",CHILDREN’S RESID,RESIDENTIAL CARE,2103872002,1000091143
31.05.2024,Children and Adults,SALUTEM SHARED SERVICES II LIMITED,"23,907.31",LD LTS 18-64,SUPPORTED LIVING,2103878956,1000088055
10.05.2024,Children and Adults,DULWICH WOOD CHILDRENS CENTRE,"23,565.00",NURSERY ED GRANT 3 AND 4 YR OLDS,EARLY YEARS - 3 AND 4 YEAR OLDS,5902635621,5001000099
21.05.2024,Children and Adults,BEYONDAUTISM,"23,560.00",NMSS/ INDEP SPECIAL,STATEMENTED FEES,2103872297,1000080312
21.05.2024,Children and Adults,BEYONDAUTISM,"23,560.00",NMSS/ INDEP SPECIAL,STATEMENTED FEES,2103872298,1000080312
21.05.2024,Children and Adults,BEYONDAUTISM,"23,560.00",NMSS/ INDEP SPECIAL,STATEMENTED FEES,2103872299,1000080312
21.05.2024,Children and Adults,BEYONDAUTISM,"23,560.00",NMSS/ INDEP SPECIAL,STATEMENTED FEES,2103872300,1000080312
21.05.2024,Children and Adults,BEYONDAUTISM,"23,560.00",NMSS/ INDEP SPECIAL,STATEMENTED FEES,2103872301,1000080312
21.05.2024,Children and Adults,BEYONDAUTISM,"23,560.00",NMSS/ INDEP SPECIAL,STATEMENTED FEES,2103872303,1000080312
21.05.2024,Children and Adults,BEYONDAUTISM,"23,560.00",NMSS/ INDEP SPECIAL,STATEMENTED FEES,2103872309,1000080312
21.05.2024,Children and Adults,BEYONDAUTISM,"23,560.00",NMSS/ INDEP SPECIAL,STATEMENTED FEES,2103872321,1000080312
03.05.2024,Children and Adults,FAMILY SOCIETY,"23,491.00",ALS INTER AGENCY,EXTERNAL AGENCIES AND BODIES,5902634797,1000062924
10.05.2024,Children and Adults,BLANDFORD HOUSE UK LTD,"23,330.00",DISABILITIES LAC,EXTERNAL AGENCIES AND BODIES,2103867551,1000088662
28.05.2024,Housing,SK HOUSING LTD,"23,256.00",NIGHTLY TA (NSC),EXTERNAL AGENCIES AND BODIES,5902637733,1000070716
03.05.2024,Environment Neighbourhoods and Growth,HOMELY HOUSING LETS LTD,"23,230.60",NO RECOURSE TO PUBLIC FUNDS,ACCOMMODATION CHARGES,5902634690,1000050013
20.05.2024,Children and Adults,INTERPRETING DIRECT CO (UK) LTD,"23,169.00",CENTRAL SUPPORT,INTERPRETING SERVICES,5902636896,1000070133
08.05.2024,Corporate,THE ST THOMAS THE APOSTLE COLLEGE,"23,107.49",EDUCATION VAT INPUTS,VAT CONTROL ACCOUNT,2103866542,5001000074
08.05.2024,Children and Adults,WANDSWORTH COUNCIL,"23,003.41",OTHER LA SPECIAL,STATEMENTED FEES,2103845079,1000020692
20.05.2024,Children and Adults,INVISION SERVICES LIMITED,"23,000.00",CENTRAL COSTS - SEN,TRAINING,5902637018,1000091115
24.05.2024,Children and Adults,DULWICH WOOD PRIMARY SCHOOL,"22,989.01",FREE HEALTHY SCHOOL MEALS,SCHOOLS CAPITATION,2103873847,5001000042
22.05.2024,Children and Adults,RIVERSTON SCHOOL,"22,979.50",INDEP MAINSTREAM,STATEMENTED FEES,2103873889,11213696
28.05.2024,Housing,STEF & PHILIPS LTD,"22,933.00",NIGHTLY TA (NSC),EXTERNAL AGENCIES AND BODIES,5902637786,1000088522
04.05.2024,Children and Adults,BRITISH INSTITUE OF LEARNING,"22,895.00",SHORT BREAKS INNV FUND,EXTERNAL AGENCIES AND BODIES,5902633801,1000088953
20.05.2024,Finance,MERRELL PUBLISHERS LTD,"22,875.00",STAKEHOLDER ENGAGEMENT,MARKETING & PUBLICITY SERVICES,5902636687,1000044615
21.05.2024,Children and Adults,BEYONDAUTISM,"22,872.67",NMSS/ INDEP SPECIAL,STATEMENTED FEES,2103872302,1000080312
03.05.2024,Children and Adults,MAGIC ROUNDABOUT NURSERIES LTD,"22,865.70",NURSERY ED GRANT 3 AND 4 YR OLDS,GRANTS,2103865856,1000045128
02.05.2024,Environment Neighbourhoods and Growth,TRANSPORT FOR LONDON,"22,818.57",CAPITAL PS (LEISURE),CONSTRUCTION FEES  - EXTERNAL,5902633430,1000023986
23.05.2024,Children and Adults,ACCESS UK LTD,"22,811.81",C&AS SOFTWARE APPS,SOFTWARE,5902636656,1000088347
29.05.2024,Finance,INNER CIRCLE CONSULTING,"22,656.80",FINANCE DIRECTOR,CONSULTANTS SERVICES,5902637854,1000080627
17.05.2024,Children and Adults,URBAN MISSION SCHOOLS AND COMMUNITY,"22,579.90",INDEP MAINSTREAM,STATEMENTED FEES,2103871393,1000086898
30.05.2024,DSO,CRATUS BUILDING SERVICES LIMITED,"22,433.50",SR TEMPORARY ACCOMMODATION DD,OTHER CONTRACTORS,2103876572,3000001055
02.05.2024,Children and Adults,BRANDON TRUST,"22,415.72",LD LTS 18-64,SUPPORTED LIVING,2103863618,1000042417
22.05.2024,Children and Adults,UNITY RESIDENTIAL CARE LTD,"22,328.00",CHILDREN’S RESID,RESIDENTIAL CARE,2103872001,1000091143
09.05.2024,Environment Neighbourhoods and Growth,C L ROADMARKINGS LTD,"22,159.59",ENGINEERING CRAFTS,OTHER CONTRACTORS,2103866746,3000000825
30.05.2024,Children and Adults,SWK DISABLEMENT ASSN,"22,155.00",ALL AGE DISABILITIES HUBS,EXTERNAL AGENCIES AND BODIES,5902638033,1000011698
30.05.2024,Children and Adults,STRIDES CHILDCARE SERVICES LTD,"22,122.83",CHILDREN’S RESID,RESIDENTIAL CARE,2103876859,1000090771
30.05.2024,Children and Adults,KITES CHILDREN'S SERVICES LIMITED,"22,120.72",CHILDREN’S RESID,RESIDENTIAL CARE,2103876868,1000085930
21.05.2024,Children and Adults,BEYONDAUTISM,"21,991.67",NMSS/ INDEP SPECIAL,STATEMENTED FEES,2103872294,1000080312
21.05.2024,Children and Adults,BEYONDAUTISM,"21,991.67",NMSS/ INDEP SPECIAL,STATEMENTED FEES,2103872295,1000080312
21.05.2024,Children and Adults,BEYONDAUTISM,"21,991.67",NMSS/ INDEP SPECIAL,STATEMENTED FEES,2103872296,1000080312
16.05.2024,Children and Adults,NHS SOUTH EAST LONDON CCG,"21,951.71",PARTNERSHIP COMMISSIONING TEAM,EXTERNAL AGENCIES AND BODIES,5902636689,1000085592
30.05.2024,Finance,CLUTTONS LLP,"21,950.00",STRATEGIC APPLICATIONS,PROFESSIONAL FEES,5902638059,1000028140
10.05.2024,Children and Adults,THE GROVE CHILDRENS CENTRE,"21,946.00",THE GROVE NURSERY SCHOOL,EARLY YEARS - 3 AND 4 YEAR OLDS,5902635612,5001000090
03.05.2024,Housing,RSM RISK ASSURANCE SERVICES LLP,"21,890.00",GF SUPPORT SERVICES,PROFESSIONAL FEES,5902634680,1000050690
02.05.2024,Children and Adults,HESLEY GROUP LIMITED,"21,880.68",LD LTS 18-64,SUPPORTED LIVING,2103863394,1000089729
21.05.2024,Children and Adults,BEYONDAUTISM,"21,783.33",NMSS/ INDEP SPECIAL,STATEMENTED FEES,2103872306,1000080312
21.05.2024,Children and Adults,BEYONDAUTISM,"21,783.33",NMSS/ INDEP SPECIAL,STATEMENTED FEES,2103872307,1000080312
21.05.2024,Children and Adults,BEYONDAUTISM,"21,783.33",NMSS/ INDEP SPECIAL,STATEMENTED FEES,2103872308,1000080312
21.05.2024,Children and Adults,BEYONDAUTISM,"21,783.33",NMSS/ INDEP SPECIAL,STATEMENTED FEES,2103872311,1000080312
20.05.2024,Children and Adults,REDACTED PERSONAL DATA,"21,700.00",CHILDREN’S RESID,RESIDENTIAL CARE,2103871963,1000057909
22.05.2024,Children and Adults,RIVERSTON SCHOOL,"21,671.00",INDEP MAINSTREAM,STATEMENTED FEES,2103873887,11213696
10.05.2024,Children and Adults,BESSEMER GRANGE PRIMARY SCHOOL,"21,579.00",NURSERY ED GRANT 3 AND 4 YR OLDS,EARLY YEARS - 3 AND 4 YEAR OLDS,5902635451,5001000009
30.05.2024,Children and Adults,HEADSTART RESIDENTIAL CARE LIMITED,"21,478.66",CHILDREN’S RESID,RESIDENTIAL CARE,2103876869,1000088836
10.05.2024,Children and Adults,STRIDES CHILDCARE SERVICES LTD,"21,407.15",CHILDREN’S RESID,RESIDENTIAL CARE,2103867521,1000090771
15.05.2024,Environment Neighbourhoods and Growth,GLENDALE COUNTRYSIDE LTD,"21,340.95",TREES TERM CONTRACT,TREE MAINTENANCE,5902636253,1000070980
19.05.2024,Environment Neighbourhoods and Growth,CAMBRIDGE ENVIRONMENTAL RESEARCH,"21,240.00",CAPITAL PS (LEISURE),"PLANT, MACHINERY & EQUIPMENT ACQUISITION",5902636323,1000004793
20.05.2024,Children and Adults,MCRAE RESIDENTIAL CARE SERVICES LTD,"21,150.90",CHILDREN’S RESID,RESIDENTIAL CARE,2103871961,1000050558
09.05.2024,Environment Neighbourhoods and Growth,WRITTLE FOREST CONSULTANCY LTD,"21,150.00",TREES PRINCIPAL ROADS,OTHER R&M,5902635005,1000090979
02.05.2024,Environment Neighbourhoods and Growth,CITYGLEN LTD,"21,077.50",UKRAINIAN REFUGEES,ACCOMMODATION CHARGES,5902634634,1000026239
11.05.2024,Environment Neighbourhoods and Growth,CITYGLEN LTD,"21,077.50",NO RECOURSE TO PUBLIC FUNDS,ACCOMMODATION CHARGES,5902634873,1000026239
16.05.2024,Environment Neighbourhoods and Growth,FIELD FISHER WATERHOUSE,"21,050.00",CAMBERWELL LIBRARY,PROFESSIONAL FEES,5902636621,1000047449
03.05.2024,Children and Adults,FRESH START CARE SOLUTIONS LTD,"20,785.71",SEMI-IND LAC 16-17,EXTERNAL AGENCIES AND BODIES,2103864481,1000070537
08.05.2024,Corporate,ENGLISH MARTYRS RC PRIMARY SCHOOL,"20,768.19",EDUCATION VAT INPUTS,VAT CONTROL ACCOUNT,2103866537,5001000030
21.05.2024,Children and Adults,BEYONDAUTISM,"20,759.16",NMSS/ INDEP SPECIAL,STATEMENTED FEES,2103872320,1000080312
30.05.2024,Children and Adults,LIONCARE LIMITED,"20,736.30",CHILDREN’S RESID,RESIDENTIAL CARE,2103876854,1000065330
06.05.2024,Housing,VEOLIA ES SOUTHWARK LTD,"20,733.20",CAPITAL PS (HRA),CONSTRUCTION SITE COSTS,5902634517,1000056979
31.05.2024,Corporate,GROUP FINANCE SOLUTIONS CONSULTING,"20,710.00",ERP PROGRAMME BUDGET,PROFESSIONAL FEES,5902638196,1000090315
16.05.2024,Children and Adults,SUPREME EDUCATION LTD,"20,692.00",ALTERNATIVE PROVISION,EXTERNAL AGENCIES AND BODIES,5902636653,1000089065
31.05.2024,Children and Adults,PEOPLE PLUS GROUP LTD (INDEPENDENT LIVING SERVICES),"20,683.04",LD LTS 18-64,PAYMENTS TO CLIENTS (DIRECT PAYMENTS),2103877779,1000061886
15.05.2024,Finance,SOUTH BANK BID LTD,"20,653.65",SOUTH BANK,EXTERNAL AGENCIES AND BODIES,5902636428,1000075023
10.05.2024,Children and Adults,NELL GWYNN NURSERY SCHOOL,"20,580.00",NURSERY ED GRANT 2YR OLDS,EARLY YEARS - 2 YEAR OLD,5902635533,5001000049
03.05.2024,Children and Adults,FRESH IDEAS & SOLUTIONS SERVICES CIC,"20,500.08",SPECIALIST CARE,PAYMENTS TO CLIENTS (DIRECT PAYMENTS),2103865719,1000070832
31.05.2024,Environment Neighbourhoods and Growth,LEASEPLAN UK LTD,"20,451.90",COMMERCIAL VEH CTRL A/C,HIRED VEHICLES,5902638244,11014756
11.05.2024,Housing,RELIANCE RESIDENTIAL,"20,448.91",PSL PLACEMENTS,EXTERNAL AGENCIES AND BODIES,5902634722,1000084814
31.05.2024,Children and Adults,ALWAYS INCLUSIVE LTD,"20,412.23",LD LTS 18-64,SUPPORTED LIVING,2103879348,1000088268
30.05.2024,Children and Adults,ROCKSTEADY CARE LTD,"20,366.67",CHILDREN’S RESID,RESIDENTIAL CARE,2103876858,1000089573
08.05.2024,Children and Adults,INCLUSIVE CHILDREN SERVICES LTD,"20,357.10",CHILDREN’S RESID,RESIDENTIAL CARE,2103866490,1000091094
03.05.2024,Children and Adults,LONDON CARE LTD,"20,349.04",TRANSFORMING COM E,HOMECARE - C&V,5902634339,1000003398
31.05.2024,Children and Adults,ACHIEVE TOGETHER SERVICES LIMITED,"20,284.80",LD LTS 18-64,RESIDENTIAL CARE,2103879383,1000089975
31.05.2024,Environment Neighbourhoods and Growth,LEASEPLAN UK LTD,"20,209.95",COMMERCIAL VEH CTRL A/C,HIRED VEHICLES,5902638175,11014756
31.05.2024,Environment Neighbourhoods and Growth,LEASEPLAN UK LTD,"20,209.95",COMMERCIAL VEH CTRL A/C,HIRED VEHICLES,5902638176,11014756
31.05.2024,Environment Neighbourhoods and Growth,LEASEPLAN UK LTD,"20,209.95",COMMERCIAL VEH CTRL A/C,HIRED VEHICLES,5902638213,11014756
07.05.2024,Children and Adults,LONDON BOROUGH OF BEXLEY,"20,207.00",SCH TRANS – TRAVEL,RECOUPMENT,5902634903,1000015275
29.05.2024,Housing,STEF & PHILIPS LTD,"20,205.00",NIGHTLY TA (NSC),EXTERNAL AGENCIES AND BODIES,5902637799,1000088522
13.05.2024,Children and Adults,HATS GROUP LTD,"20,188.56",SCH TRANS – TRAVEL,CAB FARES,5902635856,1000042743
15.05.2024,Environment Neighbourhoods and Growth,BEAM UP LTD,"20,000.00",UKRAINIAN REFUGEES,OTHER PAYMENTS FOR CLIENTS,5902636267,1000083178
15.05.2024,Environment Neighbourhoods and Growth,THE UK CAREER ACADEMY FOUNDATION,"20,000.00",EMPLOYMENT COMMISSIONING,REFRESHMENTS FOR MEETINGS,5902636438,1000075822
16.05.2024,Children and Adults,ALLPAY LTD (CHILDREN - PETTY CASH),"20,000.00",C & F FINANCE TEAM,OTHER PAYMENTS FOR CLIENTS,5902636576,1000079888
21.05.2024,Environment Neighbourhoods and Growth,BOLINDA UK LTD,"20,000.00",STOCK SERVICES,BOOKS & PUBLICATIONS,5902637076,1000075655
24.05.2024,Children and Adults,ALLPAY LTD (CHILDREN - INSTANT ISSU,"20,000.00",C & F FINANCE TEAM,OTHER PAYMENTS FOR CLIENTS,5902637646,1000079883
31.05.2024,Children and Adults,DIAGRAMA HEALTH CARE,"19,921.98",LD LTS 18-64,RESIDENTIAL CARE,2103879709,1000075492
24.05.2024,Children and Adults,ALFRED SALTER PRIMARY SCHOOL,"19,833.66",FREE HEALTHY SCHOOL MEALS,SCHOOLS CAPITATION,2103873842,5001000005
14.05.2024,Children and Adults,SERENITY SCHOOL ELTHAM LTD,"19,667.00",NMSS/ INDEP SPECIAL,STATEMENTED FEES,2103870162,1000088850
17.05.2024,Governance and Assurance,ATALIAN SERVEST LTD,"19,649.96",FM SERVICES BY INTERSERVE,BUILDING R&M,5902636750,1000088775
03.05.2024,Children and Adults,WEST HEATH SCHOOL,"19,600.00",NMSS/ INDEP SPECIAL,STATEMENTED FEES,2103865817,1000018362
23.05.2024,Environment Neighbourhoods and Growth,SUSTRANS LTD,"19,460.00",STREETS FOR PEOPLE - CONTROLLED PARKING,CONSULTANTS SERVICES,5902637489,1000047385
31.05.2024,Children and Adults,ST JOHNS NURSING HOME LTD,"19,423.99",PHY LTS 18-64,NURSING PLACEMENTS FEES,2103879451,1000047405
28.05.2024,Environment Neighbourhoods and Growth,BOUYGUES (UK) LTD,"19,291.08",CAPITAL PS (REGEN),CONSTRUCTION MAIN CONTRACT -CERTIFICATED,2103875273,3000002179
29.05.2024,Environment Neighbourhoods and Growth,CONSTELLIA PUBLIC LIMITED,"19,276.04",TREES TERM CONTRACT,TREE MAINTENANCE,5902637798,1000088137
24.05.2024,Children and Adults,CAMELOT PRIMARY SCHOOL,"19,232.64",FREE HEALTHY SCHOOL MEALS,SCHOOLS CAPITATION,2103873845,5001000014
31.05.2024,Children and Adults,ROSEDENE NURSING HOME,"19,150.15",LD LTS 18-64,RESIDENTIAL CARE,2103879918,1163215
15.05.2024,Strategy and Communities,PUBLIC PERSPECTIVES LTD,"19,025.00",CHANGE,CONSULTANTS SERVICES,5902636256,1000089498
02.05.2024,Children and Adults,ALWAYS INCLUSIVE LTD,"18,961.18",LD LTS 18-64,SUPPORTED LIVING,2103864285,1000088268
31.05.2024,Children and Adults,LEWISHAM AND GREENWICH NHS TRUST,"18,877.67",SEXUAL HEALTH - STI,MEDICAL / HEALTH & SAFETY SERVICES,5902638501,1000076183
08.05.2024,Children and Adults,HIGHVIEW CARE LTD,"18,857.10",CHILDREN’S RESID,RESIDENTIAL CARE,2103866489,1000089728
31.05.2024,Children and Adults,GROVE CARE PARTNERSHIP LIMITED,"18,814.16",LD LTS 18-64,RESIDENTIAL CARE,2103879445,1000052893
14.05.2024,Children and Adults,AGINCARE (SOUTHWARK) LIMITED,"18,780.00",CAPITAL PS (SOC SERV),"PLANT, MACHINERY & EQUIPMENT ACQUISITION",5902636074,1000089635
02.05.2024,Children and Adults,ALWAYS INCLUSIVE LTD,"18,620.00",LD LTS 18-64,SUPPORTED LIVING,2103863694,1000088268
10.05.2024,Environment Neighbourhoods and Growth,METIS CONSULTANTS LIMITED,"18,608.33",CAPITAL PS (LEISURE),CONSTR'N SUB CONTRACT - NON CERTIFICATED,5902634514,1000086330
02.05.2024,Children and Adults,POSITIVE SOLUTIONS KENT,"18,550.72",LD LTS 18-64,RESIDENTIAL CARE,2103863772,1000090389
31.05.2024,Children and Adults,POSITIVE SOLUTIONS KENT,"18,550.72",LD LTS 18-64,RESIDENTIAL CARE,2103879426,1000090389
29.05.2024,Finance,FEREDAY POLLARD ARCHITECTS LIMITED,"18,503.00",MASTER PLAN - H/WAY & TRANS INTERCHANGE,PROFESSIONAL FEES,5902637894,1000087240
24.05.2024,Children and Adults,ENGLISH MARTYRS RC PRIMARY SCHOOL,"18,481.36",FREE HEALTHY SCHOOL MEALS,SCHOOLS CAPITATION,2103873848,5001000030
24.05.2024,Housing,BETHEL ROCK LTD,"18,481.33",PSL PLACEMENTS,EXTERNAL AGENCIES AND BODIES,5902637517,1000080864
08.05.2024,Housing,GAS ADVISORY SERVICES LIMITED,"18,457.93",PHOENIX,I-WORLD CONTRACTORS HOLDING ACCOUNT,5902635189,1000064649
10.05.2024,Children and Adults,THE GROVE CHILDRENS CENTRE,"18,434.00",NURSERY ED GRANT 3 AND 4 YR OLDS,EARLY YEARS - 3 AND 4 YEAR OLDS,5902635609,5001000090
30.05.2024,Governance and Assurance,KENT COUNTY COUNCIL - LASER,"18,330.39",QUEENS RD 1 (BLOCK F),ELECTRICITY,5902637983,1000012926
16.05.2024,Environment Neighbourhoods and Growth,ATALIAN SERVEST LTD,"18,262.74",CAPITAL PS (REGEN),CONSTRUCTION MAIN CONTRACT,2103871215,3000002240
23.05.2024,Children and Adults,KEYS PCE LTD,"18,240.00",CHILDREN’S RESID,RESIDENTIAL CARE,2103874969,1000080090
31.05.2024,Children and Adults,WELLSPRING CARE HOMES LIMITED,"18,232.83",LD LTS 18-64 AAD,SUPPORTED LIVING,2103879460,1000088216
03.05.2024,Children and Adults,WESTGATE LIFESTYLE PROJECT LTD,"18,214.20",CHILDREN’S RESID,RESIDENTIAL CARE,2103864447,1000089215
13.05.2024,Finance,T BROWN GROUP  LTD,"18,199.00",CAPITAL PS (STRAT SERV),ICT ACQUISITION,2103869523,3000000310
10.05.2024,Children and Adults,RYE OAK PRIMARY SCHOOL,"18,198.00",LBS RB / SEN UNIT,HIGH NEEDS - TOP UP FUNDING,5902635558,5001000059
29.05.2024,Children and Adults,ORCHARD HILL COLLEGE,"18,171.31",SPECIALIST POST-16,STATEMENTED FEES,2103875461,1000070978
07.05.2024,Environment Neighbourhoods and Growth,GERALD EVE LLP,"18,150.00",PFI PROJECT,PROFESSIONAL FEES,5902634864,1000077002
31.05.2024,Children and Adults,SALUTEM SHARED SERVICES III LTD,"18,070.50",PHY LTS 65+,RESIDENTIAL CARE,2103879015,1000088099
08.05.2024,Corporate,ALFRED SALTER PRIMARY SCHOOL,"18,032.78",EDUCATION VAT INPUTS,VAT CONTROL ACCOUNT,2103866538,5001000005
31.05.2024,Children and Adults,TAVISTOCK & PORTMAN NHS FOUNDATION TRUST ,"18,000.00",FDAC,EXTERNAL AGENCIES AND BODIES,5902638494,1991321
29.05.2024,Children and Adults,ORCHARD HILL COLLEGE,"17,982.66",SPECIALIST POST-16,STATEMENTED FEES,2103875477,1000070978
28.05.2024,Children and Adults,ISLINGTON COUNCIL,"17,811.00",OTHER LA SPECIAL,"EXAM FEES, SCHOOLS ONLY",2103875286,11204697
28.05.2024,Children and Adults,ISLINGTON COUNCIL,"17,811.00",OTHER LA SPECIAL,"SCHOOLS CAPITATION, OTHER GRANTS",2103875287,11204697
02.05.2024,Housing,ASTOR BANNERMAN (MEDICAL) LTD,"17,726.00",CAPITAL PS (HRA),UTILITIES INSTALLATION,5902634498,1000033892
29.05.2024,Housing,NATIONWIDE ACCOMMODATION,"17,705.00",TA PLACEMENTS,EXTERNAL AGENCIES AND BODIES,5902637841,1000076112
09.05.2024,Environment Neighbourhoods and Growth,KENT COUNTY COUNCIL - LASER,"17,691.01",SDM BUDGET,ELECTRICITY,5902635234,1000012926
24.05.2024,Children and Adults,ALBION PRIMARY SCHOOL,"17,579.83",FREE HEALTHY SCHOOL MEALS,SCHOOLS CAPITATION,2103873841,5001000000
21.05.2024,Corporate,OLIVER GOLDSMITH PRIMARY SCHOOL,"17,555.91",EDUCATION VAT INPUTS,VAT CONTROL ACCOUNT,2103872379,5001000051
21.05.2024,Children and Adults,THE SOCIAL MARKETING GATEWAY LIMITE,"17,500.00",HEALTHCARE PH AND INCLUSIVE HEALTH MGMT,EXTERNAL AGENCIES AND BODIES,5902637136,1000090398
22.05.2024,Children and Adults,RIVERSTON SCHOOL,"17,491.00",INDEP MAINSTREAM,STATEMENTED FEES,2103873888,11213696
02.05.2024,Children and Adults,ROSEDENE NURSING HOME,"17,468.80",LD LTS 18-64,RESIDENTIAL CARE,2103864260,1163215
28.05.2024,DSO,SER CONTRACTOR LTD,"17,458.10",SR - VOIDS TEAM,OTHER CONTRACTORS,2103875240,3000002234
30.05.2024,Children and Adults,MY CHOICE CHILDREN'S HOMES LIMITED,"17,439.71",CHILDREN’S RESID,RESIDENTIAL CARE,2103876861,1000085839
23.05.2024,Children and Adults,KEYS PCE LTD,"17,380.00",CHILDREN’S RESID,RESIDENTIAL CARE,2103874970,1000080090
21.05.2024,Corporate,MICHAEL FARADAY PRIMARY SCHOOL,"17,362.88",EDUCATION VAT INPUTS,VAT CONTROL ACCOUNT,2103872366,5001000048
02.05.2024,Children and Adults,DIAGRAMA HEALTH CARE,"17,304.64",LD LTS 18-64,RESIDENTIAL CARE,2103864190,1000075492
30.05.2024,Corporate,HITACHI SOLUTIONS EUROPE LIMITED,"17,300.00",ONE-OFF NNDR LEVY RELEASE,MEDICAL / HEALTH & SAFETY SERVICES,5902638042,1000084180
09.05.2024,Environment Neighbourhoods and Growth,KENT COUNTY COUNCIL - LASER,"17,191.85",SDM BUDGET,ELECTRICITY,5902635237,1000012926
02.05.2024,Children and Adults,OPTIMA CARE (SHINE) LONDON LTD,"17,172.96",LD LTS 18-64,SUPPORTED LIVING,2103864073,1000079614
31.05.2024,Children and Adults,OPTIMA CARE (SHINE) LONDON LTD,"17,172.96",LD LTS 18-64,SUPPORTED LIVING,2103879692,1000079614
24.05.2024,Children and Adults,SPECTRA CARE LTD,"17,137.12",DISABILITIES LAC,EXTERNAL AGENCIES AND BODIES,2103875072,1000086280
24.05.2024,Children and Adults,SPECTRA CARE LTD,"17,137.12",DISABILITIES LAC,EXTERNAL AGENCIES AND BODIES,2103875074,1000086280
30.05.2024,Children and Adults,TUTELAGE CARE GROUP LTD,"17,112.00",CHILDREN’S RESID,RESIDENTIAL CARE,2103876866,1000088232
10.05.2024,Children and Adults,GOODRICH PRIMARY SCHOOL,"17,088.00",NURSERY ED GRANT 3 AND 4 YR OLDS,EARLY YEARS - 3 AND 4 YEAR OLDS,5902635487,5001000028
10.05.2024,Children and Adults,NELL GWYNN NURSERY SCHOOL,"17,050.00",NURSERY ED GRANT 3 AND 4 YR OLDS,EARLY YEARS - 3 AND 4 YEAR OLDS,5902635532,5001000049
31.05.2024,Children and Adults,ACHIEVE TOGETHER SERVICES LIMITED,"16,964.57",LD LTS 18-64,RESIDENTIAL CARE,2103879371,1000089975
21.05.2024,Corporate,ALBION PRIMARY SCHOOL,"16,956.61",EDUCATION VAT INPUTS,VAT CONTROL ACCOUNT,2103872369,5001000000
30.05.2024,Children and Adults,ADEZA CARE HOMES LTD,"16,950.00",CHILDREN’S RESID,RESIDENTIAL CARE,2103876864,1000085741
23.05.2024,Housing,STYLES HOUSE TMO,"16,938.63",STYLES HOUSE TMO,M&M ALLOWANCE CO-OPS,5902637065,1000072012
14.05.2024,Children and Adults,NCYPE,"16,934.67",SPECIALIST POST-16,STATEMENTED FEES,2103870145,1264546
29.05.2024,Children and Adults,ORCHARD HILL COLLEGE,"16,886.15",SPECIALIST POST-16,STATEMENTED FEES,2103875471,1000070978
29.05.2024,Children and Adults,ORCHARD HILL COLLEGE,"16,885.20",SPECIALIST POST-16,STATEMENTED FEES,2103875456,1000070978
30.05.2024,Children and Adults,HORIZON CARE & EDUCATION GROUP LTD,"16,881.67",CHILDREN’S RESID,RESIDENTIAL CARE,2103876844,1000075467
21.05.2024,Corporate,JOHN RUSKIN PRIMARY SCHOOL,"16,835.22",EDUCATION VAT INPUTS,VAT CONTROL ACCOUNT,2103872340,5001000040
30.05.2024,Children and Adults,ACORN HOMES (UK) LTD,"16,828.66",CHILDREN’S RESID,RESIDENTIAL CARE,2103876857,1000080423
14.05.2024,Children and Adults,T4 TRUST T/A IAN MIKARDO HIGH SCHOO,"16,751.27",AC & FREE - SPECIAL,STATEMENTED FEES,2103870134,1000090796
14.05.2024,Children and Adults,T4 TRUST T/A IAN MIKARDO HIGH SCHOO,"16,751.27",AC & FREE - SPECIAL,STATEMENTED FEES,2103870135,1000090796
08.05.2024,Children and Adults,THOMAS TALLIS SCHOOL,"16,750.00",OTHER LA MAINSTREAM,STATEMENTED FEES,2103866617,1000073703
02.05.2024,Children and Adults,WELLSPRING CARE HOMES LIMITED,"16,632.00",LD LTS 18-64 AAD,SUPPORTED LIVING,2103863942,1000088216
29.05.2024,Children and Adults,ORCHARD HILL COLLEGE,"16,624.91",SPECIALIST POST-16,STATEMENTED FEES,2103875473,1000070978
20.05.2024,Housing,BONDS BUILDERS AND CONTRACTORS LTD,"16,624.64",CAPITAL PS (HRA),CONSTRUCTION MAIN CONTRACT -CERTIFICATED,2103871409,3000002137
10.05.2024,Children and Adults,JOHN RUSKIN PRIMARY SCHOOL,"16,595.00",NURSERY ED GRANT 3 AND 4 YR OLDS,EARLY YEARS - 3 AND 4 YEAR OLDS,5902635514,5001000040
21.05.2024,Corporate,HAYMERLE SCHOOL,"16,586.68",EDUCATION VAT INPUTS,VAT CONTROL ACCOUNT,2103872368,5001000045
31.05.2024,Children and Adults,PLUS SERVICES,"16,569.11",LD LTS 18-64,RESIDENTIAL CARE,2103878976,1000021241
14.05.2024,Environment Neighbourhoods and Growth,J C CONSULTANT SERVICES LTD,"16,534.00",RADAR-IOM,PROFESSIONAL FEES,5902636153,1000042476
29.05.2024,Children and Adults,ORCHARD HILL COLLEGE,"16,455.56",SPECIALIST POST-16,STATEMENTED FEES,2103875485,1000070978
31.05.2024,Children and Adults,ACHIEVE TOGETHER SERVICES LIMITED,"16,280.88",LD LTS 18-64,SUPPORTED LIVING,2103878856,1000089975
31.05.2024,Children and Adults,ACHIEVE TOGETHER SERVICES LIMITED,"16,273.67",LD LTS 18-64,RESIDENTIAL CARE,2103879649,1000089975
09.05.2024,Children and Adults,LONDON CARE LTD,"16,273.37",EXTRA CARE CONTRACT,HOMECARE - C&V,5902635255,1000003398
24.05.2024,Children and Adults,ST FRANCIS'S RC PRIMARY SCHOOL,"16,227.54",FREE HEALTHY SCHOOL MEALS,SCHOOLS CAPITATION,2103873865,5001000067
09.05.2024,Housing,PRB ESTATES LTD,"16,209.80",PRBE,I-WORLD CONTRACTORS HOLDING ACCOUNT,2103866681,3000001691
31.05.2024,Children and Adults,CENTRAL & NORTH WEST LONDON,"16,198.54",SEXUAL HEALTH - STI,MEDICAL / HEALTH & SAFETY SERVICES,5902638480,1000066666
30.05.2024,Environment Neighbourhoods and Growth,FAITHFUL & GOULD,"16,130.00",CAPITAL PS (REGEN),CONSTRUCTION FEES  - EXTERNAL,5902638034,1000061390
03.05.2024,Children and Adults,PHOENIXPLACE,"16,055.00",NMSS/ INDEP SPECIAL,STATEMENTED FEES,2103865815,1000075565
07.05.2024,Environment Neighbourhoods and Growth,NORBURY PROPERTY SERVICES (LONDON) LTD,"16,050.00",NO RECOURSE TO PUBLIC FUNDS,ACCOMMODATION CHARGES,5902634863,1000075566
10.05.2024,Finance,CITY OF LONDON CORPORATION,"16,047.50",CORONER'S,INFORMATION MANAGEMENT,5902635399,1000052061
10.05.2024,Corporate,AMPLIFY TECHNOLOGY LIMITED,"16,000.00",ERP PROGRAMME BUDGET,CONSULTANTS SERVICES,5902634559,1000090570
24.05.2024,Children and Adults,BACONS COLLEGE,"16,000.00",SHORT BREAKS,EXTERNAL AGENCIES AND BODIES,5902637526,1693125
24.05.2024,Children and Adults,HAVERSTOCK,"15,990.00",CAPITAL PS (EDUCATION),CONSTRUCTION FEES - ARCHITECT,5902637583,1000074288
15.05.2024,Environment Neighbourhoods and Growth,REALLY LOCAL GROUP (OLD BLUE) LIMITED,"15,929.70",CAPITAL PS (REGEN),CONSTRUCTION FEES,5902636332,1000087521
29.05.2024,Children and Adults,ORCHARD HILL COLLEGE,"15,774.23",SPECIALIST POST-16,STATEMENTED FEES,2103875466,1000070978
15.05.2024,Finance,WE ARE WATERLOO LTD,"15,759.13",WATERLOO QUARTER,EXTERNAL AGENCIES AND BODIES,5902636406,1000057618
22.05.2024,Suspense,EDWARDES BROS (DULWICH) LTD,"15,655.40",SUSPENSE ACCOUNT (COMPANY CODE 1000),CREDITORS -GR/IR CLEARING ACCOUNT,5902637250,1004945
03.05.2024,Children and Adults,PHOENIXPLACE,"15,600.00",NMSS/ INDEP SPECIAL,STATEMENTED FEES,2103865810,1000075565
16.05.2024,Children and Adults,INTEGRATED FOSTERING SERVICES LTD,"15,550.80",FRIENDS & FAMILY FOSTERING,EXTERNAL AGENCIES AND BODIES,2103871314,1000082605
24.05.2024,Housing,C&C BUILDERS LTD,"15,540.93",DISREPAIR,BUILDING R&M,2103875001,3000001986
03.05.2024,Children and Adults,REDACTED PERSONAL DATA,"15,525.44",LD LTS 18-64,PAYMENTS TO CLIENTS (DIRECT PAYMENTS),2103865307,1000046071
31.05.2024,Children and Adults,REDACTED PERSONAL DATA,"15,525.44",LD LTS 18-64,PAYMENTS TO CLIENTS (DIRECT PAYMENTS),2103877619,1000046071
30.05.2024,Corporate,PEOPLEPLUS GROUP LTD,"15,489.48",VAT INPUTS - ADJUSTMENTS,VAT CONTROL ACCOUNT,2103876922,1000076642
10.05.2024,Housing,APEX HOUSING SOLUTIONS LTD,"15,423.00",NIGHTLY TA (NSC),EXTERNAL AGENCIES AND BODIES,5902635634,1000079786
30.05.2024,Children and Adults,ACORN CARE & EDUCATION LTD,"15,413.49",CHILDREN’S RESID,RESIDENTIAL CARE,2103876867,1000085841
09.05.2024,Children and Adults,CAMELOT PRIMARY SCHOOL,"15,342.00",SPORTS FUNDING,SCHOOLS CAPITATION,2103866623,5001000014
24.05.2024,Children and Adults,OLIVER GOLDSMITH PRIMARY SCHOOL,"15,326.01",FREE HEALTHY SCHOOL MEALS,SCHOOLS CAPITATION,2103873858,5001000051
29.05.2024,Children and Adults,SUPREME EDUCATION LTD,"15,240.00",ALTERNATIVE PROVISION,EXTERNAL AGENCIES AND BODIES,5902637915,1000089065
31.05.2024,Children and Adults,CYGNET CARE SERVICES LTD,"15,228.77",LD LTS 18-64,RESIDENTIAL CARE,2103879263,1000050432
03.05.2024,Children and Adults,PHOENIXPLACE,"15,140.00",NMSS/ INDEP SPECIAL,STATEMENTED FEES,2103865814,1000075565
28.05.2024,Governance and Assurance,KENT COUNTY COUNCIL - LASER,"15,115.09",160 TOOLEY ST.,GAS,5902637746,1000012926
19.05.2024,Housing,HM REVENUE & CUSTOMS,"15,112.97",APPRENTICE LEVY,APPRENTICESHIP LEVY,2103859020,1016231
03.05.2024,Children and Adults,PHOENIXPLACE,"15,105.00",NMSS/ INDEP SPECIAL,STATEMENTED FEES,2103865811,1000075565
03.05.2024,Children and Adults,PHOENIXPLACE,"15,105.00",NMSS/ INDEP SPECIAL,STATEMENTED FEES,2103865813,1000075565
22.05.2024,Children and Adults,RIVERSTON SCHOOL,"15,075.84",INDEP MAINSTREAM,STATEMENTED FEES,2103873885,11213696
22.05.2024,Finance,BNP PARIBAS REAL ESTATE ADVISORY & PROPERTY MANAGEMENT,"15,069.60",PLANNING POLICY TEAM,CONSULTANTS SERVICES,5902637366,1000053153
28.05.2024,Children and Adults,SAFE CARE SERVICES LTD,"15,000.00",CHILDREN’S RESID,RESIDENTIAL CARE,2103875376,1000090923
13.05.2024,Housing,NATIONWIDE ACCOMMODATION,"15,000.00",TA PLACEMENTS,EXTERNAL AGENCIES AND BODIES,5902635862,1000076112
14.05.2024,Finance,REDACTED PERSONAL DATA,"15,000.00",PLANNING APPEALS AND INQUIRIES,LEGAL FEES & COURT COSTS,5902636018,1000064318
21.05.2024,Children and Adults,SOFTWARE FOR DATA ANALYSIS LTD,"15,000.00",C&AS SOFTWARE APPS,SOFTWARE,5902637147,1000047085
30.05.2024,Environment Neighbourhoods and Growth,PULSE ASSOCIATES LTD (T/A PULSE CONSULT),"15,000.00",CAPITAL PS (REGEN),CONSTRUCTION FEES  - EXTERNAL,5902637982,1000087233
03.05.2024,Children and Adults,REDACTED PERSONAL DATA,"14,990.08",LD LTS 18-64,PAYMENTS TO CLIENTS (DIRECT PAYMENTS),2103865071,1000070120
31.05.2024,Children and Adults,REDACTED PERSONAL DATA,"14,990.08",LD LTS 18-64,PAYMENTS TO CLIENTS (DIRECT PAYMENTS),2103877326,1000070120
03.05.2024,Children and Adults,LITTLE JUNGLE (U.K.) LIMITED,"14,950.65",NURSERY ED GRANT 3 AND 4 YR OLDS,GRANTS,2103865855,1000067064
03.05.2024,Children and Adults,PHOENIXPLACE,"14,950.00",NMSS/ INDEP SPECIAL,STATEMENTED FEES,2103865812,1000075565
09.05.2024,Housing,CENTENNIAL PROPERTY LIMITED,"14,942.00",NIGHTLY TA (NSC),EXTERNAL AGENCIES AND BODIES,5902635305,1000083022
31.05.2024,Children and Adults,SPECTRA CARE LTD,"14,893.40",LD LTS 18-64,SUPPORTED LIVING,2103879629,1000086280
29.05.2024,Environment Neighbourhoods and Growth,KENT COUNTY COUNCIL - LASER,"14,875.55",THE CASTLE CENTRE,ELECTRICITY,5902637906,1000012926
31.05.2024,Children and Adults,OPTIMA CARE (SHINE) LONDON LTD,"14,862.53",LD LTS 18-64,SUPPORTED LIVING,2103879547,1000079614
31.05.2024,Children and Adults,YPR LIMITED,"14,821.30",LD LTS 18-64,SUPPORTED LIVING,2103879529,1000086517
31.05.2024,Children and Adults,PECULIAR CARE HOMES LTD,"14,775.12",LD LTS 18-64,SUPPORTED LIVING,2103879682,1000076991
15.05.2024,Environment Neighbourhoods and Growth,PROJECT CENTRE LTD,"14,762.00",TRANSPORT PROJECTS,OTHER CONTRACTORS,5902636460,1000072621
31.05.2024,Children and Adults,DAISYBROOK LTD,"14,760.00",DISABILITIES LAC,RESIDENTIAL CARE,2103878170,1000088357
14.05.2024,Children and Adults,CHELSEA HALL SCHOOL LTD,"14,758.00",NMSS/ INDEP SPECIAL,STATEMENTED FEES,2103870200,1000074731
31.05.2024,Children and Adults,PECULIAR CARE HOMES LTD,"14,754.17",LD LTS 18-64,SUPPORTED LIVING,2103879624,1000076991
08.05.2024,Corporate,SOUTHWARK PARK PRIMARY SCHOOL,"14,753.86",EDUCATION VAT INPUTS,VAT CONTROL ACCOUNT,2103866535,5001000062
21.05.2024,Children and Adults,VOICEABILITY ADVOCACY,"14,566.96",SHORT BREAKS INNV FUND,EXTERNAL AGENCIES AND BODIES,5902637108,1000064254
13.05.2024,Housing,HOMELY HOUSING LETS LTD,"14,537.50",NIGHTLY TA (NSC),EXTERNAL AGENCIES AND BODIES,5902635825,1000050013
03.05.2024,Environment Neighbourhoods and Growth,RAILSCAPE TECHNOLOGIES LTD,"14,500.00",TREES PRINCIPAL ROADS,PROFESSIONAL FEES,5902634816,1000090462
22.05.2024,Children and Adults,RIVERSTON SCHOOL,"14,498.00",INDEP MAINSTREAM,STATEMENTED FEES,2103873878,11213696
10.05.2024,Environment Neighbourhoods and Growth,METIS CONSULTANTS LIMITED,"14,435.50",CAPITAL PS (LEISURE),CONSTRUCTION FEES - ENGINEER,5902634372,1000086330
10.05.2024,Children and Adults,ALBION PRIMARY SCHOOL,"14,414.00",NURSERY ED GRANT 3 AND 4 YR OLDS,EARLY YEARS - 3 AND 4 YEAR OLDS,5902635440,5001000000
10.05.2024,Children and Adults,ST JAMES CE PRIMARY SCHOOL,"14,365.00",LBS MAINSTREAM,HIGH NEEDS - TOP UP FUNDING,5902635578,5001000070
31.05.2024,Children and Adults,PEOPLE PLUS GROUP LTD (INDEPENDENT LIVING SERVICES),"14,318.42",SPECIALIST CARE,PAYMENTS TO CLIENTS (DIRECT PAYMENTS),2103878626,1000061886
17.05.2024,Children and Adults,CENTER ACADEMY SCHOOL,"14,300.00",NMSS/ INDEP SPECIAL,STATEMENTED FEES,2103871357,11295355
17.05.2024,Children and Adults,CENTER ACADEMY SCHOOL,"14,300.00",NMSS/ INDEP SPECIAL,STATEMENTED FEES,2103871358,11295355
17.05.2024,Children and Adults,CENTER ACADEMY SCHOOL,"14,300.00",NMSS/ INDEP SPECIAL,STATEMENTED FEES,2103871359,11295355
17.05.2024,Children and Adults,CENTER ACADEMY SCHOOL,"14,300.00",NMSS/ INDEP SPECIAL,STATEMENTED FEES,2103871360,11295355
31.05.2024,Children and Adults,SAFE HAVEN ACCOMODATION LTD,"14,262.86",SEMI-IND LAC 16-17,EXTERNAL AGENCIES AND BODIES,2103877143,1000081573
21.05.2024,Housing,LAMBERT SMITH HAMPTON GROUP LTD,"14,250.00",TECHNICAL SUPPORT,PROFESSIONAL FEES,5902637055,1000060045
31.05.2024,Children and Adults,GLEN CARE GROUP,"14,245.61",LD LTS 18-64,NURSING PLACEMENTS FEES,2103878924,1000050223
15.05.2024,Housing,UK POWER NETWORKS (OPERATIONS) LTD,"14,238.52",CAPITAL PS (HRA),CONSTRUCTION,5902636265,1000016085
03.05.2024,Housing,PULSE ASSOCIATES LTD (T/A PULSE CONSULT),"14,225.00",CAPITAL PS (HRA),CONSTRUCTION FEES  - EXTERNAL,5902633790,1000087233
13.05.2024,Children and Adults,THE DRIVE CARE HOMES LTD,"14,218.04",DISABILITIES LAC,RESIDENTIAL CARE,2103869511,1000003889
28.05.2024,DSO,BUDMAX CONSTRUCTION LTD,"14,185.39",SR COMMUNAL - DELIVERY TEAM,OTHER CONTRACTORS,2103875233,3000001936
23.05.2024,Housing,PROPERTY FACILITIES GROUP PLC,"14,180.00",DISREPAIR,BUILDING R&M,2103874946,3000001420
10.05.2024,Children and Adults,BRUNSWICK PARK PRIMARY SCHOOL,"14,154.00",LBS RB / SEN UNIT,HIGH NEEDS - TOP UP FUNDING,5902635459,5001000013
10.05.2024,Children and Adults,SNOWSFIELDS PRIMARY SCHOOL,"14,154.00",LBS RB / SEN UNIT,HIGH NEEDS - TOP UP FUNDING,5902635563,5001000061
24.05.2024,Children and Adults,SURREY SQUARE PRIMARY SCHOOL,"14,123.97",FREE HEALTHY SCHOOL MEALS,SCHOOLS CAPITATION,2103873871,1000082648
10.05.2024,Children and Adults,DULWICH WOOD CHILDRENS CENTRE,"14,092.00",EY SENDIF,STATEMENTED FEES,2103858021,5001000099
08.05.2024,Children and Adults,DULWICH WOOD CHILDRENS CENTRE,"14,092.00",EY SENDIF,STATEMENTED FEES,2103858049,5001000099
31.05.2024,DSO,ARMINA LTD,"14,071.51",PECKHAM & DULWICH DD,OTHER CONTRACTORS,2103876947,3000002121
02.05.2024,Environment Neighbourhoods and Growth,CONSTELLIA PUBLIC LIMITED,"14,023.52",THE CASTLE CENTRE,PREMISES CLEANING,5902633737,1000088137
29.05.2024,Children and Adults,ABINGDON HOUSE SCHOOL,"13,997.00",NMSS/ INDEP SPECIAL,STATEMENTED FEES,2103875448,1000072800
10.05.2024,Children and Adults,SOUTHWARK PARK PRIMARY SCHOOL,"13,992.00",LBS MAINSTREAM,HIGH NEEDS - TOP UP FUNDING,5902635567,5001000062
22.05.2024,Children and Adults,RIVERSTON SCHOOL,"13,985.28",INDEP MAINSTREAM,STATEMENTED FEES,2103873882,11213696
13.05.2024,Housing,BRESLIN CONSTRUCTION LTD,"13,950.00",GAINS/LOSSES I & E,BUILDING R&M,2103869246,3000001948
31.05.2024,Children and Adults,SNA 24/7 SUPPORT SERVICES LTD,"13,920.00",AI TEAMS A-D,OTHER PAYMENTS FOR CLIENTS,2103877150,1000090663
30.05.2024,Housing,1ST ACE SECURITY LTD,"13,908.20",LAKANAL (TENANCY),SECURITY SERVICES,5902638050,1000006992
14.05.2024,Children and Adults,MOAT SCHOOL LTD,"13,897.00",NMSS/ INDEP SPECIAL,STATEMENTED FEES,2103870169,1000010219
14.05.2024,Children and Adults,MOAT SCHOOL LTD,"13,897.00",NMSS/ INDEP SPECIAL,STATEMENTED FEES,2103870170,1000010219
14.05.2024,Children and Adults,MOAT SCHOOL LTD,"13,897.00",NMSS/ INDEP SPECIAL,STATEMENTED FEES,2103870171,1000010219
14.05.2024,Children and Adults,MOAT SCHOOL LTD,"13,897.00",NMSS/ INDEP SPECIAL,STATEMENTED FEES,2103870172,1000010219
02.05.2024,Children and Adults,CYGNET CARE SERVICES LTD,"13,891.72",LD LTS 18-64,RESIDENTIAL CARE,2103863435,1000050432
31.05.2024,Children and Adults,GREEN CARE AND SUPPORT LIMITED,"13,812.75",LD LTS 18-64,SUPPORTED LIVING,2103879793,1000087661
14.05.2024,Housing,SPD ESTATE LTD,"13,800.00",RAPID REHOUSING,EXTERNAL AGENCIES AND BODIES,5902636220,1000087122
31.05.2024,Children and Adults,REDACTED PERSONAL DATA,"13,760.83",LD LTS 18-64,PAYMENTS TO CLIENTS (DIRECT PAYMENTS),2103877673,1000087411
20.05.2024,Finance,NEC SOFTWARE SOLUTIONS UK LTD,"13,741.96",ADMINISTRATIVE SUPPORT,SOFTWARE,5902636655,1000087043
16.05.2024,Environment Neighbourhoods and Growth,REDACTED PERSONAL DATA,"13,722.00",NO RECOURSE TO PUBLIC FUNDS,ACCOMMODATION CHARGES,5902636542,1000061134
31.05.2024,Children and Adults,FRONTIER SUPPORT SERVICES LTD,"13,684.00",LD LTS 18-64,SUPPORTED LIVING,2103878837,1000072241
31.05.2024,Children and Adults,FRONTIER SUPPORT SERVICES LTD,"13,684.00",LD LTS 18-64,SUPPORTED LIVING,2103878838,1000072241
13.05.2024,Environment Neighbourhoods and Growth,METIS CONSULTANTS LIMITED,"13,683.40",CAPITAL PS (LEISURE),CONSTRUCTION FEES - EMPLOYERS AGENT,5902635209,1000086330
31.05.2024,Children and Adults,FERRY CARE LTD,"13,673.50",LD LTS 18-64,RESIDENTIAL CARE,2103879001,1000041775
21.05.2024,Housing,PROPERTY FACILITIES GROUP PLC,"13,646.52",DISREPAIR,BUILDING R&M,2103871993,3000001420
31.05.2024,Children and Adults,KISIMUL GROUP LTD,"13,621.25",LD LTS 18-64,SUPPORTED LIVING,2103879232,1000079657
29.05.2024,Children and Adults,ORCHARD HILL COLLEGE,"13,587.89",SPECIALIST POST-16,STATEMENTED FEES,2103875483,1000070978
02.05.2024,Children and Adults,SPECTRA CARE LTD,"13,585.72",LD LTS 18-64,SUPPORTED LIVING,2103864106,1000086280
11.05.2024,Housing,BRESLIN CONSTRUCTION LTD,"13,580.00",COMMERCIAL PROPERTIES,BUILDING R&M,2103866620,3000001948
31.05.2024,Children and Adults,OCEAN COMMUNITY SERVICES LTD,"13,553.56",LD LTS 18-64,RESIDENTIAL CARE,2103878953,1000050124
29.05.2024,Children and Adults,ORCHARD HILL COLLEGE,"13,543.81",SPECIALIST POST-16,STATEMENTED FEES,2103875465,1000070978
02.05.2024,Children and Adults,YPR LIMITED,"13,520.00",LD LTS 18-64,SUPPORTED LIVING,2103863911,1000086517
31.05.2024,Children and Adults,ACHIEVE TOGETHER SERVICES LIMITED,"13,514.69",MEM LTS 18-64,SUPPORTED LIVING,2103879343,1000089975
13.05.2024,Environment Neighbourhoods and Growth,KENT COUNTY COUNCIL - LASER,"13,506.87",CANADA WATER LIBRARY,ELECTRICITY,5902635865,1000012926
31.05.2024,DSO,ARMINA LTD,"13,458.76",ROTHERHITHE & BERMONDSEY DD,OTHER CONTRACTORS,2103876947,3000002121
14.05.2024,Children and Adults,THE BECKMEAD TRUST,"13,443.33",OTHER LA SPECIAL,STATEMENTED FEES,2103870166,1000082684
09.05.2024,Finance,KEYSTREAM GROUP LIMITED,"13,437.50",APPLICATIONS,AGENCY STAFF,5902635272,1000089467
13.05.2024,Children and Adults,THE DRIVE CARE HOMES LTD,"13,433.56",DISABILITIES LAC,EXTERNAL AGENCIES AND BODIES,2103869510,1000003889
29.05.2024,Children and Adults,ORCHARD HILL COLLEGE,"13,430.93",SPECIALIST POST-16,STATEMENTED FEES,2103875481,1000070978
02.05.2024,Strategy and Communities,AYMARA SOCIAL ENTERPRISE CIC,"13,403.00",VCS GRANTS,GRANTS,5902634476,1000089881
02.05.2024,Strategy and Communities,COMPUTING AND PROGRAMMING ACADEMY C,"13,403.00",VCS GRANTS,GRANTS,5902634598,1000089851
02.05.2024,Strategy and Communities,ELEVATED MINDS CIC,"13,403.00",VCS GRANTS,GRANTS,5902634603,1000083956
02.05.2024,Strategy and Communities,GET RID OF AND DONATE CIC,"13,403.00",VCS GRANTS,GRANTS,5902634605,1000089858
03.05.2024,Strategy and Communities,LONDON LGBTQ+ COMMUNITY CENTRE,"13,403.00",VCS GRANTS,GRANTS,5902634637,1000089642
03.05.2024,Strategy and Communities,PECKHAM SOUP KITCHEN CIC,"13,403.00",VCS GRANTS,GRANTS,5902634647,1000090221
03.05.2024,Strategy and Communities,THE ERNEST FOUNDATION,"13,403.00",VCS GRANTS,GRANTS,5902634651,1000055927
31.05.2024,Children and Adults,PEOPLE PLUS GROUP LTD (INDEPENDENT LIVING SERVICES),"13,389.35",PHY LTS 18-64,PAYMENTS TO CLIENTS (DIRECT PAYMENTS),2103877460,1000061886
22.05.2024,Children and Adults,NEWCASTLE COLLEGE GROUP,"13,377.33",FURTHER EDUCATION,STATEMENTED FEES,2103873901,1000080965
03.05.2024,Children and Adults,TREASURE HOUSE (LONDON) CIC,"13,333.34",NMSS/ INDEP SPECIAL,STATEMENTED FEES,2103865818,1000061163
03.05.2024,Children and Adults,TREASURE HOUSE (LONDON) CIC,"13,333.34",NMSS/ INDEP SPECIAL,STATEMENTED FEES,2103865819,1000061163
31.05.2024,Children and Adults,REESON CARE HOMES LTD,"13,309.57",LD LTS 18-64,SUPPORTED LIVING,2103879958,1000084007
29.05.2024,Children and Adults,ORCHARD HILL COLLEGE,"13,294.71",SPECIALIST POST-16,STATEMENTED FEES,2103875467,1000070978
31.05.2024,Children and Adults,FOUNTAIN CARE LTD,"13,282.42",LD LTS 18-64,RESIDENTIAL CARE,2103879700,1000066815
31.05.2024,Children and Adults,ACHIEVE TOGETHER SERVICES LIMITED,"13,270.82",LD LTS 18-64,RESIDENTIAL CARE,2103879590,1000089975
02.05.2024,Children and Adults,GLEN CARE GROUP,"13,268.78",LD LTS 18-64,NURSING PLACEMENTS FEES,2103864382,1000050223
29.05.2024,Children and Adults,ORCHARD HILL COLLEGE,"13,226.13",SPECIALIST POST-16,STATEMENTED FEES,2103875458,1000070978
20.05.2024,Housing,RNS HOMES LTD,"13,223.80",PSL PLACEMENTS,EXTERNAL AGENCIES AND BODIES,5902636899,1000090648
10.05.2024,Finance,ETUDE CONSULTING LIMITED,"13,222.50",PLANNING POLICY TEAM,CONSULTANTS SERVICES,5902635321,1000089774
24.05.2024,Children and Adults,RIVERSIDE PRIMARY SCHOOL,"13,222.44",FREE HEALTHY SCHOOL MEALS,SCHOOLS CAPITATION,2103873861,5001000056
10.05.2024,Housing,GAS ADVISORY SERVICES LIMITED,"13,219.19",HEATING AND HOT WATER,HEATING -DISTRICT SERVICE (CONTRACT SUM),5902635424,1000064649
04.05.2024,Housing,HILTON INTERNATIONAL HOTELS (UK) LTD,"13,216.00",NIGHTLY TA (NSC),EXTERNAL AGENCIES AND BODIES,5902633799,1000052384
07.05.2024,Housing,VIGILANT SECURITY SERVICES UK,"13,216.00",MANOR PLACE HOSTEL,SECURITY SERVICES,5902634836,1000090073
22.05.2024,Children and Adults,NEWCASTLE COLLEGE GROUP,"13,209.33",FURTHER EDUCATION,STATEMENTED FEES,2103873954,1000080965
31.05.2024,Children and Adults,FLAGSWAN TWO LIMITED,"13,200.00",SEN LTS 65+,NURSING PLACEMENTS FEES,2103879292,1000059148
29.05.2024,Children and Adults,ORCHARD HILL COLLEGE,"13,198.17",SPECIALIST POST-16,STATEMENTED FEES,2103875482,1000070978
21.05.2024,Corporate,ST SAVIOURS & ST OLAVES SCHOOL,"13,184.97",EDUCATION VAT INPUTS,VAT CONTROL ACCOUNT,2103872381,5001000084
08.05.2024,Housing,VIGILANT SECURITY SERVICES UK,"13,168.00",JOE RICHARDS HOSTEL,SECURITY SERVICES,5902635060,1000090073
08.05.2024,Children and Adults,KITE COLLEGE,"13,166.67",FURTHER EDUCATION,STATEMENTED FEES,2103866576,1000091062
08.05.2024,Children and Adults,KITE COLLEGE,"13,166.67",FURTHER EDUCATION,STATEMENTED FEES,2103866577,1000091062
17.05.2024,Children and Adults,KITE COLLEGE,"13,166.67",SPECIALIST POST-16,STATEMENTED FEES,2103871368,1000091062
17.05.2024,Children and Adults,KITE COLLEGE,"13,166.67",SPECIALIST POST-16,STATEMENTED FEES,2103871369,1000091062
08.05.2024,Children and Adults,KITE COLLEGE,"13,166.66",FURTHER EDUCATION,STATEMENTED FEES,2103866574,1000091062
08.05.2024,Children and Adults,KITE COLLEGE,"13,166.66",FURTHER EDUCATION,STATEMENTED FEES,2103866575,1000091062
22.05.2024,Children and Adults,NEWCASTLE COLLEGE GROUP,"13,161.00",FURTHER EDUCATION,STATEMENTED FEES,2103873938,1000080965
02.05.2024,Children and Adults,PECULIAR CARE HOMES LTD,"13,148.00",LD LTS 18-64,SUPPORTED LIVING,2103864061,1000076991
21.05.2024,Corporate,CHERRY GARDEN SCHOOL,"13,146.41",EDUCATION VAT INPUTS,VAT CONTROL ACCOUNT,2103872355,5001000020
31.05.2024,Children and Adults,AGINCARE (SOUTHWARK) LIMITED,"13,145.68",PHY LTS 65+,NURSING PLACEMENTS FEES,2103879766,1000089635
29.05.2024,Suspense,UNISON,"13,144.70",SUSPENSE ACCOUNT (COMPANY CODE 1000),PAYROLL CREDITORS - UNION DEDUCTIONS,2103876544,11060053
29.05.2024,Children and Adults,ORCHARD HILL COLLEGE,"13,135.23",SPECIALIST POST-16,STATEMENTED FEES,2103875475,1000070978
31.05.2024,Children and Adults,RAJOMA RECRUITMENT UK LTD,"13,134.00",PHY LTS 65+,HOMECARE - SPOT,2103878848,1000090736
09.05.2024,Environment Neighbourhoods and Growth,MARK BAILEY ASSOCIATES LTD,"13,133.40",PUBLIC LIGHTING,MATERIALS,5902635375,1000061353
02.05.2024,Children and Adults,PECULIAR CARE HOMES LTD,"13,129.36",LD LTS 18-64,SUPPORTED LIVING,2103864101,1000076991
20.05.2024,Housing,HMRC STAMP TAXES ONLY SDLT,"13,100.00",CAPITAL PS (HRA),LAND & BUILDINGS ACQUISITION,5902636895,1000052141
15.05.2024,Finance,WATES PROPERTY SERVICES LTD,"13,098.98",DANGEROUS STRUCTURES,OTHER CONTRACTORS,5902636359,11322039
13.05.2024,Housing,BEACON PARTNERSHIP LLP,"13,091.00",AYLESBURY AGENCY COSTS,PROFESSIONAL FEES,5902635191,1000082300
28.05.2024,Children and Adults,ORCHARD HILL COLLEGE,"13,074.23",SPECIALIST POST-16,STATEMENTED FEES,2103875242,1000070978
13.05.2024,Housing,CARLISLE SECURITY SERVICES LTD,"13,056.96",CENTRAL AREA RUNNING COSTS,SECURITY SERVICES,5902635824,11212342
31.05.2024,Children and Adults,REDACTED PERSONAL DATA,"13,051.74",MEM LTS 65+,PAYMENTS TO CLIENTS (DIRECT PAYMENTS),2103878014,1000090038
29.05.2024,Children and Adults,ORCHARD HILL COLLEGE,"13,044.57",SPECIALIST POST-16,STATEMENTED FEES,2103875472,1000070978
31.05.2024,Children and Adults,GARLAND LODGE LTD,"13,023.94",LD LTS 18-64,SUPPORTED LIVING,2103879085,1000084016
21.05.2024,Corporate,ST JOHNS & ST CLEMENTS CE SCHOOL,"13,011.70",EDUCATION VAT INPUTS,VAT CONTROL ACCOUNT,2103872367,5001000073
08.05.2024,Corporate,DULWICH VILLAGE CE INFANTS SCHOOL,"13,009.18",EDUCATION VAT INPUTS,VAT CONTROL ACCOUNT,2103866531,5001000027
13.05.2024,Children and Adults,MIME CONSULTING LTD,"13,000.00",CENTRAL COSTS - SEN,CONSULTANTS SERVICES,5902635849,1000057079
10.05.2024,Children and Adults,ST JAMES CE PRIMARY SCHOOL,"12,980.00",NURSERY ED GRANT 3 AND 4 YR OLDS,EARLY YEARS - 3 AND 4 YEAR OLDS,5902635577,5001000070
29.05.2024,Children and Adults,ORCHARD HILL COLLEGE,"12,976.57",SPECIALIST POST-16,STATEMENTED FEES,2103875459,1000070978
10.05.2024,Children and Adults,ROBERT BROWNING PRIMARY SCHOOL,"12,967.00",LBS MAINSTREAM,HIGH NEEDS - TOP UP FUNDING,5902635554,5001000057
14.05.2024,Housing,PINNICALE BUILDING SERVICES LIMITED,"12,934.00",CAPITAL PS (HOUSING GF),CAPITAL GRANTS,5902636217,1000082308
16.05.2024,Environment Neighbourhoods and Growth,ATALIAN SERVEST LTD,"12,929.83",CAPITAL PS (REGEN),CONSTRUCTION MAIN CONTRACT,2103871209,3000002240
14.05.2024,Environment Neighbourhoods and Growth,MOBIUS BUILDING CONSULTANCY LTD,"12,861.50",CAPITAL PS (REGEN),CONSTRUCTION FEES  - EXTERNAL,5902636000,1000089433
31.05.2024,Children and Adults,WELLSPRING CARE HOMES LIMITED,"12,828.37",LD LTS 18-64,SUPPORTED LIVING,2103879632,1000088216
29.05.2024,Children and Adults,ORCHARD HILL COLLEGE,"12,817.91",SPECIALIST POST-16,STATEMENTED FEES,2103875478,1000070978
22.05.2024,Children and Adults,NEWCASTLE COLLEGE GROUP,"12,813.67",FURTHER EDUCATION,STATEMENTED FEES,2103873927,1000080965
29.05.2024,Children and Adults,ORCHARD HILL COLLEGE,"12,812.09",SPECIALIST POST-16,STATEMENTED FEES,2103875470,1000070978
10.05.2024,Children and Adults,SOUTHWARK PARK PRIMARY SCHOOL,"12,811.00",NURSERY ED GRANT 3 AND 4 YR OLDS,EARLY YEARS - 3 AND 4 YEAR OLDS,5902635566,5001000062
28.05.2024,Environment Neighbourhoods and Growth,HILLIER NURSERIES LTD,"12,792.32",CAPITAL PS (LEISURE),CONSTRUCTION FEES,5902637693,1000036638
29.05.2024,Children and Adults,ORCHARD HILL COLLEGE,"12,772.57",SPECIALIST POST-16,STATEMENTED FEES,2103875484,1000070978
02.05.2024,Children and Adults,ELMWOOD R C H (MISSION CARE),"12,771.43",DISCHARGE TO ACCESS,NURSING PLACEMENTS FEES,2103864283,1000022813
08.05.2024,Children and Adults,ST. JOSEPH'S RC PRIMARY SCHOOL,"12,770.00",AC & FREE - MSTREAM,STATEMENTED FEES,2103866614,1000089163
08.05.2024,Children and Adults,ST MARKS C OF E PRIMARY SCHOOL,"12,770.00",OTHER LA MAINSTREAM,STATEMENTED FEES,2103866615,1000084357
31.05.2024,Children and Adults,CARLTON NURSING HOMES LTD,"12,768.37",LD LTS 18-64,RESIDENTIAL CARE,2103879566,1000070431
02.05.2024,Environment Neighbourhoods and Growth,CONSTELLIA PUBLIC LIMITED,"12,748.66",THE CASTLE CENTRE,PREMISES CLEANING,5902633742,1000088137
10.05.2024,Children and Adults,IVYDALE PRIMARY SCHOOL,"12,740.00",NURSERY ED GRANT 3 AND 4 YR OLDS,EARLY YEARS - 3 AND 4 YEAR OLDS,5902635511,5001000038
29.05.2024,Children and Adults,ORCHARD HILL COLLEGE,"12,727.01",SPECIALIST POST-16,STATEMENTED FEES,2103875463,1000070978
29.05.2024,Children and Adults,ORCHARD HILL COLLEGE,"12,659.25",SPECIALIST POST-16,STATEMENTED FEES,2103875479,1000070978
03.05.2024,Children and Adults,PEOPLE PLUS GROUP LTD (INDEPENDENT LIVING SERVICES),"12,619.20",LD LTS 18-64,PAYMENTS TO CLIENTS (DIRECT PAYMENTS),2103865260,1000061886
31.05.2024,Children and Adults,PEOPLE PLUS GROUP LTD (INDEPENDENT LIVING SERVICES),"12,619.20",LD LTS 18-64,PAYMENTS TO CLIENTS (DIRECT PAYMENTS),2103877574,1000061886
23.05.2024,Environment Neighbourhoods and Growth,COTTRELL AND VERMEULEN ARCH LTD,"12,614.67",CAPITAL PS (REGEN),CONSTRUCTION FEES,5902637491,1000012119
02.05.2024,Children and Adults,GREEN CARE AND SUPPORT LIMITED,"12,600.00",LD LTS 18-64,SUPPORTED LIVING,2103864226,1000087661
22.05.2024,Children and Adults,AMELIA'S HOUSE LIMITED,"12,600.00",DISABILITIES LAC,EXTERNAL AGENCIES AND BODIES,2103874429,1000083007
10.05.2024,Environment Neighbourhoods and Growth,MACE LTD,"12,600.00",CAPITAL PS (REGEN),CONSTRUCTION FEES  - EXTERNAL,5902634523,1000067959
17.05.2024,Environment Neighbourhoods and Growth,GERALD EVE LLP,"12,600.00",CAMBERWELL LIBRARY,PROFESSIONAL FEES,5902636589,1000077002
31.05.2024,Children and Adults,ACHIEVE TOGETHER SERVICES LIMITED,"12,590.90",LD LTS 18-64,RESIDENTIAL CARE,2103879364,1000089975
08.05.2024,Children and Adults,ST DAVIDS COLLEGE,"12,575.00",FURTHER EDUCATION,STATEMENTED FEES,2103866605,1000052749
31.05.2024,Children and Adults,INSIGHT,"12,561.50",LD LTS 18-64,RESIDENTIAL CARE,2103879574,1825618
31.05.2024,Children and Adults,OPTIMA CARE (SHINE) LONDON LTD,"12,546.34",LD LTS 18-64,SUPPORTED LIVING,2103879081,1000079614
29.05.2024,Children and Adults,ORCHARD HILL COLLEGE,"12,545.89",SPECIALIST POST-16,STATEMENTED FEES,2103875480,1000070978
17.05.2024,Housing,RELIANCE RESIDENTIAL,"12,500.00",PSL PLACEMENTS,GRANTS,5902636876,1000084814
14.05.2024,Children and Adults,CAMPBELL HARRIS TUTORS LTD,"12,480.00",AP & HOSPITAL SCHLS,STATEMENTED FEES,2103870153,1000082646
02.05.2024,Children and Adults,FERRY CARE LTD,"12,472.96",LD LTS 18-64,RESIDENTIAL CARE,2103863422,1000041775
10.05.2024,Environment Neighbourhoods and Growth,MACCREANOR LAVINGTON LTD,"12,460.00",CAPITAL PS (REGEN),CONSTRUCTION FEES  - EXTERNAL,5902635412,1000075874
10.05.2024,Environment Neighbourhoods and Growth,MACCREANOR LAVINGTON LTD,"12,460.00",CAPITAL PS (REGEN),CONSTRUCTION FEES  - EXTERNAL,5902635414,1000075874
10.05.2024,Children and Adults,ALFRED SALTER PRIMARY SCHOOL,"12,440.00",LBS MAINSTREAM,HIGH NEEDS - TOP UP FUNDING,5902635444,5001000005
10.05.2024,Children and Adults,KEYWORTH PRIMARY SCHOOL,"12,435.00",NURSERY ED GRANT 3 AND 4 YR OLDS,EARLY YEARS - 3 AND 4 YEAR OLDS,5902635519,5001000041
24.05.2024,Housing,DENHAN INTERNATIONAL LIMITED,"12,429.00",NIGHTLY TA (NSC),EXTERNAL AGENCIES AND BODIES,5902637624,1000075567
29.05.2024,Housing,COUNTY ENFORCEMENT LIMITED,"12,424.00",CAPITAL PS (HRA),CONSTRUCTION FEES  - EXTERNAL,5902637944,1000090510
28.05.2024,Children and Adults,FAIRLEY HOUSE SCHOOL,"12,413.00",NMSS/ INDEP SPECIAL,STATEMENTED FEES,2103875274,1000030807
28.05.2024,Children and Adults,FAIRLEY HOUSE SCHOOL,"12,413.00",NMSS/ INDEP SPECIAL,STATEMENTED FEES,2103875275,1000030807
28.05.2024,Children and Adults,FAIRLEY HOUSE SCHOOL,"12,413.00",NMSS/ INDEP SPECIAL,STATEMENTED FEES,2103875276,1000030807
28.05.2024,Children and Adults,FAIRLEY HOUSE SCHOOL,"12,413.00",NMSS/ INDEP SPECIAL,STATEMENTED FEES,2103875277,1000030807
28.05.2024,Children and Adults,FAIRLEY HOUSE SCHOOL,"12,413.00",NMSS/ INDEP SPECIAL,STATEMENTED FEES,2103875279,1000030807
28.05.2024,Children and Adults,FAIRLEY HOUSE SCHOOL,"12,413.00",NMSS/ INDEP SPECIAL,STATEMENTED FEES,2103875280,1000030807
02.05.2024,Housing,PELLINGS LLP,"12,405.47",CAPITAL PS (HRA),CONSTRUCTION FEES - EMPLOYERS AGENT,5902634541,1009262
17.05.2024,Environment Neighbourhoods and Growth,TETRA TECH LIMITED,"12,398.00",CLIMATE CHANGE,CONSULTANTS SERVICES,5902636858,1000078157
08.05.2024,Environment Neighbourhoods and Growth,KENT COUNTY COUNCIL - LASER,"12,397.31",CANADA WATER LIBRARY,ELECTRICITY,5902635211,1000012926
29.05.2024,Children and Adults,ORCHARD HILL COLLEGE,"12,370.48",SPECIALIST POST-16,STATEMENTED FEES,2103875469,1000070978
03.05.2024,Children and Adults,TREASURE HOUSE (LONDON) CIC,"12,366.67",NMSS/ INDEP SPECIAL,STATEMENTED FEES,2103865820,1000061163
03.05.2024,Children and Adults,TREASURE HOUSE (LONDON) CIC,"12,366.67",NMSS/ INDEP SPECIAL,STATEMENTED FEES,2103865821,1000061163
03.05.2024,Children and Adults,TREASURE HOUSE (LONDON) CIC,"12,366.67",NMSS/ INDEP SPECIAL,STATEMENTED FEES,2103865822,1000061163
03.05.2024,Children and Adults,TREASURE HOUSE (LONDON) CIC,"12,366.67",NMSS/ INDEP SPECIAL,STATEMENTED FEES,2103865823,1000061163
03.05.2024,Children and Adults,TREASURE HOUSE (LONDON) CIC,"12,366.67",NMSS/ INDEP SPECIAL,STATEMENTED FEES,2103865824,1000061163
03.05.2024,Children and Adults,TREASURE HOUSE (LONDON) CIC,"12,366.67",NMSS/ INDEP SPECIAL,STATEMENTED FEES,2103865825,1000061163
03.05.2024,Children and Adults,TREASURE HOUSE (LONDON) CIC,"12,366.67",NMSS/ INDEP SPECIAL,STATEMENTED FEES,2103865826,1000061163
03.05.2024,Children and Adults,TREASURE HOUSE (LONDON) CIC,"12,366.67",NMSS/ INDEP SPECIAL,STATEMENTED FEES,2103865827,1000061163
03.05.2024,Children and Adults,TREASURE HOUSE (LONDON) CIC,"12,366.67",NMSS/ INDEP SPECIAL,STATEMENTED FEES,2103865828,1000061163
03.05.2024,Children and Adults,TREASURE HOUSE (LONDON) CIC,"12,366.67",NMSS/ INDEP SPECIAL,STATEMENTED FEES,2103865829,1000061163
22.05.2024,Children and Adults,RIVERSTON SCHOOL,"12,354.00",INDEP MAINSTREAM,STATEMENTED FEES,2103873879,11213696
08.05.2024,Children and Adults,THOMAS TALLIS SCHOOL,"12,350.00",OTHER LA MAINSTREAM,STATEMENTED FEES,2103866618,1000073703
29.05.2024,Children and Adults,ORCHARD HILL COLLEGE,"12,341.91",SPECIALIST POST-16,STATEMENTED FEES,2103875455,1000070978
29.05.2024,Children and Adults,ORCHARD HILL COLLEGE,"12,341.91",SPECIALIST POST-16,STATEMENTED FEES,2103875486,1000070978
22.05.2024,Children and Adults,RIVERSTON SCHOOL,"12,337.00",INDEP MAINSTREAM,STATEMENTED FEES,2103873881,11213696
31.05.2024,Children and Adults,WELLSPRING CARE HOMES LIMITED,"12,335.06",LD LTS 18-64,SUPPORTED LIVING,2103878993,1000088216
03.05.2024,Strategy and Communities,PASSION FOR REDUCING TYPE 2 DIABETE,"12,303.00",VCS GRANTS,GRANTS,5902634644,1000087211
14.05.2024,Children and Adults,AGINCARE (SOUTHWARK) LIMITED,"12,285.00",CAPITAL PS (SOC SERV),"PLANT, MACHINERY & EQUIPMENT ACQUISITION",5902636074,1000089635
31.05.2024,Children and Adults,KARE HEALTHCARE LTD,"12,276.61",LD LTS 18-64,SUPPORTED LIVING,2103879634,1000089212
02.05.2024,Children and Adults,KISIMUL GROUP LTD,"12,271.44",LD LTS 18-64,SUPPORTED LIVING,2103863714,1000079657
30.05.2024,Housing,PINNICALE BUILDING SERVICES LIMITED,"12,264.00",CAPITAL PS (HOUSING GF),CAPITAL GRANTS,5902637970,1000082308
31.05.2024,Children and Adults,BEECHCROFT SUPPORT LIMITED,"12,243.20",LD LTS 18-64,SUPPORTED LIVING,2103879891,1000085412
31.05.2024,Environment Neighbourhoods and Growth,LEASEPLAN UK LTD,"12,230.06",COMMERCIAL VEH CTRL A/C,HIRED VEHICLES,5902638230,11014756
24.05.2024,Finance,INFORMATION GOVERNANCE SERVICES LIM,"12,213.75",CAPITAL PS (STRAT SERV),ICT ACQUISITION,5902636874,1000090531
17.05.2024,Children and Adults,URBAN MISSION SCHOOLS AND COMMUNITY,"12,191.40",INDEP MAINSTREAM,STATEMENTED FEES,2103871392,1000086898
10.05.2024,Children and Adults,ALFRED SALTER PRIMARY SCHOOL,"12,188.00",NURSERY ED GRANT 3 AND 4 YR OLDS,EARLY YEARS - 3 AND 4 YEAR OLDS,5902635443,5001000005
29.05.2024,Children and Adults,ORCHARD HILL COLLEGE,"12,176.84",SPECIALIST POST-16,STATEMENTED FEES,2103875474,1000070978
09.05.2024,Governance and Assurance,ROYAL MAIL GROUP LTD,"12,161.62",GLA ELECTIONS,POSTAGES,2103866766,1000061535
02.05.2024,Children and Adults,REESON CARE HOMES LTD,"12,141.04",LD LTS 18-64,SUPPORTED LIVING,2103864396,1000084007
29.05.2024,Children and Adults,ORCHARD HILL COLLEGE,"12,138.13",SPECIALIST POST-16,STATEMENTED FEES,2103875460,1000070978
31.05.2024,Children and Adults,RICHARDSON DUSTON LIMITED,"12,136.09",PHY LTS 18-64,RESIDENTIAL CARE,2103879259,1000089236
22.05.2024,Children and Adults,RIVERSTON SCHOOL,"12,125.00",INDEP MAINSTREAM,STATEMENTED FEES,2103873884,11213696
10.05.2024,Children and Adults,THE ST THOMAS THE APOSTLE COLLEGE,"12,123.00",LBS MAINSTREAM,HIGH NEEDS - TOP UP FUNDING,5902635587,5001000074
31.05.2024,Children and Adults,FOUNTAIN CARE LTD,"12,116.20",LD LTS 18-64,RESIDENTIAL CARE,2103809145,1000066815
31.05.2024,Children and Adults,FOUNTAIN CARE LTD,"12,116.20",LD LTS 18-64,RESIDENTIAL CARE,2103822457,1000066815
31.05.2024,Children and Adults,FOUNTAIN CARE LTD,"12,116.20",LD LTS 18-64,RESIDENTIAL CARE,2103837621,1000066815
31.05.2024,Children and Adults,FOUNTAIN CARE LTD,"12,116.20",LD LTS 18-64,RESIDENTIAL CARE,2103854693,1000066815
31.05.2024,Children and Adults,FOUNTAIN CARE LTD,"12,116.20",LD LTS 18-64,RESIDENTIAL CARE,2103864079,1000066815
07.05.2024,Environment Neighbourhoods and Growth,BUXTON BUILDING CONTRACTORS LTD,"12,112.00",CAPITAL PS (LEISURE),CONSTRUCTION MAIN CONTRACT -CERTIFICATED,2103866023,3000000830
16.05.2024,Children and Adults,PERMANENT FUTURES LTD,"12,075.00",CAPITAL PS (SOC SERV),ICT ACQUISITION,5902636561,1000089361
02.05.2024,Housing,ASTOR BANNERMAN (MEDICAL) LTD,"12,029.00",CAPITAL PS (HRA),UTILITIES INSTALLATION,5902634497,1000033892
31.05.2024,Children and Adults,LEONARD CHESHIRE DISABILITY,"12,015.22",PHY LTS 18-64,RESIDENTIAL CARE,2103879403,1000052504
03.05.2024,Children and Adults,REDACTED PERSONAL DATA,"12,010.80",CHILDREN PHB - SEL ICB,PAYMENTS TO CLIENTS (DIRECT PAYMENTS),2103865556,1000076363
31.05.2024,Children and Adults,REDACTED PERSONAL DATA,"12,010.80",CHILDREN PHB - SEL ICB,PAYMENTS TO CLIENTS (DIRECT PAYMENTS),2103878535,1000076363
28.05.2024,Children and Adults,BROADLANDS HALL LIMITED,"12,000.00",DISABILITIES LAC,EXTERNAL AGENCIES AND BODIES,2103875422,1000084303
24.05.2024,Environment Neighbourhoods and Growth,TIM RONALDS ARCHITECTS LTD,"12,000.00",CAPITAL PS (REGEN),CONSTRUCTION FEES - ARCHITECT,5902636818,1000091091
21.05.2024,DSO,IMOTO DIRECT LTD,"12,000.00",R & M OVERHEADS,PROFESSIONAL FEES,5902637130,1000079299
22.05.2024,Housing,CALFORD SEADEN LLP,"12,000.00",CAPITAL PS (HRA),CONSTRUCTION FEES - EMPLOYERS AGENT,5902637289,1061592
07.05.2024,Environment Neighbourhoods and Growth,WATER PLUS LTD,"11,990.12",PECKHAM PULSE LEISURE CENTRE,WATER,5902634319,1000087903
20.05.2024,Children and Adults,MCRAE RESIDENTIAL CARE SERVICES LTD,"11,985.51",CHILDREN’S RESID,RESIDENTIAL CARE,2103871960,1000050558
22.05.2024,Children and Adults,RIVERSTON SCHOOL,"11,982.00",INDEP MAINSTREAM,STATEMENTED FEES,2103873883,11213696
31.05.2024,Children and Adults,NATIONAL AUTISTIC SOCIETY CARE PACK,"11,964.30",LD LTS 65+,RESIDENTIAL CARE,2103879556,1000020538
29.05.2024,Children and Adults,ORCHARD HILL COLLEGE,"11,949.95",SPECIALIST POST-16,STATEMENTED FEES,2103875464,1000070978
02.05.2024,Children and Adults,COUNTRY COURT CARE HOMES 2 LTD,"11,942.86",PHY LTS 65+,RESIDENTIAL CARE,2103864284,1000080172
10.05.2024,Children and Adults,ALBION PRIMARY SCHOOL,"11,942.00",LBS MAINSTREAM,HIGH NEEDS - TOP UP FUNDING,5902635441,5001000000
07.05.2024,Governance and Assurance,WORKING ON WELLBEING LTD,"11,903.93",OPTIMA HEALTH,MEDICAL / HEALTH & SAFETY SERVICES,5902634878,1000077251
24.05.2024,Children and Adults,BOUCHER C OF E PRIMARY SCHOOL,"11,870.14",FREE HEALTHY SCHOOL MEALS,SCHOOLS CAPITATION,2103873846,5001000011
24.05.2024,Children and Adults,ILDERTON PRIMARY SCHOOL,"11,870.14",FREE HEALTHY SCHOOL MEALS,SCHOOLS CAPITATION,2103873855,5001000037
31.05.2024,Children and Adults,VOYAGE LTD (EVESLEIGH KENT),"11,809.79",LD LTS 18-64,RESIDENTIAL CARE,2103879490,1000041320
16.05.2024,Children and Adults,PERMANENT FUTURES LTD,"11,787.50",CAPITAL PS (SOC SERV),ICT ACQUISITION,5902636559,1000089361
02.05.2024,Children and Adults,OCEAN COMMUNITY SERVICES LTD,"11,772.88",LD LTS 18-64,RESIDENTIAL CARE,2103863390,1000050124
29.05.2024,Children and Adults,ORCHARD HILL COLLEGE,"11,768.61",SPECIALIST POST-16,STATEMENTED FEES,2103875488,1000070978
31.05.2024,Children and Adults,FIRST CARE LODGE,"11,768.11",LD LTS 18-64,SUPPORTED LIVING,2103879897,1000084196
22.05.2024,Children and Adults,RIVERSTON SCHOOL,"11,767.70",INDEP MAINSTREAM,STATEMENTED FEES,2103873886,11213696
22.05.2024,Children and Adults,NEWCASTLE COLLEGE GROUP,"11,766.00",FURTHER EDUCATION,STATEMENTED FEES,2103873908,1000080965
02.05.2024,Children and Adults,ALWAYS INCLUSIVE LTD,"11,760.00",LD LTS 18-64,SUPPORTED LIVING,2103863619,1000088268
22.05.2024,Children and Adults,RIVERSTON SCHOOL,"11,727.00",INDEP MAINSTREAM,STATEMENTED FEES,2103873891,11213696
06.05.2024,Children and Adults,COUNTRY COURT CARE HOMES 2 LTD,"11,726.00",PHY LTS 65+,RESIDENTIAL CARE,5902634158,1000080172
02.05.2024,Children and Adults,WELLSPRING CARE HOMES LIMITED,"11,702.08",LD LTS 18-64,SUPPORTED LIVING,2103864109,1000088216
31.05.2024,Children and Adults,KARE HEALTHCARE LTD,"11,701.96",LD LTS 18-64,SUPPORTED LIVING,2103879047,1000089212
14.05.2024,Children and Adults,CARBONE CLINIC UK LTD,"11,677.50",AP & HOSPITAL SCHLS,STATEMENTED FEES,2103870146,1000080937
10.05.2024,Children and Adults,CAMELOT PRIMARY SCHOOL,"11,672.00",LBS MAINSTREAM,HIGH NEEDS - TOP UP FUNDING,5902635463,5001000014
02.05.2024,Environment Neighbourhoods and Growth,CONSTELLIA PUBLIC LIMITED,"11,658.64",PECKHAM PULSE LEISURE CENTRE,PREMISES CLEANING,5902633717,1000088137
22.05.2024,Children and Adults,RIVERSTON SCHOOL,"11,652.00",INDEP MAINSTREAM,STATEMENTED FEES,2103873880,11213696
02.05.2024,Children and Adults,CARLTON NURSING HOMES LTD,"11,647.36",LD LTS 18-64,RESIDENTIAL CARE,2103864035,1000070431
08.05.2024,Environment Neighbourhoods and Growth,ATALIAN SERVEST LTD,"11,640.27",CAPITAL PS (REGEN),CONSTRUCTION MAIN CONTRACT,2103866024,3000002240
31.05.2024,Children and Adults,LONDON CYRENIANS HOUSING LTD,"11,629.02",LD LTS 18-64,SUPPORTED LIVING,2103879523,1000078600
02.05.2024,Children and Adults,VOYAGE CARE (MOUNTEARL),"11,622.12",LD LTS 18-64,RESIDENTIAL CARE,2103864128,1000078173
31.05.2024,Children and Adults,VOYAGE CARE (MOUNTEARL),"11,622.12",LD LTS 18-64,RESIDENTIAL CARE,2103879658,1000078173
02.05.2024,Children and Adults,GARLAND LODGE LTD,"11,589.76",LD LTS 18-64,SUPPORTED LIVING,2103863561,1000084016
31.05.2024,Finance,VENN GROUP LTD,"11,550.00",CAPITAL PS (STRAT SERV),ICT ACQUISITION,5902638162,1000033315
17.05.2024,Children and Adults,GUIDELINE LIFT SERVICES LTD,"11,548.70",CAPITAL PS (SOC SERV),CONSTRUCTION MAIN CONTRACT,5902636859,1000064176
02.05.2024,Strategy and Communities,DREAM BELIEVE ACHIEVE (DBA) CIC,"11,500.00",VCS GRANTS,GRANTS,5902634602,1000087343
10.05.2024,Children and Adults,JOHN RUSKIN PRIMARY SCHOOL,"11,500.00",LBS RB / SEN UNIT,HIGH NEEDS - BASE FUNDING,5902635515,5001000040
19.05.2024,Children and Adults,PERMANENT FUTURES LTD,"11,500.00",CAPITAL PS (SOC SERV),ICT ACQUISITION,5902636545,1000089361
02.05.2024,Children and Adults,BRITISH HOME & HOSPITAL FOR INCURABLES,"11,484.64",PHY LTS 18-64,NURSING PLACEMENTS FEES,2103864288,1001606
15.05.2024,Finance,SHARPE PRITCHARD LLP,"11,470.80",CANADA WATER,LEGAL FEES & COURT COSTS,5902636394,1790085
31.05.2024,Children and Adults,ROYAL HOSPITAL FOR NEURODISABILITY,"11,470.17",PHY LTS 65+,NURSING PLACEMENTS FEES,2103879327,1010365
31.05.2024,Children and Adults,SAFFRONLAND HOMES (MUNDANIA),"11,466.83",LD LTS 18-64,RESIDENTIAL CARE,2103879226,1000072153
14.05.2024,Children and Adults,MOAT SCHOOL LTD,"11,465.00",NMSS/ INDEP SPECIAL,STATEMENTED FEES,2103870168,1000010219
02.05.2024,Children and Adults,INSIGHT,"11,458.64",LD LTS 18-64,RESIDENTIAL CARE,2103864052,1825618
02.05.2024,Children and Adults,OPTIMA CARE (SHINE) LONDON LTD,"11,444.80",LD LTS 18-64,SUPPORTED LIVING,2103863522,1000079614
03.05.2024,Children and Adults,GALAXY EXPLORERS DAY NURSERY LIMITED,"11,432.85",NURSERY ED GRANT 3 AND 4 YR OLDS,GRANTS,2103865849,1000085260
03.05.2024,Children and Adults,LONDON EARLY YEARS FOUNDATION,"11,432.85",NURSERY ED GRANT 3 AND 4 YR OLDS,GRANTS,2103865859,1000077919
31.05.2024,Children and Adults,OPTIMA CARE (SHINE) LONDON LTD,"11,432.26",LD LTS 18-64,SUPPORTED LIVING,2103879887,1000079614
31.05.2024,Children and Adults,BOUGHTON GREEN ROAD LIMITED,"11,431.28",PHY LTS 18-64,NURSING PLACEMENTS FEES,2103879929,1000089115
28.05.2024,Housing,NORBURY PROPERTY SERVICES (LONDON) LTD,"11,430.00",TA PLACEMENTS,EXTERNAL AGENCIES AND BODIES,5902637727,1000075566
08.05.2024,Corporate,CRAWFORD PRIMARY SCHOOL,"11,412.83",EDUCATION VAT INPUTS,VAT CONTROL ACCOUNT,2103866552,5001000024
31.05.2024,Children and Adults,LOVING CARE LTD,"11,406.44",LD LTS 18-64,RESIDENTIAL CARE,2103879824,1000082873
31.05.2024,Children and Adults,ACHIEVE TOGETHER SERVICES LIMITED,"11,386.72",LD LTS 18-64,SUPPORTED LIVING,2103879648,1000089975
31.05.2024,Children and Adults,INSIGHT,"11,366.67",LD LTS 18-64,RESIDENTIAL CARE,2103879572,1825618
31.05.2024,Children and Adults,REDACTED PERSONAL DATA,"11,364.08",SOCIAL ISOLATION,PAYMENTS TO CLIENTS (DIRECT PAYMENTS),2103878010,1000070956
07.05.2024,Children and Adults,ACCESS MOBILITY TRANSPORT LTD,"11,347.40",SCH TRANS – TRAVEL,CAB FARES,5902634888,1000074637
22.05.2024,Children and Adults,NEWCASTLE COLLEGE GROUP,"11,342.00",FURTHER EDUCATION,STATEMENTED FEES,2103873923,1000080965
28.05.2024,Children and Adults,ISLINGTON COUNCIL,"11,333.00",OTHER LA SPECIAL,EARLY YEARS - 3 AND 4 YEAR OLDS,2103875289,11204697
31.05.2024,Finance,NEC SOFTWARE SOLUTIONS UK LTD,"11,313.71",ADMINISTRATIVE SUPPORT,SOFTWARE,5902638518,1000087043
31.05.2024,Children and Adults,WELLSPRING CARE HOMES LIMITED,"11,286.99",LD LTS 18-64,SUPPORTED LIVING,2103879107,1000088216
31.05.2024,Children and Adults,CASSRA LLP T/A CROHAM PLACE,"11,259.28",PHY LTS 18-64,NURSING PLACEMENTS FEES,2103879145,1000082899
02.05.2024,Children and Adults,WELLSPRING CARE HOMES LIMITED,"11,252.00",LD LTS 18-64,SUPPORTED LIVING,2103863429,1000088216
19.05.2024,Corporate,GROUP FINANCE SOLUTIONS CONSULTING,"11,210.00",ERP PROGRAMME BUDGET,PROFESSIONAL FEES,5902636280,1000090315
28.05.2024,Children and Adults,BROADLANDS HALL LIMITED,"11,200.00",DISABILITIES LAC,RESIDENTIAL CARE,2103875423,1000084303
02.05.2024,Children and Adults,OPTIMA CARE (SHINE) LONDON LTD,"11,198.84",LD LTS 18-64,SUPPORTED LIVING,2103864352,1000079614
02.05.2024,Children and Adults,KARE HEALTHCARE LTD,"11,198.72",LD LTS 18-64,SUPPORTED LIVING,2103864111,1000089212
23.05.2024,Housing,PROPERTY FACILITIES GROUP PLC,"11,195.53",DISREPAIR,BUILDING R&M,2103874945,3000001420
02.05.2024,Children and Adults,INDEPENDENCE HOMES LTD,"11,184.00",SEN LTS 18-64,RESIDENTIAL CARE,2103864271,1000058961
31.05.2024,Children and Adults,INDEPENDENCE HOMES LTD,"11,184.00",SEN LTS 18-64,RESIDENTIAL CARE,2103879801,1000058961
02.05.2024,Children and Adults,BEECHCROFT SUPPORT LIMITED,"11,168.28",LD LTS 18-64,SUPPORTED LIVING,2103864357,1000085412
03.05.2024,Children and Adults,REDACTED PERSONAL DATA,"11,162.76",MEM LTS 18-64,PAYMENTS TO CLIENTS (DIRECT PAYMENTS),2103864685,1000087779
08.05.2024,Corporate,TUKE SCHOOL,"11,152.86",EDUCATION VAT INPUTS,VAT CONTROL ACCOUNT,2103866544,5001000097
29.05.2024,Children and Adults,ORCHARD HILL COLLEGE,"11,131.90",SPECIALIST POST-16,STATEMENTED FEES,2103875462,1000070978
15.05.2024,Children and Adults,NCER CIC,"11,115.75",C&AS SOFTWARE APPS,SOFTWARE,5902636329,1000069283
03.05.2024,Children and Adults,REDACTED PERSONAL DATA,"11,100.00",LD LTS 18-64,PAYMENTS TO CLIENTS (DIRECT PAYMENTS),2103864648,1000074131
02.05.2024,Children and Adults,RICHARDSON DUSTON LIMITED,"11,070.52",PHY LTS 18-64,RESIDENTIAL CARE,2103863793,1000089236
28.05.2024,Children and Adults,EVERYONE HEALTH LTD,"11,066.72",STOP SMOKING,EXTERNAL AGENCIES AND BODIES,5902637708,1000084159
10.05.2024,Children and Adults,JOHN RUSKIN PRIMARY SCHOOL,"11,052.00",LBS RB / SEN UNIT,HIGH NEEDS - TOP UP FUNDING,5902635516,5001000040
15.05.2024,Finance,SAPPHIRE CONSULTANCY LIMITED,"11,050.00",SMART DIGITAL TRANSFORMATION,OTHER CONTRACTORS,5902636346,1000089101
02.05.2024,Children and Adults,BRITISH HOME & HOSPITAL FOR INCURABLES,"11,049.37",PHY LTS 18-64,"MAND STATUTORY CHARGES, NURSING",2103864287,1001606
17.05.2024,Corporate,ALLIANCE BERNSTEIN LTD,"11,038.45",CASH MANAGERS' COSTS,PROFESSIONAL FEES,5902636745,1000055012
22.05.2024,Children and Adults,RIVERSTON SCHOOL,"11,027.70",INDEP MAINSTREAM,STATEMENTED FEES,2103873890,11213696
17.05.2024,Children and Adults,TEACHER ACTIVE LIMITED,"11,007.52",AP & HOSPITAL SCHLS,STATEMENTED FEES,2103871377,1000088338
31.05.2024,Children and Adults,CARETECH COMMUNITY SERVICES LTD,"11,000.44",LD LTS 18-64,RESIDENTIAL CARE,2103879478,1000066698
21.05.2024,Environment Neighbourhoods and Growth,CONSTELLIA PUBLIC LIMITED,"11,000.00",TREES TERM CONTRACT,TREE MAINTENANCE,5902636755,1000088137
21.05.2024,Environment Neighbourhoods and Growth,CONSTELLIA PUBLIC LIMITED,"11,000.00",TREES TERM CONTRACT,TREE MAINTENANCE,5902636839,1000088137
31.05.2024,Children and Adults,CHOICE SUPPORT,"10,991.12",LD LTS 18-64,SUPPORTED LIVING,2103879643,1104183
03.05.2024,Environment Neighbourhoods and Growth,KENT COUNTY COUNCIL - LASER,"10,989.22",BURGESS SPORTS CENTRE,ELECTRICITY,5902634710,1000012926
02.05.2024,Children and Adults,LEONARD CHESHIRE DISABILITY,"10,960.32",PHY LTS 18-64,RESIDENTIAL CARE,2103863749,1000052504
22.05.2024,Children and Adults,NEWCASTLE COLLEGE GROUP,"10,875.33",FURTHER EDUCATION,STATEMENTED FEES,2103873910,1000080965
22.05.2024,Children and Adults,NEWCASTLE COLLEGE GROUP,"10,875.33",FURTHER EDUCATION,STATEMENTED FEES,2103873917,1000080965
22.05.2024,Children and Adults,NEWCASTLE COLLEGE GROUP,"10,875.33",FURTHER EDUCATION,STATEMENTED FEES,2103873941,1000080965
31.05.2024,Children and Adults,OZUMBA TRAINING AND CONSULTANCY SERVICES,"10,868.97",LD LTS 18-64,SUPPORTED LIVING,2103879126,1000090089
10.05.2024,Children and Adults,MICHAEL FARADAY PRIMARY SCHOOL,"10,864.00",NURSERY ED GRANT 3 AND 4 YR OLDS,EARLY YEARS - 3 AND 4 YEAR OLDS,5902635530,5001000048
03.05.2024,Environment Neighbourhoods and Growth,FABRIKAT (NOTTINGHAM) LTD,"10,852.57",PUBLIC LIGHTING,MATERIALS,5902634743,1036223
17.05.2024,Housing,MATRIX SOLICITORS,"10,833.33",DISREPAIR,PAYMENTS FOR LEGAL SERVICES,2103871716,1000082248
03.05.2024,Children and Adults,PENDERELS TRUST LTD,"10,832.64",PHB - SEL ICB,RECOVERABLE COSTS INCL. HEALTH,2103865081,1000075856
31.05.2024,Children and Adults,PENDERELS TRUST LTD,"10,832.64",PHB - SEL ICB,RECOVERABLE COSTS INCL. HEALTH,2103877426,1000075856
31.05.2024,Children and Adults,LONDON CYRENIANS HOUSING LTD,"10,826.78",LD LTS 18-64,SUPPORTED LIVING,2103879285,1000078600
24.05.2024,Finance,WORKMAN LLP,"10,807.35",9 HOLYROOD STREET,SERVICE CHARGES,2103875077,1000063692
08.05.2024,Children and Adults,THOMAS TALLIS SCHOOL,"10,801.68",OTHER LA MAINSTREAM,STATEMENTED FEES,2103866616,1000073703
02.05.2024,Housing,LIBRA CONSTRUCTION SERVICES LTD,"10,772.13",DISREPAIR,BUILDING R&M,2103864401,3000000875
02.05.2024,Children and Adults,FIRST CARE LODGE,"10,734.88",LD LTS 18-64,SUPPORTED LIVING,2103864363,1000084196
03.05.2024,Children and Adults,PEOPLE PLUS GROUP LTD (INDEPENDENT LIVING SERVICES),"10,707.20",LD LTS 18-64,PAYMENTS TO CLIENTS (DIRECT PAYMENTS),2103864920,1000061886
31.05.2024,Children and Adults,PEOPLE PLUS GROUP LTD (INDEPENDENT LIVING SERVICES),"10,707.20",LD LTS 18-64,PAYMENTS TO CLIENTS (DIRECT PAYMENTS),2103877172,1000061886
16.05.2024,Environment Neighbourhoods and Growth,ATALIAN SERVEST LTD,"10,700.70",CAPITAL PS (REGEN),CONSTRUCTION MAIN CONTRACT,2103871215,3000002240
15.05.2024,Finance,CLYDE & CO,"10,700.00","COURAGE YARD, SHAD THAMES",LEGAL FEES & COURT COSTS,5902636426,1000067838
22.05.2024,Finance,VIRGIN MEDIA,"10,694.32",IT MANAGEMENT,COMMS & COMPUTING CONTRACT CHARGES,5902637355,1000026457
22.05.2024,Children and Adults,NEWCASTLE COLLEGE GROUP,"10,688.00",FURTHER EDUCATION,STATEMENTED FEES,2103873909,1000080965
31.05.2024,Children and Adults,HIGH VIEW CARE SERVICES LTD,"10,684.00",SUB LTS 18-64,RESIDENTIAL CARE,2103879743,1000065920
02.05.2024,Children and Adults,KARE HEALTHCARE LTD,"10,674.56",LD LTS 18-64,SUPPORTED LIVING,2103863451,1000089212
31.05.2024,Children and Adults,FIRST CARE LODGE,"10,666.78",LD LTS 18-64,SUPPORTED LIVING,2103879288,1000084196
13.05.2024,Environment Neighbourhoods and Growth,KENT COUNTY COUNCIL - LASER,"10,644.64",CANADA WATER LIBRARY,ELECTRICITY,5902635864,1000012926
02.05.2024,Children and Adults,LONDON CYRENIANS HOUSING LTD,"10,608.00",LD LTS 18-64,SUPPORTED LIVING,2103863904,1000078600
02.05.2024,Environment Neighbourhoods and Growth,CONSTELLIA PUBLIC LIMITED,"10,598.76",PECKHAM PULSE LEISURE CENTRE,PREMISES CLEANING,5902633725,1000088137
31.05.2024,Children and Adults,ASD UNIQUE SERVICES LTD,"10,596.18",LD LTS 18-64,RESIDENTIAL CARE,2103879281,1000038819
16.05.2024,Governance and Assurance,ROYAL MAIL GROUP LTD,"10,586.26",GLA ELECTIONS,POSTAGES,2103871347,1000061535
24.05.2024,Housing,ANISTEN HOMES,"10,579.45",PSL PLACEMENTS,EXTERNAL AGENCIES AND BODIES,5902637519,1000084438
31.05.2024,Children and Adults,CHOICE SUPPORT,"10,577.45",LD LTS 65+,SUPPORTED LIVING,2103879014,1104183
31.05.2024,Environment Neighbourhoods and Growth,LEASEPLAN UK LTD,"10,567.35",COMMERCIAL VEH CTRL A/C,HIRED VEHICLES,5902638241,11014756
31.05.2024,Children and Adults,OPTIMA CARE (SHINE) LONDON LTD,"10,556.81",LD LTS 18-64,SUPPORTED LIVING,2103879287,1000079614
02.05.2024,Children and Adults,OPTIMA CARE (SHINE) LONDON LTD,"10,535.88",LD LTS 18-64,SUPPORTED LIVING,2103863677,1000079614
31.05.2024,Children and Adults,PLUS SERVICES,"10,531.54",LD LTS 18-64,SUPPORTED LIVING,2103879436,1000021241
15.05.2024,Housing,CAPITAL SERVICES LONDON LTD,"10,510.00",COMMERCIAL (QS),PROFESSIONAL FEES,5902636457,1000082548
30.05.2024,Environment Neighbourhoods and Growth,PULSE ASSOCIATES LTD (T/A PULSE CONSULT),"10,500.00",CAPITAL PS (REGEN),CONSTRUCTION FEES  - EXTERNAL,5902637980,1000087233
31.05.2024,Children and Adults,CARETECH COMMUNITY SERVICES LTD,"10,472.89",LD LTS 18-64,RESIDENTIAL CARE,2103879786,1000066698
31.05.2024,Children and Adults,ACHIEVERS CARE SOLUTIONS LIMITED,"10,463.20",SPECIALIST CARE,SECTION 17 PAYMENTS TO AGENCIES/CARERS,2103878839,1000086268
02.05.2024,Children and Adults,ROYAL HOSPITAL FOR NEURODISABILITY,"10,463.12",PHY LTS 65+,NURSING PLACEMENTS FEES,2103863818,1010365
02.05.2024,Children and Adults,SAFFRONLAND HOMES (MUNDANIA),"10,460.00",LD LTS 18-64,RESIDENTIAL CARE,2103863672,1000072153
24.05.2024,Finance,WORKMAN LLP,"10,454.55",14-20 SHAND STREET,SERVICE CHARGES,2103875093,1000063692
02.05.2024,Children and Adults,BOUGHTON GREEN ROAD LIMITED,"10,427.64",PHY LTS 18-64,NURSING PLACEMENTS FEES,2103864308,1000089115
31.05.2024,Children and Adults,BEECHCROFT SUPPORT LIMITED,"10,408.00",LD LTS 18-64,SUPPORTED LIVING,2103878929,1000085412
02.05.2024,Children and Adults,LOVING CARE LTD,"10,405.00",LD LTS 18-64,RESIDENTIAL CARE,2103864175,1000082873
31.05.2024,Children and Adults,RAINTREE CARE LTD,"10,392.45",LD LTS 18-64 AAD,SUPPORTED LIVING,2103878865,1000087495
03.05.2024,Children and Adults,REDACTED PERSONAL DATA,"10,379.43",LD LTS 18-64,PAYMENTS TO CLIENTS (DIRECT PAYMENTS),2103865016,1000053996
02.05.2024,DSO,J KASH LTD,"10,369.89",DAMP & MOULD TEAM,OTHER CONTRACTORS,2103863078,3000002219
02.05.2024,Children and Adults,INSIGHT,"10,368.64",LD LTS 18-64,RESIDENTIAL CARE,2103864033,1825618
10.05.2024,Children and Adults,IVYDALE PRIMARY SCHOOL,"10,350.00",LBS MAINSTREAM,HIGH NEEDS - TOP UP FUNDING,5902635512,5001000038
13.05.2024,Environment Neighbourhoods and Growth,ZFA ACCOMMODATION LTD,"10,350.00",UKRAINIAN REFUGEES,ACCOMMODATION CHARGES,5902635847,1000082620
19.05.2024,Children and Adults,PERMANENT FUTURES LTD,"10,350.00",CAPITAL PS (SOC SERV),ICT ACQUISITION,5902636549,1000089361
16.05.2024,Children and Adults,PERMANENT FUTURES LTD,"10,350.00",CAPITAL PS (SOC SERV),ICT ACQUISITION,5902636556,1000089361
09.05.2024,Finance,BIDVEST NOONAN (UK) LTD,"10,340.18",TOWER WORKSHOPS,SECURITY SERVICES,5902635263,1000087102
31.05.2024,Children and Adults,ALWAYS INCLUSIVE LTD,"10,329.35",LD LTS 18-64,SUPPORTED LIVING,2103879321,1000088268
30.05.2024,Environment Neighbourhoods and Growth,SLATTER CRICKET & PLAY LTD,"10,307.00",HOMERSTALL ROAD SPORTS GROUND,BUILDING R&M,5902637663,1000088330
02.05.2024,Children and Adults,WELLSPRING CARE HOMES LIMITED,"10,296.00",LD LTS 18-64,SUPPORTED LIVING,2103863585,1000088216
24.05.2024,Finance,WORKMAN LLP,"10,288.32",22 SHAND STREET,SERVICE CHARGES,2103875103,1000063692
31.05.2024,Children and Adults,FIR TREE LODGE (SEE ABILITY),"10,281.74",LD LTS 18-64,RESIDENTIAL CARE,2103879570,1000052257
22.05.2024,Children and Adults,NEWCASTLE COLLEGE GROUP,"10,281.33",FURTHER EDUCATION,STATEMENTED FEES,2103873914,1000080965
16.05.2024,Environment Neighbourhoods and Growth,ATALIAN SERVEST LTD,"10,274.58",CAPITAL PS (REGEN),CONSTRUCTION MAIN CONTRACT,2103871215,3000002240
02.05.2024,Children and Adults,VOYAGE LTD (EVESLEIGH KENT),"10,258.24",LD LTS 18-64,RESIDENTIAL CARE,2103863747,1000041320
31.05.2024,Children and Adults,LEONARD CHESHIRE (CHIPSTEAD LAKE),"10,255.49",PHY LTS 18-64,RESIDENTIAL CARE,2103879124,1000049764
02.05.2024,Housing,PULSE ASSOCIATES LTD (T/A PULSE CONSULT),"10,250.00",CAPITAL PS (HRA),CONSTRUCTION FEES  - EXTERNAL,5902634589,1000087233
30.05.2024,Governance and Assurance,IRON MOUNTAIN (UK) PLC,"10,248.77",REPAIR AND MAINTENANCE SERVICES,INFORMATION MANAGEMENT,5902638120,1000078591
21.05.2024,Corporate,GOODRICH PRIMARY SCHOOL,"10,243.42",EDUCATION VAT INPUTS,VAT CONTROL ACCOUNT,2103872374,5001000028
31.05.2024,Children and Adults,REDACTED PERSONAL DATA,"10,238.93",PHY LTS 65+,PAYMENTS TO CLIENTS (DIRECT PAYMENTS),2103877190,1000088692
31.05.2024,Children and Adults,OPTIMA CARE (SHINE) LONDON LTD,"10,233.38",LD LTS 18-64,SUPPORTED LIVING,2103879038,1000079614
31.05.2024,Children and Adults,OPTIMA CARE (SHINE) LONDON LTD,"10,232.01",LD LTS 18-64,SUPPORTED LIVING,2103879039,1000079614
08.05.2024,Environment Neighbourhoods and Growth,ATALIAN SERVEST LTD,"10,229.13",CAPITAL PS (REGEN),CONSTRUCTION MAIN CONTRACT,2103866024,3000002240
29.05.2024,Children and Adults,ORCHARD HILL COLLEGE,"10,228.11",SPECIALIST POST-16,STATEMENTED FEES,2103875476,1000070978
31.05.2024,Children and Adults,REDACTED PERSONAL DATA,"10,214.07",PHY LTS 65+,PAYMENTS TO CLIENTS (DIRECT PAYMENTS),2103877348,1000068175
15.05.2024,Housing,HARROW GREEN LTD,"10,213.49",RESIDENT SERVICES BUSINESS SUPPORT,REMOVAL EXPENSES,5902636384,1000076673
31.05.2024,Children and Adults,ACHIEVE TOGETHER SERVICES LIMITED,"10,208.05",LD LTS 18-64,SUPPORTED LIVING,2103879073,1000089975
31.05.2024,Children and Adults,DIAGRAMA HEALTH CARE,"10,199.46",LD LTS 18-64,RESIDENTIAL CARE,2103879358,1000075492
31.05.2024,Environment Neighbourhoods and Growth,LEASEPLAN UK LTD,"10,195.37",COMMERCIAL VEH CTRL A/C,HIRED VEHICLES,5902638219,11014756
31.05.2024,DSO,ARMINA LTD,"10,192.96",NUNHEAD DD,OTHER CONTRACTORS,2103876947,3000002121
22.05.2024,Children and Adults,PROSPERO RECRUITMENT LTD,"10,175.00",AP & HOSPITAL SCHLS,STATEMENTED FEES,2103873741,1000082492
31.05.2024,Children and Adults,GREEN CARE AND SUPPORT LIMITED,"10,169.67",LD LTS 18-64,SUPPORTED LIVING,2103879896,1000087661
16.05.2024,Children and Adults,HM PRISON & PROBATION SERVICE,"10,168.00",REMAND - YDA YOI,RESIDENTIAL CARE,5902636679,1000083827
16.05.2024,Children and Adults,HM PRISON & PROBATION SERVICE,"10,168.00",REMAND - YDA YOI,RESIDENTIAL CARE,5902636682,1000083827
17.05.2024,Children and Adults,WHITEFIELD ACADEMY TRUST,"10,156.25",OTHER LA SPECIAL,STATEMENTED FEES,2103871394,1000080971
31.05.2024,Children and Adults,FIRST CARE LODGE,"10,146.89",LD LTS 18-64,SUPPORTED LIVING,2103879386,1000084196
24.05.2024,Environment Neighbourhoods and Growth,THE STOCKROOM ARCHIVE MANAGEMENT LTD,"10,130.54",HERITAGE,OTHER CONTRACTORS,5902637602,1000079579
10.05.2024,Children and Adults,HEBER PRIMARY SCHOOL,"10,124.00",NURSERY ED GRANT 3 AND 4 YR OLDS,EARLY YEARS - 3 AND 4 YEAR OLDS,5902635503,5001000035
21.05.2024,Corporate,SOUTHWARK PARK PRIMARY SCHOOL,"10,123.55",EDUCATION VAT INPUTS,VAT CONTROL ACCOUNT,2103872353,5001000062
02.05.2024,Children and Adults,VALUE IN CARE LTD,"10,120.72",LD LTS 18-64,RESIDENTIAL CARE,2103863777,1000041975
31.05.2024,Children and Adults,VALUE IN CARE LTD,"10,120.72",LD LTS 18-64,RESIDENTIAL CARE,2103879432,1000041975
31.05.2024,Children and Adults,ACHIEVE TOGETHER SERVICES LIMITED,"10,115.30",LD LTS 18-64,SUPPORTED LIVING,2103879115,1000089975
17.05.2024,Children and Adults,TEACHER ACTIVE LIMITED,"10,087.00",AP & HOSPITAL SCHLS,STATEMENTED FEES,2103871376,1000088338
31.05.2024,Children and Adults,LONDON CYRENIANS HOUSING LTD,"10,081.57",LD LTS 18-64,SUPPORTED LIVING,2103879522,1000078600
10.05.2024,Children and Adults,ST FRANCIS'S RC PRIMARY SCHOOL,"10,063.00",LBS MAINSTREAM,HIGH NEEDS - TOP UP FUNDING,5902635570,5001000067
13.05.2024,DSO,BCS (ELECTRICAL & BUILDING) LTD,"10,045.84",EICR 2023-25 PROGRAMME,OTHER CONTRACTORS,2103869251,3000001471
29.05.2024,Children and Adults,ORCHARD HILL COLLEGE,"10,041.51",SPECIALIST POST-16,STATEMENTED FEES,2103875457,1000070978
09.05.2024,Children and Adults,THE ST THOMAS THE APOSTLE COLLEGE,"10,040.63",COVID-19 SCHOOLS GRANTS,SCHOOLS CAPITATION,2103866734,5001000074
10.05.2024,Children and Adults,CAMELOT PRIMARY SCHOOL,"10,040.00",NURSERY ED GRANT 3 AND 4 YR OLDS,EARLY YEARS - 3 AND 4 YEAR OLDS,5902635462,5001000014
10.05.2024,Children and Adults,ST GEORGES CE SCHOOL,"10,037.00",LBS MAINSTREAM,HIGH NEEDS - TOP UP FUNDING,5902635575,5001000069
02.05.2024,Children and Adults,CARETECH COMMUNITY SERVICES LTD,"10,034.64",LD LTS 18-64,RESIDENTIAL CARE,2103863804,1000066698
28.05.2024,Children and Adults,ORCHARD HILL COLLEGE,"10,000.00",SPECIALIST POST-16,STATEMENTED FEES,2103875241,1000070978
21.05.2024,Environment Neighbourhoods and Growth,CITY OF WESTMINSTER,"10,000.00",PROJECT SUPPORT,PROFESSIONAL FEES,5902637127,1000040464
29.05.2024,Environment Neighbourhoods and Growth,NORBURY PROPERTY SERVICES (LONDON) LTD,"10,000.00",NO RECOURSE TO PUBLIC FUNDS,ACCOMMODATION CHARGES,5902637809,1000075566
29.05.2024,Environment Neighbourhoods and Growth,KELTBRAY RAIL LTD,"10,000.00",CAPITAL PS (REGEN),CONSTRUCTION FEES  - EXTERNAL,5902637897,1000091100
13.05.2024,Environment Neighbourhoods and Growth,METIS CONSULTANTS LIMITED,"9,995.00",CAPITAL PS (LEISURE),CONSTRUCTION FEES - EMPLOYERS AGENT,5902635198,1000086330
10.05.2024,Housing,SECURENT LTD,"9,990.00",NIGHTLY TA (NSC),EXTERNAL AGENCIES AND BODIES,5902635631,1000079400
31.05.2024,Children and Adults,THE AVENUES TRUST,"9,966.53",LD LTS 18-64,RESIDENTIAL CARE,2103879310,1981708
02.05.2024,Children and Adults,OPTIMA CARE (SHINE) LONDON LTD,"9,946.12",LD LTS 18-64,SUPPORTED LIVING,2103863442,1000079614
02.05.2024,Children and Adults,OPTIMA CARE (SHINE) LONDON LTD,"9,946.12",LD LTS 18-64,SUPPORTED LIVING,2103863443,1000079614
09.05.2024,Environment Neighbourhoods and Growth,GALAXY GARDENING LTD,"9,935.00",CAPITAL PS (LEISURE),CONSTRUCTION MAIN CONTRACT -CERTIFICATED,5902635389,1000090909
14.05.2024,Children and Adults,THE BECKMEAD TRUST,"9,933.33",OTHER LA SPECIAL,STATEMENTED FEES,2103870165,1000082684
14.05.2024,Children and Adults,THE BECKMEAD TRUST,"9,933.33",OTHER LA SPECIAL,STATEMENTED FEES,2103870167,1000082684
02.05.2024,Children and Adults,OZUMBA TRAINING AND CONSULTANCY SERVICES,"9,914.72",LD LTS 18-64,SUPPORTED LIVING,2103863484,1000090089
02.05.2024,Children and Adults,BEECHCROFT SUPPORT LIMITED,"9,909.96",LD LTS 18-64,SUPPORTED LIVING,2103864358,1000085412
02.05.2024,Children and Adults,LONDON CYRENIANS HOUSING LTD,"9,876.16",LD LTS 18-64,SUPPORTED LIVING,2103863675,1000078600
03.05.2024,Children and Adults,REDACTED PERSONAL DATA,"9,864.20",PHB - SEL ICB,RECOVERABLE COSTS INCL. HEALTH,2103865253,1000050162
31.05.2024,Children and Adults,SAFFRONLAND HOMES (HESTIA),"9,843.19",LD LTS 18-64,RESIDENTIAL CARE,2103879027,1000021616
31.05.2024,Children and Adults,SAFFRONLAND HOMES (HESTIA),"9,843.19",LD LTS 18-64,RESIDENTIAL CARE,2103879872,1000021616
15.05.2024,Environment Neighbourhoods and Growth,NATIONWIDE ACCOMMODATION,"9,840.00",UKRAINIAN REFUGEES,ACCOMMODATION CHARGES,5902636387,1000076112
31.05.2024,Children and Adults,BROADHAM CARE LIMITED,"9,835.22",LD LTS 18-64,RESIDENTIAL CARE,2103878927,1000057411
23.05.2024,Environment Neighbourhoods and Growth,COTTRELL AND VERMEULEN ARCH LTD,"9,819.00",CAPITAL PS (REGEN),CONSTRUCTION FEES - ARCHITECT,5902637432,1000012119
17.05.2024,Children and Adults,GUIDELINE LIFT SERVICES LTD,"9,816.00",CAPITAL PS (SOC SERV),CONSTRUCTION MAIN CONTRACT,5902636807,1000064176
15.05.2024,Environment Neighbourhoods and Growth,WATER PLUS LTD,"9,803.52",PECKHAM PULSE LEISURE CENTRE,WATER,5902636476,1000087903
02.05.2024,Children and Adults,CHOICE CARE GROUP,"9,792.00",LD LTS 18-64,RESIDENTIAL CARE,2103864278,1572506
31.05.2024,Children and Adults,CARETECH COMMUNITY SERVICES LTD,"9,786.37",LD LTS 18-64,RESIDENTIAL CARE,2103879034,1000066698
23.05.2024,Housing,DACS LTD,"9,781.50",CAPITAL PS (HOUSING GF),CAPITAL GRANTS,5902637398,1000079747
10.05.2024,Environment Neighbourhoods and Growth,METIS CONSULTANTS LIMITED,"9,780.70",SECTION 278 & 38,OTHER CONTRACTORS,5902634807,1000086330
02.05.2024,Children and Adults,CASSRA LLP T/A CROHAM PLACE,"9,780.00",PHY LTS 18-64,NURSING PLACEMENTS FEES,2103863539,1000082899
22.05.2024,Children and Adults,TROWERS & HAMLINS LLP,"9,780.00",ACADEMY REORGANISATIONS,LEGAL FEES & COURT COSTS,5902637329,1000016239
03.05.2024,Children and Adults,PEOPLE PLUS GROUP LTD (INDEPENDENT LIVING SERVICES),"9,779.06",LD LTS 18-64,PAYMENTS TO CLIENTS (DIRECT PAYMENTS),2103865397,1000061886
10.05.2024,Children and Adults,BRUNSWICK PARK PRIMARY SCHOOL,"9,767.00",NURSERY ED GRANT 3 AND 4 YR OLDS,EARLY YEARS - 3 AND 4 YEAR OLDS,5902635457,5001000013
21.05.2024,Corporate,ILDERTON PRIMARY SCHOOL,"9,766.37",EDUCATION VAT INPUTS,VAT CONTROL ACCOUNT,2103872359,5001000037
31.05.2024,Children and Adults,SAFFRONLAND HOMES (HESTIA),"9,763.23",LD LTS 18-64,RESIDENTIAL CARE,2103879000,1000021616
02.05.2024,Children and Adults,HIGH VIEW CARE SERVICES LTD,"9,745.92",SUB LTS 18-64,RESIDENTIAL CARE,2103864220,1000065920
02.05.2024,Children and Adults,FIRST CARE LODGE,"9,730.24",LD LTS 18-64,SUPPORTED LIVING,2103863678,1000084196
31.05.2024,Housing,PRB ESTATES LTD,"9,723.12",PRBE,I-WORLD CONTRACTORS HOLDING ACCOUNT,2103876929,3000001691
12.05.2024,Finance,BDO LLP,"9,720.76",INTERNAL AUDIT CONTRACTS,PAYMENTS FOR FINANCIAL SERVICES,5902635346,1000057898
31.05.2024,Children and Adults,BRANDON TRUST,"9,717.08",LD LTS 18-64,SUPPORTED LIVING,2103879197,1000042417
04.05.2024,Environment Neighbourhoods and Growth,WATER PLUS LTD,"9,703.32",SEVEN ISLANDS LEISURE CENTRE,WATER,5902633881,1000087903
31.05.2024,Children and Adults,PUDDINGSTONE GRANGE CARE HOME,"9,700.75",PHY LTS 65+,RESIDENTIAL CARE,2103879739,1000080394
10.05.2024,Children and Adults,RYE OAK PRIMARY SCHOOL,"9,696.00",NURSERY ED GRANT 3 AND 4 YR OLDS,EARLY YEARS - 3 AND 4 YEAR OLDS,5902635556,5001000059
31.05.2024,Children and Adults,PEOPLE PLUS GROUP LTD (INDEPENDENT LIVING SERVICES),"9,676.29",LD LTS 18-64,PAYMENTS TO CLIENTS (DIRECT PAYMENTS),2103878005,1000061886
31.05.2024,Children and Adults,RIGHT SUPPORT MANAGEMENT LTD,"9,675.37",LD LTS 18-64,SUPPORTED LIVING,2103879041,1000070289
03.05.2024,Children and Adults,LOGICOUS LTD,"9,673.95",NURSERY ED GRANT 3 AND 4 YR OLDS,GRANTS,2103865844,1000073852
31.05.2024,Children and Adults,ASHINGHAM HOUSE LIMITED,"9,668.03",LD LTS 18-64,RESIDENTIAL CARE,2103879577,1000016504
10.05.2024,Children and Adults,RYE OAK PRIMARY SCHOOL,"9,667.00",LBS RB / SEN UNIT,HIGH NEEDS - BASE FUNDING,5902635557,5001000059
02.05.2024,Children and Adults,ASD UNIQUE SERVICES LTD,"9,665.80",LD LTS 18-64,RESIDENTIAL CARE,2103863637,1000038819
21.05.2024,Corporate,IVYDALE PRIMARY SCHOOL,"9,658.15",EDUCATION VAT INPUTS,VAT CONTROL ACCOUNT,2103872371,5001000038
31.05.2024,Children and Adults,BEECHCROFT SUPPORT LIMITED,"9,654.38",MH LTS 18-64,SUPPORTED LIVING,2103879086,1000085412
15.05.2024,Housing,UK POWER NETWORKS (OPERATIONS) LTD,"9,650.49",CAPITAL PS (HRA),CONSTRUCTION,5902636269,1000016085
06.05.2024,Finance,COMPASS CONTRACT SERVICES (UK) LTD,"9,645.50",FINANCE DIRECTOR,MISCELLANEOUS RECEIPTS,5902634526,1000010625
17.05.2024,Children and Adults,TEACHING TALENT LTD,"9,636.00",AP & HOSPITAL SCHLS,STATEMENTED FEES,2103871378,1000091090
31.05.2024,Children and Adults,BRITISH HOME & HOSPITAL FOR INCURABLES,"9,635.17",PHY LTS 65+,NURSING PLACEMENTS FEES,2103879704,1001606
30.05.2024,DSO,BCS (ELECTRICAL & BUILDING) LTD,"9,617.35",DAMP & MOULD TEAM,OTHER CONTRACTORS,2103876570,3000001471
08.05.2024,Children and Adults,WANDSWORTH COUNCIL,"9,607.37",OTHER LA SPECIAL,STATEMENTED FEES,2103845081,1000020692
02.05.2024,Children and Adults,PLUS SERVICES,"9,606.88",LD LTS 18-64,SUPPORTED LIVING,2103863781,1000021241
26.05.2024,Housing,DIAMOND PROPERTY MANAGEMENT LTD,"9,580.00",TA PLACEMENTS,EXTERNAL AGENCIES AND BODIES,5902637091,1000088789
02.05.2024,Children and Adults,CARETECH COMMUNITY SERVICES LTD,"9,553.40",LD LTS 18-64,RESIDENTIAL CARE,2103864169,1000066698
15.05.2024,Finance,FAMILY FUND TRADING LTD,"9,529.00",SESS,OTHER PAYMENTS FOR CLIENTS,5902636402,1000071092
31.05.2024,Children and Adults,HIGH VIEW CARE SERVICES LTD,"9,518.47",PHY LTS 18-64,RESIDENTIAL CARE,2103878885,1000053562
31.05.2024,Children and Adults,CHOICE SUPPORT,"9,516.67",LD LTS 18-64,SUPPORTED LIVING,2103879064,1104183
15.05.2024,Housing,STABILIS ASSOCIATES LTD,"9,504.00",REPAIRS OPERATIONS,PROFESSIONAL FEES,5902636434,1000082512
21.05.2024,Housing,CHRIS DAVIS CONSULTANCY LTD,"9,501.00",CAPITAL PS (HRA),CONSTRUCTION,5902637131,1000084202
24.05.2024,Governance and Assurance,GARDINER & THEOBALD LLP,"9,500.00",CFM OPERATIONAL BUDGET,PROFESSIONAL FEES,5902636705,1000090338
31.05.2024,Children and Adults,BRITISH HOME & HOSPITAL FOR INCURABLES,"9,497.91",PHY LTS 18-64,NURSING PLACEMENTS FEES,2103879430,1001606
20.05.2024,Children and Adults,CARETRADE CHARITABLE TRUST,"9,490.00",SPECIALIST POST-16,STATEMENTED FEES,2103873750,1000067322
20.05.2024,Children and Adults,CARETRADE CHARITABLE TRUST,"9,490.00",SPECIALIST POST-16,STATEMENTED FEES,2103873751,1000067322
22.05.2024,Children and Adults,CARETRADE CHARITABLE TRUST,"9,490.00",SPECIALIST POST-16,STATEMENTED FEES,2103873799,1000067322
22.05.2024,Children and Adults,CARETRADE CHARITABLE TRUST,"9,490.00",SPECIALIST POST-16,STATEMENTED FEES,2103873800,1000067322
31.05.2024,Children and Adults,GARLAND LODGE LTD,"9,489.80",LD LTS 18-64,SUPPORTED LIVING,2103879890,1000084016
02.05.2024,Children and Adults,RAINTREE CARE LTD,"9,480.00",LD LTS 18-64 AAD,SUPPORTED LIVING,2103863347,1000087495
07.05.2024,Suspense,BEW ELECTRICAL DISTRIBUTORS LTD,"9,476.00",SUSPENSE ACCOUNT (COMPANY CODE 1000),CREDITORS -GR/IR CLEARING ACCOUNT,5902635022,1000045371
07.05.2024,Housing,WEB LABS LTD,"9,450.00",CAPITAL PS (HRA),CONSTRUCTION,5902634886,1000039819
29.05.2024,Housing,ALEXANDER MILLS CONSULTING LTD,"9,450.00",BUILDING SAFETY PROGRAMME,CONSULTANTS SERVICES,5902637873,1000088721
31.05.2024,Children and Adults,NCYPE,"9,449.73",PHY LTS 18-64,RESIDENTIAL CARE,2103879210,1264546
31.05.2024,Children and Adults,SAFFRONLAND HOMES (HESTIA),"9,441.16",LD LTS 18-64,RESIDENTIAL CARE,2103879275,1000021616
02.05.2024,Children and Adults,CHOICE SUPPORT,"9,434.40",LD LTS 18-64,SUPPORTED LIVING,2103864118,1104183
09.05.2024,Children and Adults,CAMELOT PRIMARY SCHOOL,"9,425.00",COVID-19 SCHOOLS GRANTS,SCHOOLS CAPITATION,2103861410,5001000014
02.05.2024,Children and Adults,ALWAYS INCLUSIVE LTD,"9,422.40",LD LTS 18-64,SUPPORTED LIVING,2103863812,1000088268
30.05.2024,Children and Adults,THE LONDON CITY CARE AND SUPPORT,"9,415.71",SEMI-IND CARELEAVERS,EXTERNAL AGENCIES AND BODIES,2103876781,1000090438
31.05.2024,Children and Adults,SEQUENCE CARE LTD,"9,392.16",LD LTS 18-64,SUPPORTED LIVING,2103879803,1000080343
28.05.2024,Strategy and Communities,ON PLACE LTD,"9,375.00",STRATEGY AND IMPACT,CONSULTANTS SERVICES,5902637680,1000090914
31.05.2024,Children and Adults,GLEN CARE GROUP,"9,372.46",LD LTS 18-64,RESIDENTIAL CARE,2103879564,1000050223
02.05.2024,Environment Neighbourhoods and Growth,CONSTELLIA PUBLIC LIMITED,"9,361.20",DULWICH LEISURE CENTRE,PREMISES CLEANING,5902633722,1000088137
20.05.2024,Children and Adults,CARETRADE CHARITABLE TRUST,"9,340.00",SPECIALIST POST-16,STATEMENTED FEES,2103873743,1000067322
20.05.2024,Children and Adults,CARETRADE CHARITABLE TRUST,"9,340.00",SPECIALIST POST-16,STATEMENTED FEES,2103873744,1000067322
20.05.2024,Children and Adults,CARETRADE CHARITABLE TRUST,"9,340.00",SPECIALIST POST-16,STATEMENTED FEES,2103873745,1000067322
20.05.2024,Children and Adults,CARETRADE CHARITABLE TRUST,"9,340.00",SPECIALIST POST-16,STATEMENTED FEES,2103873746,1000067322
20.05.2024,Children and Adults,CARETRADE CHARITABLE TRUST,"9,340.00",SPECIALIST POST-16,STATEMENTED FEES,2103873747,1000067322
22.05.2024,Children and Adults,CARETRADE CHARITABLE TRUST,"9,340.00",SPECIALIST POST-16,STATEMENTED FEES,2103873792,1000067322
22.05.2024,Children and Adults,CARETRADE CHARITABLE TRUST,"9,340.00",SPECIALIST POST-16,STATEMENTED FEES,2103873793,1000067322
22.05.2024,Children and Adults,CARETRADE CHARITABLE TRUST,"9,340.00",SPECIALIST POST-16,STATEMENTED FEES,2103873794,1000067322
22.05.2024,Children and Adults,CARETRADE CHARITABLE TRUST,"9,340.00",SPECIALIST POST-16,STATEMENTED FEES,2103873795,1000067322
22.05.2024,Children and Adults,CARETRADE CHARITABLE TRUST,"9,340.00",SPECIALIST POST-16,STATEMENTED FEES,2103873796,1000067322
29.05.2024,Children and Adults,SHOOTERS HILL CAMPUS,"9,338.30",AC & FREE - MSTREAM,STATEMENTED FEES,2103876439,1000074183
28.05.2024,DSO,DIAMOND SCAFFOLDING (SOUTH EAST),"9,336.40",SR COMMUNAL - DELIVERY TEAM,OTHER CONTRACTORS,2103875234,3000001625
14.05.2024,Housing,DIAMOND PROPERTY MANAGEMENT LTD,"9,329.00",TA PLACEMENTS,EXTERNAL AGENCIES AND BODIES,5902636162,1000088789
10.05.2024,Children and Adults,BESSEMER GRANGE PRIMARY SCHOOL,"9,327.00",LBS MAINSTREAM,HIGH NEEDS - TOP UP FUNDING,5902635452,5001000009
31.05.2024,Children and Adults,BOUGHTON GREEN ROAD LIMITED,"9,323.62",PHY LTS 18-64,NURSING PLACEMENTS FEES,2103879182,1000089115
07.05.2024,Environment Neighbourhoods and Growth,J & M OASIS LTD,"9,322.50",NO RECOURSE TO PUBLIC FUNDS,ACCOMMODATION CHARGES,5902634854,1000072169
02.05.2024,Children and Adults,HEXAGON HOUSING ASSOCIATION LTD,"9,310.60",PD STEPDOWN HAVIL ST,RENTS,5902633986,1000014698
31.05.2024,Children and Adults,L & Q LIVING,"9,301.64",LD LTS 18-64,SUPPORTED LIVING,2103879626,1000057917
31.05.2024,Children and Adults,AVANTE PARTNERSHIP (WEYBOURNE),"9,287.55",PHY LTS 65+,RESIDENTIAL CARE,2103879453,11130185
31.05.2024,Children and Adults,AVANTE PARTNERSHIP (WEYBOURNE),"9,287.55",PHY LTS 65+,RESIDENTIAL CARE,2103879548,11130185
05.05.2024,Housing,LUMESSE LTD,"9,280.82",CAPITAL PS (HOUSING GF),ICT ACQUISITION,5902634280,1000069981
02.05.2024,Children and Adults,GREEN CARE AND SUPPORT LIMITED,"9,276.80",LD LTS 18-64,SUPPORTED LIVING,2103864362,1000087661
08.05.2024,Housing,VIGILANT SECURITY SERVICES UK,"9,273.60",JOE RICHARDS HOSTEL,SECURITY SERVICES,5902635061,1000090073
31.05.2024,Children and Adults,LONDON RESIDENTIAL HEALTHCARE LTD,"9,257.14",PHY LTS 65+,RESIDENTIAL CARE,2103879499,1000030895
02.05.2024,Children and Adults,FIRST CARE LODGE,"9,256.00",LD LTS 18-64,SUPPORTED LIVING,2103863875,1000084196
08.05.2024,Children and Adults,IVORY COTTAGE LTD,"9,253.75",CHILDREN’S RESID,RESIDENTIAL CARE,2103866488,1000089809
08.05.2024,Children and Adults,NEW WOODLANDS SCHOOL,"9,251.05",OTHER LA SPECIAL,STATEMENTED FEES,2103866589,1000070725
03.05.2024,Housing,PULSE ASSOCIATES LTD (T/A PULSE CONSULT),"9,250.00",CAPITAL PS (HRA),CONSTRUCTION FEES  - EXTERNAL,5902633793,1000087233
31.05.2024,Children and Adults,OPTIMA CARE (SHINE) LONDON LTD,"9,244.69",LD LTS 18-64,SUPPORTED LIVING,2103879886,1000079614
31.05.2024,Children and Adults,AVANTE PARTNERSHIP (WEYBOURNE),"9,242.44",PHY LTS 65+,RESIDENTIAL CARE,2103879271,11130185
08.05.2024,Corporate,CATHEDRAL SCHOOL OF ST SAVIOUR & MARY,"9,241.61",EDUCATION VAT INPUTS,VAT CONTROL ACCOUNT,2103866541,5001000088
02.05.2024,Children and Adults,CHOICE CARE GROUP,"9,200.08",LD LTS 18-64,RESIDENTIAL CARE,2103863687,1572506
02.05.2024,Children and Adults,LONDON CYRENIANS HOUSING LTD,"9,196.40",LD LTS 18-64,SUPPORTED LIVING,2103863870,1000078600
31.05.2024,Children and Adults,ACHIEVE TOGETHER SERVICES LIMITED,"9,190.87",LD LTS 18-64,SUPPORTED LIVING,2103879402,1000089975
31.05.2024,Children and Adults,SAFFRONLAND HOMES (MINEHEAD),"9,183.98",LD LTS 18-64,RESIDENTIAL CARE,2103879829,1000072152
02.05.2024,Children and Adults,CHOICE CARE GROUP,"9,181.28",LD LTS 18-64,RESIDENTIAL CARE,2103864063,1572506
08.05.2024,Children and Adults,WANDSWORTH COUNCIL,"9,161.00",OTHER LA SPECIAL,STATEMENTED FEES,2103845080,1000020692
31.05.2024,Children and Adults,SAFFRONLAND HOMES (MINEHEAD),"9,156.00",LD LTS 18-64,RESIDENTIAL CARE,2103879879,1000072152
15.05.2024,Environment Neighbourhoods and Growth,GOLDSTONE ESTATES LTD,"9,155.30",NO RECOURSE TO PUBLIC FUNDS,ACCOMMODATION CHARGES,5902636490,1000076548
23.05.2024,Environment Neighbourhoods and Growth,WILLOW ESTATE AGENTS (LONDON) LTD,"9,153.00",NO RECOURSE TO PUBLIC FUNDS,ACCOMMODATION CHARGES,5902637477,1000060607
31.05.2024,Children and Adults,P.A.K.S,"9,151.55",PHY LTS 18-64,RESIDENTIAL CARE,2103879202,1000078011
20.05.2024,Housing,FREETHS LLP,"9,150.00",CAPITAL PS (HRA),CONSTRUCTION FEES - LEGAL,5902636461,1000072387
31.05.2024,Children and Adults,BEECHCROFT SUPPORT LIMITED,"9,147.11",LD LTS 18-64,SUPPORTED LIVING,2103879230,1000085412
16.05.2024,Environment Neighbourhoods and Growth,ATALIAN SERVEST LTD,"9,142.50",CAPITAL PS (REGEN),CONSTRUCTION MAIN CONTRACT,2103871215,3000002240
03.05.2024,Children and Adults,REDACTED PERSONAL DATA,"9,142.28",LD LTS 18-64 AAD,PAYMENTS TO CLIENTS (DIRECT PAYMENTS),2103865176,1000080806
31.05.2024,Children and Adults,REDACTED PERSONAL DATA,"9,142.28",LD LTS 18-64 AAD,PAYMENTS TO CLIENTS (DIRECT PAYMENTS),2103877511,1000080806
10.05.2024,Children and Adults,ST JOSEPHS CATHOLIC SCHOOL,"9,142.00",LBS MAINSTREAM,HIGH NEEDS - TOP UP FUNDING,5902635594,5001000076
31.05.2024,Children and Adults,ACHIEVE TOGETHER SERVICES LIMITED,"9,140.86",LD LTS 18-64,SUPPORTED LIVING,2103879910,1000089975
02.05.2024,Children and Adults,LEONARD CHESHIRE (CHIPSTEAD LAKE),"9,126.12",PHY LTS 18-64,RESIDENTIAL CARE,2103863482,1000049764
31.05.2024,Children and Adults,KARE HEALTHCARE LTD,"9,120.80",PHY LTS 65+,SUPPORTED LIVING,2103879324,1000089212
31.05.2024,Children and Adults,REDACTED PERSONAL DATA,"9,113.78",MEM LTS 65+,PAYMENTS TO CLIENTS (DIRECT PAYMENTS),2103877235,1000068634
31.05.2024,Children and Adults,CHOICE SUPPORT,"9,108.88",LD LTS 18-64,SUPPORTED LIVING,2103879337,1104183
02.05.2024,Children and Adults,THE AVENUES TRUST,"9,091.48",LD LTS 18-64,RESIDENTIAL CARE,2103863738,1981708
02.05.2024,Children and Adults,CHOICE SUPPORT,"9,079.36",LD LTS 65+,SUPPORTED LIVING,2103863441,1104183
03.05.2024,Children and Adults,REDACTED PERSONAL DATA,"9,079.20",PHB - SEL ICB,RECOVERABLE COSTS INCL. HEALTH,2103865031,1000044274
31.05.2024,Children and Adults,REDACTED PERSONAL DATA,"9,079.20",PHB - SEL ICB,RECOVERABLE COSTS INCL. HEALTH,2103877373,1000044274
21.05.2024,Housing,SOUTH EAST BUILDING CONTRACTORS LTD,"9,075.56",CAPITAL PS (HOUSING GF),CAPITAL GRANTS,5902637089,1000049893
31.05.2024,Children and Adults,ASHMEAD HEALTHCARE LTD,"9,074.97",LD LTS 18-64,RESIDENTIAL CARE,2103879010,1000077917
08.05.2024,Children and Adults,REDACTED PERSONAL DATA,"9,049.50",AP & HOSPITAL SCHLS,STATEMENTED FEES,2103866579,1000089109
31.05.2024,Children and Adults,VOYAGE LTD (EVESLEIGH KENT),"9,048.65",PHY LTS 18-64,RESIDENTIAL CARE,2103879909,1000041320
31.05.2024,Children and Adults,GLENPAT HOMES,"9,032.11",LD LTS 18-64,RESIDENTIAL CARE,2103878998,1000059312
28.05.2024,Housing,NORBURY PROPERTY SERVICES (LONDON) LTD,"9,025.00",TA PLACEMENTS,EXTERNAL AGENCIES AND BODIES,5902637780,1000075566
21.05.2024,Corporate,ST FRANCIS'S RC PRIMARY SCHOOL,"9,019.51",EDUCATION VAT INPUTS,VAT CONTROL ACCOUNT,2103872338,5001000067
21.05.2024,Corporate,ST ANTHONYS RC SCHOOL,"9,016.68",EDUCATION VAT INPUTS,VAT CONTROL ACCOUNT,2103872350,5001000064
16.05.2024,Environment Neighbourhoods and Growth,ASKEWS & HOLTS LIBRARY SERVICES LTD,"9,006.65",STOCK SERVICES,BOOKS & PUBLICATIONS,5902636547,1494168
22.05.2024,Children and Adults,ILDERTON MOTORVEHICLE PROJECT,"9,000.00",AP & HOSPITAL SCHLS,STATEMENTED FEES,2103873966,1000066082
08.05.2024,Housing,ADECCO UK LTD,"9,000.00",BUILDING SAFETY PROGRAMME,PROFESSIONAL FEES,5902635137,1000017669
09.05.2024,Housing,ADECCO UK LTD,"9,000.00",BUILDING SAFETY PROGRAMME,PROFESSIONAL FEES,5902635387,1000017669
22.05.2024,Housing,HUNTER & PARTNERS LTD,"9,000.00",CAPITAL PS (HRA),CONSTRUCTION FEES - ARCHITECT,5902637311,1000055088
31.05.2024,Children and Adults,DISABILITIES TRUST,"8,997.46",PHY LTS 18-64,NURSING PLACEMENTS FEES,2103879753,1000043358
02.05.2024,Children and Adults,FIR TREE LODGE (SEE ABILITY),"8,995.40",LD LTS 18-64,RESIDENTIAL CARE,2103864029,1000052257
31.05.2024,Children and Adults,LEONARD CHESHIRE (THICKET ROAD),"8,995.39",LD LTS 18-64,RESIDENTIAL CARE,2103879396,1000049761
15.05.2024,Housing,VIGILANT SECURITY SERVICES UK,"8,992.00",MANOR PLACE HOSTEL,SECURITY SERVICES,5902636326,1000090073
31.05.2024,Children and Adults,ALWAYS INCLUSIVE LTD,"8,988.50",LD LTS 18-64,SUPPORTED LIVING,2103879249,1000088268
31.05.2024,Children and Adults,GREEN CARE AND SUPPORT LIMITED,"8,984.01",LD LTS 18-64,SUPPORTED LIVING,2103879895,1000087661
10.05.2024,Children and Adults,BELLENDEN PRIMARY SCHOOL,"8,982.00",NURSERY ED GRANT 3 AND 4 YR OLDS,EARLY YEARS - 3 AND 4 YEAR OLDS,5902635446,5001000007
02.05.2024,Children and Adults,SAFFRONLAND HOMES (HESTIA),"8,978.92",LD LTS 18-64,RESIDENTIAL CARE,2103863491,1000021616
02.05.2024,Children and Adults,SAFFRONLAND HOMES (HESTIA),"8,978.92",LD LTS 18-64,RESIDENTIAL CARE,2103864293,1000021616
12.05.2024,Housing,ANTONY HODARI  SOLICITORS,"8,957.14",HOMELESS PROJECTS,LEGAL FEES & COURT COSTS,5902635241,1000031040
31.05.2024,Children and Adults,BEECHCROFT SUPPORT LIMITED,"8,946.87",LD LTS 18-64,SUPPORTED LIVING,2103879088,1000085412
29.05.2024,Housing,BEVAN BRITTAN LLP,"8,937.30",CAPITAL PS (HRA),CONSTRUCTION,5902637909,1000047779
20.05.2024,Housing,VIGILANT SECURITY SERVICES UK,"8,936.00",DAVID BARKER HOSTEL,SECURITY SERVICES,5902636894,1000090073
31.05.2024,Children and Adults,VALUE IN CARE LTD,"8,934.89",LD LTS 18-64,RESIDENTIAL CARE,2103879011,1000041975
02.05.2024,Children and Adults,CARETECH COMMUNITY SERVICES LTD,"8,927.16",LD LTS 18-64,RESIDENTIAL CARE,2103863515,1000066698
09.05.2024,Housing,NOWMEDICAL LTD,"8,920.00",HOUSING OPTIONS,PROFESSIONAL FEES,5902635252,1000068185
02.05.2024,Children and Adults,SAFFRONLAND HOMES (HESTIA),"8,906.00",LD LTS 18-64,RESIDENTIAL CARE,2103863434,1000021616
31.05.2024,Children and Adults,GOLD CARE HOMES (BAUGH HOUSE),"8,871.43",PHY LTS 65+,NURSING PLACEMENTS FEES,2103879494,1000067495
02.05.2024,Environment Neighbourhoods and Growth,CONSTELLIA PUBLIC LIMITED,"8,866.53",CAMBERWELL LEISURE CENTRE,PREMISES CLEANING,5902633723,1000088137
03.05.2024,Children and Adults,REDACTED PERSONAL DATA,"8,862.00",LD LTS 18-64,PAYMENTS TO CLIENTS (DIRECT PAYMENTS),2103864517,1000001537
02.05.2024,Children and Adults,DIAGRAMA HEALTH CARE,"8,859.44",LD LTS 18-64,RESIDENTIAL CARE,2103863704,1000075492
22.05.2024,Children and Adults,ILDERTON MOTORVEHICLE PROJECT,"8,850.00",AP & HOSPITAL SCHLS,STATEMENTED FEES,2103873969,1000066082
22.05.2024,Children and Adults,ILDERTON MOTORVEHICLE PROJECT,"8,850.00",AP & HOSPITAL SCHLS,STATEMENTED FEES,2103873970,1000066082
22.05.2024,Children and Adults,ILDERTON MOTORVEHICLE PROJECT,"8,850.00",AP & HOSPITAL SCHLS,STATEMENTED FEES,2103873974,1000066082
22.05.2024,Children and Adults,ILDERTON MOTORVEHICLE PROJECT,"8,850.00",AP & HOSPITAL SCHLS,STATEMENTED FEES,2103873976,1000066082
22.05.2024,Children and Adults,ILDERTON MOTORVEHICLE PROJECT,"8,850.00",AP & HOSPITAL SCHLS,STATEMENTED FEES,2103873978,1000066082
24.05.2024,Housing,LODGISTICS ESTATES,"8,848.45",PSL PLACEMENTS,EXTERNAL AGENCIES AND BODIES,5902637516,1000080324
31.05.2024,Finance,HIAM ALI LTD,"8,846.10",CORONER'S,PROFESSIONAL FEES,5902638442,1000084044
29.05.2024,Children and Adults,ORCHARD HILL COLLEGE,"8,845.71",SPECIALIST POST-16,STATEMENTED FEES,2103875468,1000070978
31.05.2024,Children and Adults,HOMERTON UNIVERSITY HOSPITAL NHS FOUNDATION TRUST,"8,842.80",SEXUAL HEALTH - STI,MEDICAL / HEALTH & SAFETY SERVICES,5902638497,1000075435
31.05.2024,Children and Adults,ALWAYS INCLUSIVE LTD,"8,840.16",LD LTS 18-64,SUPPORTED LIVING,2103879616,1000088268
14.05.2024,Housing,ILFORD GRAND HOTEL LTD,"8,835.00",NIGHTLY TA (NSC),EXTERNAL AGENCIES AND BODIES,5902636050,1000090883
23.05.2024,Children and Adults,TEACHER ACTIVE LIMITED,"8,828.06",AP & HOSPITAL SCHLS,STATEMENTED FEES,2103874941,1000088338
02.05.2024,Children and Adults,RIGHT SUPPORT MANAGEMENT LTD,"8,825.84",LD LTS 18-64,SUPPORTED LIVING,2103863445,1000070289
20.05.2024,Children and Adults,CARETRADE CHARITABLE TRUST,"8,820.00",SPECIALIST POST-16,STATEMENTED FEES,2103873752,1000067322
22.05.2024,Children and Adults,CARETRADE CHARITABLE TRUST,"8,820.00",SPECIALIST POST-16,STATEMENTED FEES,2103873801,1000067322
02.05.2024,Children and Adults,ASHINGHAM HOUSE LIMITED,"8,819.16",LD LTS 18-64,RESIDENTIAL CARE,2103864023,1000016504
02.05.2024,Children and Adults,BEECHCROFT SUPPORT LIMITED,"8,806.72",MH LTS 18-64,SUPPORTED LIVING,2103863562,1000085412
31.05.2024,Children and Adults,CHOICE SUPPORT,"8,797.96",LD LTS 18-64,SUPPORTED LIVING,2103879902,1104183
02.05.2024,Children and Adults,BRITISH HOME & HOSPITAL FOR INCURABLES,"8,789.16",PHY LTS 65+,NURSING PLACEMENTS FEES,2103864134,1001606
31.05.2024,Children and Adults,CHOICE SUPPORT,"8,778.93",LD LTS 65+,SUPPORTED LIVING,2103879864,1104183
06.05.2024,Finance,DSI BILLING SERVICES LTD,"8,770.61",ADMINISTRATIVE SUPPORT,POSTAGES,5902634355,1000058640
03.05.2024,Children and Adults,PEOPLE PLUS GROUP LTD (INDEPENDENT LIVING SERVICES),"8,767.82",PHY LTS 18-64,PAYMENTS TO CLIENTS (DIRECT PAYMENTS),2103865500,1000061886
02.05.2024,Children and Adults,BROADHAM CARE LIMITED,"8,752.16",LD LTS 18-64,RESIDENTIAL CARE,2103864180,1000057411
30.05.2024,Environment Neighbourhoods and Growth,SALIX MECHANICAL SERVICES LLP,"8,742.00",DULWICH LEISURE CENTRE,BUILDING R&M,5902638035,1000088961
31.05.2024,Children and Adults,DOLPHIN HOMES LTD,"8,737.98",PHY LTS 18-64,RESIDENTIAL CARE,2103879209,1000079959
08.05.2024,Children and Adults,THE COMPLETE WORKS INDEPENDENT SCHOOL,"8,735.00",ALTERNATIVE PROVISION,EXTERNAL AGENCIES AND BODIES,5902635052,1000033256
08.05.2024,Children and Adults,THE COMPLETE WORKS INDEPENDENT SCHOOL,"8,735.00",ALTERNATIVE PROVISION,EXTERNAL AGENCIES AND BODIES,5902635054,1000033256
08.05.2024,Children and Adults,THE COMPLETE WORKS INDEPENDENT SCHOOL,"8,735.00",ALTERNATIVE PROVISION,EXTERNAL AGENCIES AND BODIES,5902635056,1000033256
08.05.2024,Children and Adults,THE COMPLETE WORKS INDEPENDENT SCHOOL,"8,735.00",ALTERNATIVE PROVISION,EXTERNAL AGENCIES AND BODIES,5902635057,1000033256
03.05.2024,Children and Adults,REDACTED PERSONAL DATA,"8,724.24",PHY LTS 18-64,PAYMENTS TO CLIENTS (DIRECT PAYMENTS),2103864527,1000088718
31.05.2024,Children and Adults,HIGH VIEW CARE SERVICES LTD,"8,723.81",MEM LTS 18-64,NURSING PLACEMENTS FEES,2103879053,1000053562
21.05.2024,Corporate,BELLENDEN PRIMARY SCHOOL,"8,713.29",EDUCATION VAT INPUTS,VAT CONTROL ACCOUNT,2103872363,5001000007
17.05.2024,Children and Adults,TEACHING TALENT LTD,"8,712.00",AP & HOSPITAL SCHLS,STATEMENTED FEES,2103871380,1000091090
31.05.2024,Children and Adults,REESON CARE HOMES LTD,"8,694.44",LD LTS 18-64,SUPPORTED LIVING,2103879959,1000084007
02.05.2024,Children and Adults,HIGH VIEW CARE SERVICES LTD,"8,682.80",PHY LTS 18-64,RESIDENTIAL CARE,2103863360,1000053562
20.05.2024,Children and Adults,CARETRADE CHARITABLE TRUST,"8,680.00",SPECIALIST POST-16,STATEMENTED FEES,2103873748,1000067322
20.05.2024,Children and Adults,CARETRADE CHARITABLE TRUST,"8,680.00",SPECIALIST POST-16,STATEMENTED FEES,2103873749,1000067322
20.05.2024,Children and Adults,CARETRADE CHARITABLE TRUST,"8,680.00",SPECIALIST POST-16,STATEMENTED FEES,2103873753,1000067322
22.05.2024,Children and Adults,CARETRADE CHARITABLE TRUST,"8,680.00",SPECIALIST POST-16,STATEMENTED FEES,2103873797,1000067322
22.05.2024,Children and Adults,CARETRADE CHARITABLE TRUST,"8,680.00",SPECIALIST POST-16,STATEMENTED FEES,2103873798,1000067322
22.05.2024,Children and Adults,CARETRADE CHARITABLE TRUST,"8,680.00",SPECIALIST POST-16,STATEMENTED FEES,2103873802,1000067322
09.05.2024,Governance and Assurance,INSTITUTE FOR EMPLOYMENT STUDIES,"8,675.00",HR PAYROLL COSTS,CONSULTANTS SERVICES,5902635318,1000065134
02.05.2024,Children and Adults,BRITISH HOME & HOSPITAL FOR INCURABLES,"8,664.00",PHY LTS 18-64,NURSING PLACEMENTS FEES,2103863776,1001606
31.05.2024,Children and Adults,PEOPLE PLUS GROUP LTD (INDEPENDENT LIVING SERVICES),"8,663.72",LD LTS 18-64 AAD,PAYMENTS TO CLIENTS (DIRECT PAYMENTS),2103877571,1000061886
31.05.2024,Children and Adults,PEOPLE PLUS GROUP LTD (INDEPENDENT LIVING SERVICES),"8,663.72",MEM LTS 65+,PAYMENTS TO CLIENTS (DIRECT PAYMENTS),2103878059,1000061886
31.05.2024,Children and Adults,BRANDON TRUST,"8,648.02",LD LTS 18-64,SUPPORTED LIVING,2103879744,1000042417
02.05.2024,Children and Adults,BRANDON TRUST,"8,647.00",LD LTS 18-64,SUPPORTED LIVING,2103863552,1000042417
15.05.2024,Environment Neighbourhoods and Growth,TANNERY ARTS LTD - DRAWING ROOM,"8,645.67",ARTS GRANTS,GRANTS,5902636497,1000080895
31.05.2024,Children and Adults,AGINCARE (SOUTHWARK) LIMITED,"8,642.86",DISCHARGE TO ACCESS,NURSING PLACEMENTS FEES,2103879820,1000089635
02.05.2024,Children and Adults,COUNTRY COURT CARE HOMES 2 LTD,"8,631.14",PHY LTS 65+,NURSING PLACEMENTS FEES,2103863838,1000080172
03.05.2024,Children and Adults,REDACTED PERSONAL DATA,"8,630.67",LD LTS 18-64,PAYMENTS TO CLIENTS (DIRECT PAYMENTS),2103865437,1000072741
02.05.2024,Children and Adults,NCYPE,"8,620.00",PHY LTS 18-64,RESIDENTIAL CARE,2103863602,1264546
31.05.2024,Children and Adults,CHOICE SUPPORT,"8,615.55",LD LTS 18-64,RESIDENTIAL CARE,2103879831,1104183
10.05.2024,Housing,STAR PEOPLE LTD,"8,613.56",PSL PLACEMENTS,EXTERNAL AGENCIES AND BODIES,5902634892,1000088790
02.05.2024,Children and Adults,SAFFRONLAND HOMES (HESTIA),"8,612.20",LD LTS 18-64,RESIDENTIAL CARE,2103863620,1000021616
03.05.2024,Children and Adults,NATIONAL FOSTERING AGENCY LTD,"8,569.80",FRIENDS & FAMILY FOSTERING,EXTERNAL AGENCIES AND BODIES,2103864467,1000038868
10.05.2024,Children and Adults,ST JAMES THE GREAT RC SCHOOL,"8,560.00",NURSERY ED GRANT 3 AND 4 YR OLDS,EARLY YEARS - 3 AND 4 YEAR OLDS,5902635580,5001000071
31.05.2024,Children and Adults,SAFFRONLAND HOMES (MINEHEAD),"8,550.75",LD LTS 18-64,RESIDENTIAL CARE,2103879138,1000072152
15.05.2024,Housing,ILFORD GRAND HOTEL LTD,"8,550.00",NIGHTLY TA (NSC),EXTERNAL AGENCIES AND BODIES,5902636261,1000090883
31.05.2024,Children and Adults,SUNRISE REHABILITATION CENTRE,"8,539.36",LD LTS 18-64,SUPPORTED LIVING,2103879289,1000086998
09.05.2024,Children and Adults,PHOENIX PRIMARY SCHOOL,"8,537.00",SPORTS FUNDING,SCHOOLS CAPITATION,2103866643,5001000032
08.05.2024,Children and Adults,ST. JOSEPH'S RC PRIMARY SCHOOL,"8,535.74",AC & FREE - MSTREAM,STATEMENTED FEES,2103866610,1000089163
08.05.2024,Children and Adults,ST. JOSEPH'S RC PRIMARY SCHOOL,"8,535.74",AC & FREE - MSTREAM,STATEMENTED FEES,2103866611,1000089163
08.05.2024,Children and Adults,ST. JOSEPH'S RC PRIMARY SCHOOL,"8,531.00",AC & FREE - MSTREAM,STATEMENTED FEES,2103866606,1000089163
08.05.2024,Children and Adults,ST. JOSEPH'S RC PRIMARY SCHOOL,"8,531.00",AC & FREE - MSTREAM,STATEMENTED FEES,2103866608,1000089163
31.05.2024,Children and Adults,ALWAYS INCLUSIVE LTD,"8,526.66",LD LTS 18-64,SUPPORTED LIVING,2103879819,1000088268
02.05.2024,Environment Neighbourhoods and Growth,CONSTELLIA PUBLIC LIMITED,"8,510.18",DULWICH LEISURE CENTRE,PREMISES CLEANING,5902633734,1000088137
02.05.2024,Children and Adults,BOUGHTON GREEN ROAD LIMITED,"8,505.00",PHY LTS 18-64,NURSING PLACEMENTS FEES,2103863666,1000089115
31.05.2024,Children and Adults,BRANDON TRUST,"8,501.65",LD LTS 18-64,SUPPORTED LIVING,2103879434,1000042417
31.05.2024,Children and Adults,BRANDON TRUST,"8,501.65",LD LTS 18-64,SUPPORTED LIVING,2103879441,1000042417
31.05.2024,Children and Adults,BRANDON TRUST,"8,501.65",LD LTS 18-64,SUPPORTED LIVING,2103879492,1000042417
31.05.2024,Children and Adults,BRANDON TRUST,"8,501.65",LD LTS 18-64,SUPPORTED LIVING,2103879797,1000042417
13.05.2024,Finance,MAKING PLACES TOGETHER LTD.,"8,500.00",DIGITAL TRANSFORMATION TEAM,CONSULTANTS SERVICES,5902635159,1000089222
28.05.2024,Housing,TROWERS & HAMLINS LLP,"8,500.00",HSG REGEN,PAYMENTS FOR LEGAL SERVICES,5902637781,1000016239
21.05.2024,Corporate,PILGRIM'S WAY PRIMARY SCHOOL,"8,494.59",EDUCATION VAT INPUTS,VAT CONTROL ACCOUNT,2103872382,5001000054
31.05.2024,Children and Adults,AGINCARE (SOUTHWARK) LIMITED,"8,485.71",DISCHARGE TO ACCESS,RESIDENTIAL CARE,2103879822,1000089635
02.05.2024,Children and Adults,L & Q LIVING,"8,485.00",LD LTS 18-64,SUPPORTED LIVING,2103864103,1000057917
14.05.2024,Children and Adults,FLEET TUTORS,"8,483.00",VIRTUAL SCHOOL PP,EXTERNAL AGENCIES AND BODIES,5902636226,1000044820
31.05.2024,Children and Adults,GARLAND LODGE LTD,"8,480.14",LD LTS 18-64,SUPPORTED LIVING,2103879763,1000084016
16.05.2024,Environment Neighbourhoods and Growth,ATALIAN SERVEST LTD,"8,477.78",CAPITAL PS (REGEN),CONSTRUCTION MAIN CONTRACT,2103871209,3000002240
15.05.2024,Finance,HIAM ALI LTD,"8,474.60",CORONER'S,PROFESSIONAL FEES,5902636275,1000084044
20.05.2024,Children and Adults,THE XCEL 2000 PARTNERSHIP LTD,"8,471.59",FRIENDS & FAMILY FOSTERING,EXTERNAL AGENCIES AND BODIES,2103871954,1000024427
20.05.2024,Children and Adults,THE XCEL 2000 PARTNERSHIP LTD,"8,471.59",FRIENDS & FAMILY FOSTERING,EXTERNAL AGENCIES AND BODIES,2103871956,1000024427
20.05.2024,Children and Adults,THE XCEL 2000 PARTNERSHIP LTD,"8,471.59",FRIENDS & FAMILY FOSTERING,EXTERNAL AGENCIES AND BODIES,2103871957,1000024427
31.05.2024,Children and Adults,PLUS SERVICES,"8,464.76",LD LTS 18-64,RESIDENTIAL CARE,2103879063,1000021241
15.05.2024,Environment Neighbourhoods and Growth,METIS CONSULTANTS LIMITED,"8,455.82",CAPITAL PS (LEISURE),CONSTRUCTION FEES,5902636485,1000086330
28.05.2024,Children and Adults,ISLINGTON COUNCIL,"8,454.00",OTHER LA SPECIAL,EARLY YEARS - 2 YEAR OLD,2103875288,11204697
22.05.2024,Finance,VIRGIN MEDIA,"8,450.65",IT MANAGEMENT,COMMS & COMPUTING CONTRACT CHARGES,5902637358,1000026457
02.05.2024,Children and Adults,COUNTRY COURT CARE HOMES 2 LTD,"8,448.95",DISCHARGE TO ACCESS,NURSING PLACEMENTS FEES,2103863404,1000080172
20.05.2024,Housing,SHERGROUP LTD,"8,448.00",COMMERCIAL PROPERTIES,SECURITY SERVICES,5902636747,1000087977
02.05.2024,Children and Adults,GARLAND LODGE LTD,"8,444.80",LD LTS 18-64,SUPPORTED LIVING,2103864356,1000084016
02.05.2024,Children and Adults,OPTIMA CARE (SHINE) LONDON LTD,"8,433.00",LD LTS 18-64,SUPPORTED LIVING,2103864351,1000079614
09.05.2024,Children and Adults,BESSEMER GRANGE PRIMARY SCHOOL,"8,396.00",SPORTS FUNDING,SCHOOLS CAPITATION,2103866647,5001000009
31.05.2024,Children and Adults,PUDDINGSTONE GRANGE CARE HOME,"8,393.44",PHY LTS 65+,RESIDENTIAL CARE,2103879440,1000080394
02.05.2024,Children and Adults,SAFFRONLAND HOMES (MINEHEAD),"8,377.68",LD LTS 18-64,RESIDENTIAL CARE,2103864178,1000072152
06.05.2024,Housing,CALFORD SEADEN LLP,"8,370.76",CAPITAL PS (HRA),CONSTRUCTION FEES - EMPLOYERS AGENT,5902634270,1061592
08.05.2024,Children and Adults,ACHIEVERS CARE SOLUTIONS LIMITED,"8,370.56",SPECIALIST CARE,SECTION 17 PAYMENTS TO AGENCIES/CARERS,2103866478,1000086268
18.05.2024,Housing,SPOKEMEAD MAINTENANCE LTD,"8,366.73",CAPITAL PS (HOUSING GF),CAPITAL GRANTS,5902636273,1000059211
31.05.2024,Children and Adults,RESIDENTIAL CARE SERVICES LTD,"8,362.45",LD LTS 18-64,SUPPORTED LIVING,2103879524,1000082629
02.05.2024,Children and Adults,SAFFRONLAND HOMES (MINEHEAD),"8,352.12",LD LTS 18-64,RESIDENTIAL CARE,2103864344,1000072152
02.05.2024,Children and Adults,P.A.K.S,"8,348.00",PHY LTS 18-64,RESIDENTIAL CARE,2103863558,1000078011
02.05.2024,Children and Adults,BEECHCROFT SUPPORT LIMITED,"8,344.00",LD LTS 18-64,SUPPORTED LIVING,2103863712,1000085412
13.05.2024,Children and Adults,MIME CONSULTING LTD,"8,333.33",ALC MANAGEMENT AND SUPPORT,PROFESSIONAL FEES,5902635863,1000057079
13.05.2024,Children and Adults,MIME CONSULTING LTD,"8,333.33",ALC MANAGEMENT AND SUPPORT,PROFESSIONAL FEES,5902635889,1000057079
02.05.2024,Children and Adults,KARE HEALTHCARE LTD,"8,320.00",PHY LTS 65+,SUPPORTED LIVING,2103863815,1000089212
31.05.2024,Children and Adults,PEOPLE PLUS GROUP LTD (INDEPENDENT LIVING SERVICES),"8,319.43",PHY LTS 65+,PAYMENTS TO CLIENTS (DIRECT PAYMENTS),2103877827,1000061886
28.05.2024,Children and Adults,FAIRLEY HOUSE SCHOOL,"8,316.71",NMSS/ INDEP SPECIAL,STATEMENTED FEES,2103875278,1000030807
21.05.2024,Housing,CONTAKT LTD,"8,312.50",ENG CONTRACTS,PROFESSIONAL FEES,5902637067,1000089730
24.05.2024,Housing,J & M OASIS LTD,"8,295.00",NIGHTLY TA (NSC),EXTERNAL AGENCIES AND BODIES,5902637620,1000072169
09.05.2024,Children and Adults,GOODRICH PRIMARY SCHOOL,"8,292.00",SPORTS FUNDING,SCHOOLS CAPITATION,2103866627,5001000028
13.05.2024,Housing,CALFORD SEADEN LLP,"8,280.54",CAPITAL PS (HRA),CONSTRUCTION FEES  - EXTERNAL,5902635834,1061592
02.05.2024,Children and Adults,ASHMEAD HEALTHCARE LTD,"8,278.24",LD LTS 18-64,RESIDENTIAL CARE,2103863437,1000077917
09.05.2024,Children and Adults,IVYDALE PRIMARY SCHOOL,"8,271.00",SPORTS FUNDING,SCHOOLS CAPITATION,2103866632,5001000038
02.05.2024,Children and Adults,COUNTRY COURT CARE HOMES 2 LTD,"8,265.28",DISCHARGE TO ACCESS,NURSING PLACEMENTS FEES,2103864017,1000080172
31.05.2024,Children and Adults,GREEN CARE AND SUPPORT LIMITED,"8,254.28",LD LTS 18-64,SUPPORTED LIVING,2103879290,1000087661
04.05.2024,Finance,NEC SOFTWARE SOLUTIONS UK LTD,"8,250.00",ADMINISTRATIVE SUPPORT,SOFTWARE,5902634380,1000087043
02.05.2024,Children and Adults,GLENPAT HOMES,"8,239.12",LD LTS 18-64,RESIDENTIAL CARE,2103863420,1000059312
31.05.2024,Children and Adults,REDACTED PERSONAL DATA,"8,236.10",LD LTS 18-64,SUPPORTED LIVING,2103879844,1000088380
31.05.2024,Children and Adults,WELLSPRING CARE HOMES LIMITED,"8,230.70",LD LTS 18-64,SUPPORTED LIVING,2103879707,1000088216
31.05.2024,Children and Adults,CHOICE SUPPORT,"8,229.68",LD LTS 18-64,SUPPORTED LIVING,2103879645,1104183
31.05.2024,Children and Adults,BRANDON TRUST,"8,204.19",LD LTS 18-64,SUPPORTED LIVING,2103878919,1000042417
02.05.2024,Children and Adults,ALWAYS INCLUSIVE LTD,"8,199.36",LD LTS 18-64,SUPPORTED LIVING,2103863566,1000088268
31.05.2024,Children and Adults,CHOICE SUPPORT,"8,197.81",LD LTS 18-64,SUPPORTED LIVING,2103879860,1104183
24.05.2024,Children and Adults,THE XCEL 2000 PARTNERSHIP LTD,"8,196.16",FRIENDS & FAMILY FOSTERING,EXTERNAL AGENCIES AND BODIES,2103875094,1000024427
02.05.2024,Children and Adults,GREEN CARE AND SUPPORT LIMITED,"8,195.20",LD LTS 18-64,SUPPORTED LIVING,2103864361,1000087661
31.05.2024,Children and Adults,BEECHCROFT SUPPORT LIMITED,"8,195.03",LD LTS 18-64,SUPPORTED LIVING,2103879087,1000085412
31.05.2024,Children and Adults,LONDON CYRENIANS HOUSING LTD,"8,189.08",LD LTS 18-64,SUPPORTED LIVING,2103879625,1000078600
31.05.2024,Children and Adults,ACHIEVE TOGETHER SERVICES LIMITED,"8,179.75",LD LTS 18-64,SUPPORTED LIVING,2103878861,1000089975
02.05.2024,Housing,ARMINA LTD,"8,172.66",DISREPAIR,BUILDING R&M,2103864403,3000002121
31.05.2024,Children and Adults,AGINCARE (SOUTHWARK) LIMITED,"8,171.43",DISCHARGE TO ACCESS,NURSING PLACEMENTS FEES,2103879552,1000089635
02.05.2024,Children and Adults,CHOICE SUPPORT,"8,168.84",LD LTS 18-64,SUPPORTED LIVING,2103863461,1104183
31.05.2024,Children and Adults,ALWAYS INCLUSIVE LTD,"8,167.65",LD LTS 18-64,SUPPORTED LIVING,2103879840,1000088268
02.05.2024,Children and Adults,BEECHCROFT SUPPORT LIMITED,"8,161.36",LD LTS 18-64,SUPPORTED LIVING,2103863564,1000085412
13.05.2024,Children and Adults,WANDSWORTH COUNCIL,"8,160.00",SPECIALIST CARE,RESIDENTIAL CARE,2103869286,1000020692
09.05.2024,Children and Adults,JOHN RUSKIN PRIMARY SCHOOL,"8,154.00",SPORTS FUNDING,SCHOOLS CAPITATION,2103866633,5001000040
31.05.2024,Children and Adults,LONDON CYRENIANS HOUSING LTD,"8,142.09",LD LTS 18-64,SUPPORTED LIVING,2103879128,1000078600
31.05.2024,Children and Adults,CHOICE SUPPORT,"8,141.34",LD LTS 18-64,SUPPORTED LIVING,2103879738,1104183
02.05.2024,Children and Adults,GLEN CARE GROUP,"8,141.12",LD LTS 18-64,RESIDENTIAL CARE,2103864048,1000050223
02.05.2024,Children and Adults,REDACTED PERSONAL DATA,"8,128.00",AP & HOSPITAL SCHLS,STATEMENTED FEES,2103817886,1000090637
02.05.2024,Children and Adults,CHOICE CARE GROUP,"8,118.80",LD LTS 18-64,RESIDENTIAL CARE,2103864173,1572506
31.05.2024,Children and Adults,HIGH VIEW CARE SERVICES LTD,"8,110.86",MH LTS 18-64,RESIDENTIAL CARE,2103879830,1000065920
10.05.2024,Children and Adults,KEYWORTH PRIMARY SCHOOL,"8,107.00",LBS MAINSTREAM,HIGH NEEDS - TOP UP FUNDING,5902635520,5001000041
13.05.2024,Housing,ADECCO UK LTD,"8,100.00",BUILDING SAFETY PROGRAMME,PROFESSIONAL FEES,5902635425,1000017669
10.05.2024,Children and Adults,DULWICH WOOD CHILDRENS CENTRE,"8,096.00",EY SENDIF,STATEMENTED FEES,2103858020,5001000099
08.05.2024,Children and Adults,DULWICH WOOD CHILDRENS CENTRE,"8,096.00",EY SENDIF,STATEMENTED FEES,2103858050,5001000099
10.05.2024,Children and Adults,PETER HILLS CE SCHOOL,"8,088.00",LBS RB / SEN UNIT,HIGH NEEDS - TOP UP FUNDING,5902635542,5001000053
10.05.2024,Children and Adults,ROBERT BROWNING PRIMARY SCHOOL,"8,088.00",LBS RB / SEN UNIT,HIGH NEEDS - TOP UP FUNDING,5902635553,5001000057
09.05.2024,Children and Adults,CRAWFORD PRIMARY SCHOOL,"8,087.00",SPORTS FUNDING,SCHOOLS CAPITATION,2103866626,5001000024
09.05.2024,Children and Adults,MICHAEL FARADAY PRIMARY SCHOOL,"8,071.00",SPORTS FUNDING,SCHOOLS CAPITATION,2103866636,5001000048
31.05.2024,Children and Adults,CHOICE SUPPORT,"8,067.25",LD LTS 18-64,SUPPORTED LIVING,2103879461,1104183
02.05.2024,Children and Adults,ALWAYS INCLUSIVE LTD,"8,064.00",LD LTS 18-64,SUPPORTED LIVING,2103863992,1000088268
02.05.2024,Environment Neighbourhoods and Growth,CONSTELLIA PUBLIC LIMITED,"8,060.48",CAMBERWELL LEISURE CENTRE,PREMISES CLEANING,5902633718,1000088137
09.05.2024,Children and Adults,ALBION PRIMARY SCHOOL,"8,058.00",SPORTS FUNDING,SCHOOLS CAPITATION,2103866621,5001000000
09.05.2024,Children and Adults,DULWICH WOOD PRIMARY SCHOOL,"8,058.00",SPORTS FUNDING,SCHOOLS CAPITATION,2103866635,5001000042
31.05.2024,Children and Adults,BURGESS AUTISTIC TRUST,"8,056.89",LD LTS 18-64,SUPPORTED LIVING,2103879888,1000044550
21.05.2024,Corporate,FRIARS PRIMARY (FOUNDATION) SCHOOL,"8,047.96",EDUCATION VAT INPUTS,VAT CONTROL ACCOUNT,2103872384,5001000033
17.05.2024,Children and Adults,TEACHER ACTIVE LIMITED,"8,045.55",AP & HOSPITAL SCHLS,STATEMENTED FEES,2103871374,1000088338
09.05.2024,Children and Adults,HEBER PRIMARY SCHOOL,"8,037.00",SPORTS FUNDING,SCHOOLS CAPITATION,2103866629,5001000035
30.05.2024,Children and Adults,BELLENDEN PRIMARY SCHOOL,"8,036.00",MATERNITY COVER,SCHOOLS CAPITATION,2103876645,5001000007
31.05.2024,Children and Adults,BRANDON TRUST,"8,026.05",LD LTS 18-64,SUPPORTED LIVING,2103878951,1000042417
31.05.2024,Children and Adults,BRANDON TRUST,"8,026.05",LD LTS 18-64,SUPPORTED LIVING,2103878962,1000042417
31.05.2024,Children and Adults,BRANDON TRUST,"8,026.05",LD LTS 18-64,SUPPORTED LIVING,2103879425,1000042417
31.05.2024,Children and Adults,BRANDON TRUST,"8,026.05",LD LTS 18-64,SUPPORTED LIVING,2103879437,1000042417
09.05.2024,Children and Adults,SOUTHWARK PARK PRIMARY SCHOOL,"8,008.00",SPORTS FUNDING,SCHOOLS CAPITATION,2103866640,5001000062
02.05.2024,Children and Adults,LEONARD CHESHIRE (THICKET ROAD),"8,004.84",LD LTS 18-64,RESIDENTIAL CARE,2103863883,1000049761
02.05.2024,Children and Adults,THE LONDON CARE GROUP,"8,000.00",LD LTS 18-64,SUPPORTED LIVING,2103863608,1000090111
31.05.2024,Children and Adults,THE LONDON CARE GROUP,"8,000.00",LD LTS 18-64,SUPPORTED LIVING,2103879220,1000090111
09.05.2024,Finance,GRANT THORNTON UK LLP,"8,000.00",EXTERNAL AUDIT NON-SCALE,PROFESSIONAL FEES,5902635256,1000058344
15.05.2024,Environment Neighbourhoods and Growth,REDACTED PERSONAL DATA,"8,000.00",TEAMS 1 TO 12,LEGAL FEES & COURT COSTS,5902636375,1000090984
16.05.2024,Housing,HOMETRACK DATA SYSTEMS LIMITED,"8,000.00",HOUSING STRATEGY (HRA),SUBSCRIPTIONS,5902636518,1000054664
23.05.2024,Environment Neighbourhoods and Growth,SUSTRANS LTD,"8,000.00",STREETS FOR PEOPLE - CONTROLLED PARKING,CONSULTANTS SERVICES,5902637490,1000047385
31.05.2024,Children and Adults,ROYAL BOROUGH OF KENSINGTON & CHELSEA,"7,999.56",POST 16,SOFTWARE,5902638470,1000033864
24.05.2024,Children and Adults,SHARE COMMUNITY LTD,"7,995.00",LD LTS 18-64,DAYCARE,2103875088,1000062408
09.05.2024,Children and Adults,ST JAMES CE PRIMARY SCHOOL,"7,983.00",SPORTS FUNDING,SCHOOLS CAPITATION,2103866656,5001000070
02.05.2024,Children and Adults,DOLPHIN HOMES LTD,"7,970.84",PHY LTS 18-64,RESIDENTIAL CARE,2103863601,1000079959
31.05.2024,Children and Adults,VOYAGE LTD (EVESLEIGH KENT),"7,967.99",LD LTS 18-64,RESIDENTIAL CARE,2103879921,1000041320
31.05.2024,Children and Adults,INSIGHT,"7,962.33",LD LTS 18-64,RESIDENTIAL CARE,2103879690,1825618
30.05.2024,Housing,CITYGLEN LTD,"7,961.60",NIGHTLY TA (NSC),EXTERNAL AGENCIES AND BODIES,5902638131,1000026239
02.05.2024,Children and Adults,HIGH VIEW CARE SERVICES LTD,"7,957.88",MEM LTS 18-64,NURSING PLACEMENTS FEES,2103863454,1000053562
31.05.2024,Children and Adults,ALWAYS INCLUSIVE LTD,"7,948.83",LD LTS 18-64,SUPPORTED LIVING,2103879320,1000088268
23.05.2024,Children and Adults,ESTHER SWIFT LIMITED,"7,945.00",SEMI-IND LAC 16-17,EXTERNAL AGENCIES AND BODIES,2103874984,1000089226
28.05.2024,Children and Adults,FAIRLEY HOUSE SCHOOL,"7,942.70",NMSS/ INDEP SPECIAL,STATEMENTED FEES,2103875281,1000030807
31.05.2024,Children and Adults,AGINCARE (SOUTHWARK) LIMITED,"7,939.64",PHY LTS 65+,NURSING PLACEMENTS FEES,2103879457,1000089635
31.05.2024,Children and Adults,AGINCARE (SOUTHWARK) LIMITED,"7,935.84",PHY LTS 65+,RESIDENTIAL CARE,2103878981,1000089635
31.05.2024,Children and Adults,SALISBURY SUPPORT 4 AUTISM LTD,"7,931.61",LD LTS 18-64,SUPPORTED LIVING,2103879018,1000082674
02.05.2024,Children and Adults,REESON CARE HOMES LTD,"7,931.04",LD LTS 18-64,SUPPORTED LIVING,2103864397,1000084007
20.05.2024,Children and Adults,THE XCEL 2000 PARTNERSHIP LTD,"7,925.03",FRIENDS & FAMILY FOSTERING,EXTERNAL AGENCIES AND BODIES,2103871953,1000024427
10.05.2024,Children and Adults,BASCULE LTD,"7,921.88",NURSERY ED GRANT 3 AND 4 YR OLDS,GRANTS,2103867600,1000037268
09.05.2024,Children and Adults,ALFRED SALTER PRIMARY SCHOOL,"7,921.00",SPORTS FUNDING,SCHOOLS CAPITATION,2103866645,5001000005
09.05.2024,Children and Adults,ST JOHNS & ST CLEMENTS CE SCHOOL,"7,921.00",SPORTS FUNDING,SCHOOLS CAPITATION,2103866657,5001000073
13.05.2024,Housing,BARNES SOLICITORS LLP,"7,916.67",DISREPAIR,PAYMENTS FOR LEGAL SERVICES,2103869225,1000083820
03.05.2024,Children and Adults,THE FRUIT TREE DAY NURSERY,"7,915.05",NURSERY ED GRANT 3 AND 4 YR OLDS,GRANTS,2103865864,1000072492
31.05.2024,DSO,J KASH LTD,"7,886.17",DAMP & MOULD TEAM,OTHER CONTRACTORS,2103876948,3000002219
31.05.2024,Children and Adults,PEOPLE PLUS GROUP LTD (INDEPENDENT LIVING SERVICES),"7,876.05",PHY LTS 18-64,PAYMENTS TO CLIENTS (DIRECT PAYMENTS),2103878060,1000061886
09.05.2024,Children and Adults,OLIVER GOLDSMITH PRIMARY SCHOOL,"7,862.00",SPORTS FUNDING,SCHOOLS CAPITATION,2103866646,5001000051
09.05.2024,Children and Adults,BRUNSWICK PARK PRIMARY SCHOOL,"7,862.00",SPORTS FUNDING,SCHOOLS CAPITATION,2103866648,5001000013
02.05.2024,Children and Adults,VOYAGE LTD (EVESLEIGH KENT),"7,859.88",PHY LTS 18-64,RESIDENTIAL CARE,2103864254,1000041320
14.05.2024,Housing,CALFORD SEADEN LLP,"7,857.27",CAPITAL PS (HRA),CONSTRUCTION FEES  - EXTERNAL,5902636160,1061592
14.05.2024,DSO,RTS WASTE MANAGEMENT LTD,"7,845.26",VOIDS OVERHEADS,WASTE DISPOSAL CONTRACT,5902636107,1000061248
21.05.2024,Corporate,ST JAMES CE PRIMARY SCHOOL,"7,839.69",EDUCATION VAT INPUTS,VAT CONTROL ACCOUNT,2103872372,5001000070
31.05.2024,Children and Adults,HOAMA GROUP LTD,"7,835.48",PHY LTS 18-64,NURSING PLACEMENTS FEES,2103879237,1000090553
15.05.2024,Environment Neighbourhoods and Growth,CONSTELLIA PUBLIC LIMITED,"7,829.00",TREES TERM CONTRACT,TREE MAINTENANCE,5902636271,1000088137
31.05.2024,Children and Adults,ALWAYS INCLUSIVE LTD,"7,825.62",LD LTS 18-64,SUPPORTED LIVING,2103879044,1000088268
31.05.2024,Children and Adults,ALWAYS INCLUSIVE LTD,"7,825.62",LD LTS 18-64,SUPPORTED LIVING,2103879322,1000088268
31.05.2024,Children and Adults,CHOICE SUPPORT,"7,820.70",LD LTS 18-64,SUPPORTED LIVING,2103879859,1104183
02.05.2024,Children and Adults,CHOICE SUPPORT,"7,818.80",LD LTS 18-64,SUPPORTED LIVING,2103863826,1104183
09.05.2024,Children and Adults,KEYWORTH PRIMARY SCHOOL,"7,817.00",SPORTS FUNDING,SCHOOLS CAPITATION,2103866634,5001000041
02.05.2024,Children and Adults,DISABILITIES TRUST,"7,815.40",PHY LTS 18-64,NURSING PLACEMENTS FEES,2103863919,1000043358
02.05.2024,Children and Adults,SAFFRONLAND HOMES (MINEHEAD),"7,800.00",LD LTS 18-64,RESIDENTIAL CARE,2103863531,1000072152
03.05.2024,Environment Neighbourhoods and Growth,RS REAL ESTATE LTD,"7,800.00",NO RECOURSE TO PUBLIC FUNDS,ACCOMMODATION CHARGES,5902634701,1000072485
31.05.2024,Finance,INVUSE LIMITED,"7,800.00",CAPITAL PS (STRAT SERV),ICT ACQUISITION,5902638169,1000087372
31.05.2024,Children and Adults,CHOICE SUPPORT,"7,790.14",LD LTS 18-64,SUPPORTED LIVING,2103879012,1104183
02.05.2024,Children and Adults,SUNRISE REHABILITATION CENTRE,"7,789.60",LD LTS 18-64,SUPPORTED LIVING,2103863679,1000086998
09.05.2024,Children and Adults,ST FRANCIS'S RC PRIMARY SCHOOL,"7,787.00",SPORTS FUNDING,SCHOOLS CAPITATION,2103866653,5001000067
09.05.2024,Children and Adults,GRANGE PRIMARY SCHOOL,"7,771.00",SPORTS FUNDING,SCHOOLS CAPITATION,2103866628,5001000029
14.05.2024,Housing,REDACTED PERSONAL DATA,"7,769.28",HOMELESS PROJECTS,GRANTS,5902636102,1000090939
09.05.2024,Children and Adults,ENGLISH MARTYRS RC PRIMARY SCHOOL,"7,767.00",SPORTS FUNDING,SCHOOLS CAPITATION,2103866651,5001000030
09.05.2024,Children and Adults,ST SAVIOURS & ST OLAVES SCHOOL,"7,762.50",COVID-19 SCHOOLS GRANTS,SCHOOLS CAPITATION,2103866729,5001000084
24.05.2024,Finance,VIRGIN MEDIA,"7,761.88",IT MANAGEMENT,COMMS & COMPUTING CONTRACT CHARGES,5902637596,1000026457
02.05.2024,Children and Adults,VALUE IN CARE LTD,"7,761.08",LD LTS 18-64,RESIDENTIAL CARE,2103863438,1000041975
28.05.2024,Housing,T BROWN & SONS (HEATING) LTD,"7,754.69",ENG CONTRACTS (NORTH),HEATING -DISTRICT SERVICE (CONTRACT SUM),5902637712,1000040191
31.05.2024,Children and Adults,GREEN CARE AND SUPPORT LIMITED,"7,752.68",LD LTS 18-64,SUPPORTED LIVING,2103879323,1000087661
03.05.2024,Strategy and Communities,SOUTHWARK EVERY WOMAN'S CENTRE,"7,750.00",VCS GRANTS,GRANTS,5902634650,1000042216
25.05.2024,Environment Neighbourhoods and Growth,KENT COUNTY COUNCIL - LASER,"7,745.73",PECKHAM LIBRARY,ELECTRICITY,5902637445,1000012926
31.05.2024,Children and Adults,CLACTON FAMILY TRUST RESIDENTIAL HOME,"7,742.32",LD LTS 18-64,SUPPORTED LIVING,2103879319,1000086761
28.05.2024,Housing,NIBLOCK (BUILDERS) LTD,"7,740.87",CAPITAL PS (HRA),CONSTRUCTION MAIN CONTRACT -CERTIFICATED,2103875272,3000000235
31.05.2024,Environment Neighbourhoods and Growth,LEASEPLAN UK LTD,"7,735.38",COMMERCIAL VEH CTRL A/C,HIRED VEHICLES,5902638242,11014756
23.05.2024,Children and Adults,ESTHER SWIFT LIMITED,"7,735.00",SEMI-IND CARELEAVERS,EXTERNAL AGENCIES AND BODIES,2103874981,1000089226
24.05.2024,Housing,SLA LAW  LIMITED,"7,729.17",DISREPAIR,PAYMENTS FOR LEGAL SERVICES,2103870123,1000090852
31.05.2024,Children and Adults,CRAEGMOOR HEALTHCARE,"7,726.29",LD LTS 18-64,RESIDENTIAL CARE,2103879509,1323845
02.05.2024,Children and Adults,PLUS SERVICES,"7,721.60",LD LTS 18-64,RESIDENTIAL CARE,2103863460,1000021241
31.05.2024,Children and Adults,GREEN CARE AND SUPPORT LIMITED,"7,717.60",LD LTS 18-64 AAD,SUPPORTED LIVING,2103878894,1000087661
02.05.2024,Children and Adults,COUNTRY COURT CARE HOMES 2 LTD,"7,714.26",DISCHARGE TO ACCESS,NURSING PLACEMENTS FEES,2103863840,1000080172
02.05.2024,Children and Adults,VOYAGE CARE (MOUNTEARL),"7,713.64",LD LTS 18-64,RESIDENTIAL CARE,2103863351,1000078173
31.05.2024,Children and Adults,VOYAGE CARE (MOUNTEARL),"7,713.64",LD LTS 18-64,RESIDENTIAL CARE,2103878872,1000078173
31.05.2024,Children and Adults,AGINCARE (SOUTHWARK) LIMITED,"7,700.00",DISCHARGE TO ACCESS,RESIDENTIAL CARE,2103879454,1000089635
02.05.2024,Children and Adults,BRANDON TRUST,"7,695.64",LD LTS 18-64,SUPPORTED LIVING,2103864087,1000042417
02.05.2024,Children and Adults,CHOICE SUPPORT,"7,685.84",LD LTS 18-64,SUPPORTED LIVING,2103863979,1104183
31.05.2024,Children and Adults,CHOICE SUPPORT,"7,685.84",LD LTS 18-64,SUPPORTED LIVING,2103879603,1104183
24.05.2024,Housing,SHERGROUP LTD,"7,680.00",COMMERCIAL PROPERTIES,SECURITY SERVICES,5902636744,1000087977
30.05.2024,Children and Adults,SNA 24/7 SUPPORT SERVICES LTD,"7,668.00",AI TEAMS A-D,OTHER PAYMENTS FOR CLIENTS,2103876873,1000090663
31.05.2024,Children and Adults,PLUS SERVICES,"7,656.65",LD LTS 18-64,SUPPORTED LIVING,2103879480,1000021241
09.05.2024,Children and Adults,RIVERSIDE PRIMARY SCHOOL,"7,642.00",SPORTS FUNDING,SCHOOLS CAPITATION,2103866637,5001000056
14.05.2024,Housing,LIBERAY LEGAL  LTD,"7,641.67",DISREPAIR,PAYMENTS FOR LEGAL SERVICES,2103870106,1000090243
02.05.2024,Children and Adults,RESIDENTIAL CARE SERVICES LTD,"7,628.20",LD LTS 18-64,SUPPORTED LIVING,2103863905,1000082629
17.05.2024,Corporate,IMPERIAL TREASURY SERVICES LTD,"7,616.44",EXTERNAL INTEREST,DEBT MANAGEMENT EXPENSES,5902636786,1000083103
16.05.2024,Finance,KEEGANS LTD,"7,612.50",MASTER PLAN - H/WAY & TRANS INTERCHANGE,PROFESSIONAL FEES,5902636695,1000039674
31.05.2024,Children and Adults,GOLD CARE HOMES (BAUGH HOUSE),"7,600.00",MEM LTS 65+,NURSING PLACEMENTS FEES,2103879218,1000067495
09.05.2024,Children and Adults,ST JOSEPHS RC JUNIOR  SCHOOL,"7,592.00",SPORTS FUNDING,SCHOOLS CAPITATION,2103866667,5001000017
31.05.2024,Children and Adults,ARIA HEALTHCARE GROUP LTD,"7,587.32",PHY LTS 18-64,NURSING PLACEMENTS FEES,2103879104,1000090139
03.05.2024,Environment Neighbourhoods and Growth,FABRIKAT (NOTTINGHAM) LTD,"7,586.00",PUBLIC LIGHTING,MATERIALS,5902634744,1036223
31.05.2024,Children and Adults,PLUS SERVICES,"7,582.64",LD LTS 18-64,SUPPORTED LIVING,2103879190,1000021241
13.05.2024,Housing,VERITAS  SOLICITORS,"7,566.67",DISREPAIR,PAYMENTS FOR LEGAL SERVICES,2103869224,1000088269
02.05.2024,Children and Adults,BRANDON TRUST,"7,565.44",LD LTS 18-64,SUPPORTED LIVING,2103863779,1000042417
02.05.2024,Children and Adults,BRANDON TRUST,"7,565.44",LD LTS 18-64,SUPPORTED LIVING,2103863787,1000042417
02.05.2024,Children and Adults,BRANDON TRUST,"7,565.44",LD LTS 18-64,SUPPORTED LIVING,2103863972,1000042417
02.05.2024,Children and Adults,BRANDON TRUST,"7,565.44",LD LTS 18-64,SUPPORTED LIVING,2103864266,1000042417
02.05.2024,Children and Adults,COUNTRY COURT CARE HOMES 2 LTD,"7,563.24",PHY LTS 65+,NURSING PLACEMENTS FEES,2103863533,1000080172
02.05.2024,Children and Adults,COUNTRY COURT CARE HOMES 2 LTD,"7,563.24",PHY LTS 65+,NURSING PLACEMENTS FEES,2103863844,1000080172
31.05.2024,Children and Adults,COUNTRY COURT CARE HOMES 2 LTD,"7,563.24",PHY LTS 65+,NURSING PLACEMENTS FEES,2103879140,1000080172
31.05.2024,Children and Adults,COUNTRY COURT CARE HOMES 2 LTD,"7,563.24",PHY LTS 65+,NURSING PLACEMENTS FEES,2103879505,1000080172
10.05.2024,Children and Adults,OLIVER GOLDSMITH PRIMARY SCHOOL,"7,552.00",LBS MAINSTREAM,HIGH NEEDS - TOP UP FUNDING,5902635538,5001000051
02.05.2024,Children and Adults,CHOICE SUPPORT,"7,551.88",LD LTS 18-64,SUPPORTED LIVING,2103864369,1104183
02.05.2024,Children and Adults,GARLAND LODGE LTD,"7,546.24",LD LTS 18-64,SUPPORTED LIVING,2103863907,1000084016
02.05.2024,Children and Adults,AGINCARE (SOUTHWARK) LIMITED,"7,542.86",DISCHARGE TO ACCESS,RESIDENTIAL CARE,2103864286,1000089635
02.05.2024,Children and Adults,CHOICE SUPPORT,"7,535.60",LD LTS 65+,SUPPORTED LIVING,2103864248,1104183
31.05.2024,Children and Adults,COUNTRY COURT CARE HOMES 2 LTD,"7,530.86",PHY LTS 65+,NURSING PLACEMENTS FEES,2103879546,1000080172
02.05.2024,Children and Adults,GREEN CARE AND SUPPORT LIMITED,"7,529.60",LD LTS 18-64,SUPPORTED LIVING,2103863680,1000087661
09.05.2024,Children and Adults,ILDERTON PRIMARY SCHOOL,"7,517.00",SPORTS FUNDING,SCHOOLS CAPITATION,2103866631,5001000037
02.05.2024,Children and Adults,REDACTED PERSONAL DATA,"7,512.96",LD LTS 18-64,SUPPORTED LIVING,2103864231,1000088380
31.05.2024,Children and Adults,CARE UK,"7,510.97",PHY LTS 65+,NURSING PLACEMENTS FEES,2103879772,1000063363
15.05.2024,Environment Neighbourhoods and Growth,MOTT MACDONALD LTD,"7,510.00",CAPITAL PS (REGEN),CONSTRUCTION FEES,5902636350,1000067305
02.05.2024,Children and Adults,WELLSPRING CARE HOMES LIMITED,"7,508.00",LD LTS 18-64,SUPPORTED LIVING,2103864135,1000088216
31.05.2024,Children and Adults,COUNTRY COURT CARE HOMES 2 LTD,"7,501.63",DISCHARGE TO ACCESS,NURSING PLACEMENTS FEES,2103878968,1000080172
14.05.2024,Housing,ANTONY HODARI  SOLICITORS,"7,500.00",DISREPAIR,PAYMENTS FOR LEGAL SERVICES,2103870086,1000031040
06.05.2024,Housing,EXPIDERE LTD,"7,500.00",COMPLAINTS,EXTERNAL AGENCIES AND BODIES,5902634362,1000088861
03.05.2024,Strategy and Communities,PARENT SKILLS2GO,"7,500.00",VCS GRANTS,GRANTS,5902634639,1000066441
07.05.2024,Environment Neighbourhoods and Growth,BEE URBAN,"7,500.00",CAPITAL PS (LEISURE),"PLANT, MACHINERY & EQUIP ACQUISIT'N FEE",5902634856,1000073107
08.05.2024,Environment Neighbourhoods and Growth,RIGHTON & BLACKBURNS LTD,"7,500.00",STREET FURNITURE RECOVERABLE WORKS,MATERIALS,5902635149,1000041264
18.05.2024,Environment Neighbourhoods and Growth,KINGSWOOD ARTS CIC,"7,500.00",YOUTH MANAGEMENT AND ADMIN,GRANTS,5902636726,1000090129
17.05.2024,Environment Neighbourhoods and Growth,INSPIRE WALWORTH LTD,"7,500.00",YOUTH MANAGEMENT AND ADMIN,GRANTS,5902636730,1000041565
17.05.2024,Environment Neighbourhoods and Growth,DOG KENNEL HILL ADVENTURE PLAYGROUND LTD,"7,500.00",YOUTH MANAGEMENT AND ADMIN,GRANTS,5902636749,11134529
17.05.2024,Environment Neighbourhoods and Growth,SOUTH LONDON GALLERY,"7,500.00",YOUTH MANAGEMENT AND ADMIN,GRANTS,5902636752,11011694
20.05.2024,Housing,MILES & PARTNERS SOLICITORS,"7,500.00",HOMELESS PROJECTS,LEGAL FEES & COURT COSTS,5902636898,1000047453
20.05.2024,Environment Neighbourhoods and Growth,SURREY DOCKS FARM PROVIDENT SOCIETY,"7,500.00",YOUTH MANAGEMENT AND ADMIN,GRANTS,5902636964,1000000958
20.05.2024,Environment Neighbourhoods and Growth,THE SALMON YOUTH CENTRE,"7,500.00",YOUTH MANAGEMENT AND ADMIN,GRANTS,5902636969,1000040686
28.05.2024,Housing,QUINARY LTD,"7,500.00",NIGHTLY TA (NSC),EXTERNAL AGENCIES AND BODIES,5902637720,1000029106
02.05.2024,Children and Adults,GATE HOUSE,"7,497.73",MH LTS 18-64,"MAND STATUTORY CHARGES, RESIDENTIAL",2103863616,1000079839
31.05.2024,Children and Adults,INDEPENDENCE HOMES LTD,"7,491.92",LD LTS 18-64,SUPPORTED LIVING,2103878874,1000058961
09.05.2024,Children and Adults,RYE OAK PRIMARY SCHOOL,"7,487.00",SPORTS FUNDING,SCHOOLS CAPITATION,2103866666,5001000059
03.05.2024,Children and Adults,REDACTED PERSONAL DATA,"7,477.92",PHY LTS 65+,PAYMENTS TO CLIENTS (DIRECT PAYMENTS),2103864721,1000088601
02.05.2024,Children and Adults,BEECHCROFT SUPPORT LIMITED,"7,475.52",LD LTS 18-64,SUPPORTED LIVING,2103863563,1000085412
02.05.2024,Children and Adults,LONDON CYRENIANS HOUSING LTD,"7,470.12",LD LTS 18-64,SUPPORTED LIVING,2103864102,1000078600
10.05.2024,Children and Adults,ALBION COMPUTERS PLC,"7,470.00",LEA MUSIC SERVICE(310) - 5018566,EQUIPMENT PURCHASE & REPAIR,5902635035,1000058381
15.05.2024,Finance,NEC SOFTWARE SOLUTIONS UK LTD,"7,468.00",ADMINISTRATIVE SUPPORT,SOFTWARE,5902636395,1000087043
08.05.2024,Children and Adults,INCLUSIVE CHILDREN SERVICES LTD,"7,467.27",CHILDREN’S RESID,RESIDENTIAL CARE,2103866491,1000091094
31.05.2024,Children and Adults,STEPPING STONES RESETTLEMENT UNIT,"7,466.13",LD LTS 18-64,RESIDENTIAL CARE,2103879512,1000032806
02.05.2024,Children and Adults,ALWAYS INCLUSIVE LTD,"7,450.56",LD LTS 18-64,SUPPORTED LIVING,2103864228,1000088268
02.05.2024,Children and Adults,LONDON CYRENIANS HOUSING LTD,"7,427.20",LD LTS 18-64,SUPPORTED LIVING,2103863486,1000078600
11.05.2024,Housing,ENERGYDIRECTION LIMITED,"7,425.00",CAPITAL PS (HRA),CONSTRUCTION,5902635003,1000090026
10.05.2024,Children and Adults,DULWICH WOOD PRIMARY SCHOOL,"7,420.00",LBS MAINSTREAM,HIGH NEEDS - TOP UP FUNDING,5902635522,5001000042
02.05.2024,Children and Adults,HC-ONE LTD (TOWER BRIDGE CARE HOME),"7,405.80",PHY LTS 65+,NURSING PLACEMENTS FEES,2103863402,1000067670
09.05.2024,Children and Adults,ST JAMES THE GREAT RC SCHOOL,"7,404.00",SPORTS FUNDING,SCHOOLS CAPITATION,2103866652,5001000071
07.05.2024,Environment Neighbourhoods and Growth,WATER PLUS LTD,"7,403.62",PECKHAM PULSE LEISURE CENTRE,WATER,5902634319,1000087903
03.05.2024,Children and Adults,PEOPLE PLUS GROUP LTD (INDEPENDENT LIVING SERVICES),"7,400.07",LD LTS 18-64,PAYMENTS TO CLIENTS (DIRECT PAYMENTS),2103865206,1000061886
02.05.2024,Environment Neighbourhoods and Growth,BLOOM PROCUREMENT SERVICES LTD,"7,400.00",CAPITAL PS (REGEN),CONSTRUCTION FEES - ENGINEER,5902634460,1000082531
02.05.2024,Children and Adults,HIGH VIEW CARE SERVICES LTD,"7,398.72",MH LTS 18-64,RESIDENTIAL CARE,2103864179,1000065920
09.05.2024,Children and Adults,CRAMPTON PRIMARY SCHOOL,"7,396.00",SPORTS FUNDING,SCHOOLS CAPITATION,2103866625,5001000023
02.05.2024,Children and Adults,CHOICE SUPPORT,"7,395.32",LD LTS 18-64,RESIDENTIAL CARE,2103864181,1104183
08.05.2024,Children and Adults,OPENMINDS SOCIAL CARE,"7,392.86",SEMI-IND LAC 16-17,EXTERNAL AGENCIES AND BODIES,2103866506,1000085800
10.05.2024,Housing,CALFORD SEADEN LLP,"7,392.56",CAPITAL PS (HRA),CONSTRUCTION FEES  - EXTERNAL,5902635391,1061592
09.05.2024,Children and Adults,CATHEDRAL SCHOOL OF ST SAVIOUR & MARY,"7,392.00",SPORTS FUNDING,SCHOOLS CAPITATION,2103866664,5001000088
17.05.2024,Children and Adults,TEACHING TALENT LTD,"7,392.00",AP & HOSPITAL SCHLS,STATEMENTED FEES,2103871379,1000091090
